Workbook

Sheet Lotto8_C6525_1
E1: Convenzione | F1: =SUM(J:J)*F5 -> 0
E2: 0.2 | F2: =SUM(K:K)*F5 -> 0
E3: Totale | F3: =SUM(F1:F2) -> 0
A5: PowerEdge C6400 + 4 x C6525 Consulta la Guida alla Convenzione --> | D5: =HYPERLINK("https://convenzioni.converge.it/docs/L8GuidaAllaConvenzioneTecnologieServer3.pdf","&") -> & | E5: Quantità Server | H5: =Riepilogo!G8 -> Version 4.0
C8: Base | D8: =HYPERLINK("https://convenzioni.converge.it/docs/ts3_datasheet/dell-emc-poweredge-c6525-spec-sheet.pdf","i") -> i
C9: POWEREDGE C6400-R Enclosure | E9: =IF($F$5>0,"TS3L8-SRV-U","") ->  | F9: =IF($F$5>0,1,"") ->  | J9: =VLOOKUP($C9,TS3L8_ALL,10,FALSE) -> 8877 | L9: =VLOOKUP($C9,TS3L8_ALL,12,FALSE) -> L8N01
C10: PowerEdge C6525 | F10: =IF($F$5>0,4,"") -> 
C12: Chassis Configuration | D12: =HYPERLINK("https://dellservervr.dell.com/poweredge-c6525/","i") -> i
C13: Chassis with up to 24x2.5" Drives | D13: i
C15: Trusted Platform Module (TPM)
C16: Trusted Platform Module 2.0
C18: Processor | D18: =IF(J19="",HYPERLINK("https://www.amd.com/en/products/cpu/amd-epyc-7282","i")) -> i
C19: AMD EPYC 7282 2.80GHz, 16C/32T, 64M Cache (120W) DDR4-3200
C21: Additional Processor
C22: No Additional Processor | E22: =VLOOKUP($C$22,TS3L8_CPU,13,FALSE) ->  | F22: =VLOOKUP($C$22,TS3L8_CPU,7,FALSE) -> 0 | J22: =VLOOKUP($C$22,TS3L8_CPU,10,FALSE) -> 0 | L22: =VLOOKUP($C22,TS3L8_ALL,12,FALSE) -> 
H23: =IF(N25="*",HYPERLINK("https://www.dell.com/support/manuals/it-it/poweredge-c6525/pec6525_ism_pub/general-memory-module-installation-guidelines?guid=guid-80b1c1ad-14b7-4dd6-b122-abb0c82bd3e8&lang=en-us","!!!!! ATTENZIONE !!!!! La configurazione della memoria è supportata, ma non ottimizzata per ottenere le migliori prestazioni. Per maggiori informazioni cliccare quì."),"") -> !!!!! ATTENZIONE !!!!! La configurazione della memoria è supportata, ma non ottimizzata per ottenere le migliori prestazioni. Per maggiori informazioni cliccare quì.
C24: Memory Capacity
C25: 64GB Totali (1 x 64GB DIMM per Nodo) ⚠ | D25: =IF($N$25="*",$M$25,"") -> ⚠ | E25: =IF($F$22=1,VLOOKUP($C$25,TS3L8_RAM2CPU,13,FALSE),VLOOKUP($C$25,TS3L8_RAM1CPU,13,FALSE)) -> TS3L8-RAM64 | F25: =IF($F$22=1,VLOOKUP($C$25,TS3L8_RAM2CPU,7,FALSE),VLOOKUP($C$25,TS3L8_RAM1CPU,7,FALSE)) -> 0 | G25: =IF($N$25="*",$M$25,"") -> ⚠ | J25: =IF($F$22=1,VLOOKUP($C$25,TS3L8_RAM2CPU,10,FALSE),VLOOKUP($C$25,TS3L8_RAM1CPU,10,FALSE)) -> 0 | L25: =IF($F$22=1,VLOOKUP($C$25,TS3L8_RAM2CPU,12,FALSE),VLOOKUP($C$25,TS3L8_RAM1CPU,12,FALSE)) -> L8N04 | M25: ⚠ | N25: =VLOOKUP($C$25,TS3L8_RAM,5,FALSE) -> *
C27: Operating System
C28: No Operating System | E28: =VLOOKUP($C$28,TS3L8_OS,13,FALSE) ->  | F28: =VLOOKUP($C$28,TS3L8_OS,7,FALSE) -> 0 | J28: =VLOOKUP($C$28,TS3L8_OS,10,FALSE) -> 0 | K28: =VLOOKUP($C$28,TS3L8_OS,11,FALSE) -> 0 | L28: =VLOOKUP($C28,TS3L8_ALL,12,FALSE) -> 
E29: =IF(F22=1,VLOOKUP(C28,TS3L8_OS,21,FALSE),"") ->  | F29: =IF(F22=1,VLOOKUP(C28,TS3L8_OS,14,FALSE),0) -> 0 | J29: =IF($F$28+$F$19=2,0,IF($F$19+$F$22+$F$28=2,VLOOKUP($C$28,TS3L8_OS,17,FALSE),VLOOKUP($C$28,TS3L8_OS,17,FALSE))) ->  | K29: =IF($F$28+$F$19=2,0,IF($F$19+$F$22+$F$28=2,VLOOKUP($C$28,TS3L8_OS,18,FALSE),VLOOKUP($C$28,TS3L8_OS,18,FALSE))) -> 0 | L29: =IF($F$28+$F$19=2,0,IF($F$19+$F$22+$F$28=2,VLOOKUP($C$28,TS3L8_OS,20,FALSE),VLOOKUP($C$28,TS3L8_OS,20,FALSE))) -> 0
C31: Raid Controller | D31: =IF(F32="",HYPERLINK("https://convenzioni.converge.it/docs/ts3_datasheet/dellemc-poweredge-raid-controller-h745.pdf","i"),HYPERLINK("https://convenzioni.converge.it/docs/ts3_datasheet/dellemc-poweredge-hba345.pdf","i")) -> i
C32: PERC H745 Controller Card | E32: =VLOOKUP($C32,TS3L8_ALL,13,FALSE) ->  | F32: =VLOOKUP($C32,TS3L8_ALL,7,FALSE) ->  | J32: =VLOOKUP($C32,TS3L8_ALL,10,FALSE) -> 0 | K32: =VLOOKUP($C32,TS3L8_ALL,11,FALSE)*4 -> 0 | L32: =VLOOKUP($C32,TS3L8_ALL,12,FALSE) -> 
C34: Hard Drivers Bays disponibili n° 24 (n° 6 per Nodo) | E34: Totali Enclosure C6400
E35: Usati | F35: Disponibili
E36: =SUM(F45:F59)*4 -> 8 | F36: =24-E36 -> 16
E38: Per singolo Nodo C6525
E39: Usati | F39: Disponibili
E40: =SUM(F45:F59) -> 2 | F40: =6-E40 -> 4
E43: INDICARE LA QUANTITA' PER SINGOLO NODO | H43: Configurazione RAID e/o NOTE
H44: Specificare la configurazione RAID per l'installazione del Sistema Operativo, se richiesto. e/o inserire eventuali note.
C45: =ConfigurationTS3L8!A35 -> 300GB 15K RPM SAS 12Gbps 2.5in Hot-plug | E45: =VLOOKUP($C45,TS3L8_HDD,13,FALSE) -> TS3L8-HDD300GB | J45: =VLOOKUP($C45,TS3L8_HDD,10,FALSE)*F45*4 -> 0 | K45: =VLOOKUP($C45,TS3L8_HDD,11,FALSE) -> 0 | L45: =VLOOKUP($C45,TS3L8_ALL,12,FALSE) -> L8N10
C47: =ConfigurationTS3L8!A37 -> 1.2TB 10K RPM SAS 12Gbps 2.5in Hot-plug | E47: =VLOOKUP($C47,TS3L8_HDD,13,FALSE) -> TS3L8-HDD1TB | J47: =VLOOKUP($C47,TS3L8_HDD,10,FALSE)*F47*4 -> 0 | K47: =VLOOKUP($C47,TS3L8_HDD,11,FALSE) -> 0 | L47: =VLOOKUP($C47,TS3L8_ALL,12,FALSE) -> L8N09
C49: =ConfigurationTS3L8!A39 -> 480GB SSD SAS Read Intensive 12Gbps 2.5in Hot-plug | E49: =VLOOKUP($C49,TS3L8_HDD,13,FALSE) -> TS3L8-RI400GB-U | F49: 0 | J49: =IF(F49>2,(VLOOKUP($C49,TS3L8_HDD,10,FALSE)*(F49*4-2*4)),0) -> 0 | K49: =VLOOKUP($C49,TS3L8_HDD,11,FALSE) -> 0 | L49: =VLOOKUP($C49,TS3L8_ALL,12,FALSE) -> L8N15
C51: =ConfigurationTS3L8!A41 -> 960GB SSD SAS Read Intensive 12Gbps 2.5in Hot-plug | E51: =VLOOKUP($C51,TS3L8_HDD,13,FALSE) -> TS3L8-RI800GB | F51: 2 | J51: =IF(F51>2,(VLOOKUP($C51,TS3L8_HDD,10,FALSE)*(F51*4-2*4)),0) -> 0 | K51: =VLOOKUP($C51,TS3L8_HDD,11,FALSE) -> 0 | L51: =VLOOKUP($C51,TS3L8_ALL,12,FALSE) -> L8N13
C53: =ConfigurationTS3L8!A43 -> 1.92TB SSD SAS Read Intensive 12Gbps 2.5in Hot-plug | E53: =VLOOKUP($C53,TS3L8_HDD,13,FALSE) -> TS3L8-RI1600GB | J53: =VLOOKUP($C53,TS3L8_HDD,10,FALSE)*F53*4 -> 0 | K53: =VLOOKUP($C53,TS3L8_HDD,11,FALSE) -> 0 | L53: =VLOOKUP($C53,TS3L8_ALL,12,FALSE) -> L8N11
C55: =ConfigurationTS3L8!A45 -> 960GB SSD SAS Mixed Use 12Gbps 512e 2.5in Hot-Plug | E55: =VLOOKUP($C55,TS3L8_HDD,13,FALSE) -> TS3L8-MU800GB | J55: =VLOOKUP($C55,TS3L8_HDD,10,FALSE)*F55*4 -> 0 | K55: =VLOOKUP($C55,TS3L8_HDD,11,FALSE) -> 0 | L55: =VLOOKUP($C55,TS3L8_ALL,12,FALSE) -> L8N14
C57: =ConfigurationTS3L8!A47 -> 1.6TB SSD SAS Mixed Use 12Gbps 2.5in Hot-plug | E57: =VLOOKUP($C57,TS3L8_HDD,13,FALSE) -> TS3L8-MU1600GB | J57: =VLOOKUP($C57,TS3L8_HDD,10,FALSE)*F57*4 -> 0 | K57: =VLOOKUP($C57,TS3L8_HDD,11,FALSE) -> 0 | L57: =VLOOKUP($C57,TS3L8_ALL,12,FALSE) -> L8N12
C59: =ConfigurationTS3L8!A49 -> 800GB SSD SAS Write Intensive 12Gbps 2.5in Hot-plug | E59: =VLOOKUP($C59,TS3L8_HDD,13,FALSE) -> TS3L8-WI800GB | J59: =VLOOKUP($C59,TS3L8_HDD,10,FALSE)*F59*4 -> 0 | K59: =VLOOKUP($C59,TS3L8_HDD,11,FALSE)*F59*4 -> 0 | L59: =VLOOKUP($C59,TS3L8_ALL,12,FALSE) -> L8N32
C61: Power Supply
C62: Dual,Hot-plug Power Supply, 2400W,250 Volt
C64: Power Cords | H64: Verificare, per ogni Enclosure, la disponibilità di 2 prese C19 sulle PDU
C65: C19 to C20, 250V, 0.6m Power Cord | F65: 2
C67: Boot Optimized Storage Cards | D67: =IF(J69="",HYPERLINK("https://convenzioni.converge.it/docs/ts3_datasheet/DELL_BOSS.pdf","i")) -> i
E68: =VLOOKUP($C68,TS3L8_ALL,13,FALSE) ->  | F68: =VLOOKUP($C68,TS3L8_ALL,7,FALSE) ->  | J68: =VLOOKUP($C68,TS3L8_ALL,10,FALSE) -> 0 | K68: =VLOOKUP($C68,TS3L8_ALL,11,FALSE)*4 -> 0 | L68: =VLOOKUP($C68,TS3L8_ALL,12,FALSE) -> 
C70: Embedded Systems Management
C71: BMC
C84: Network Mezzanine Cards
C85: Broadcom 5720 Quad Port 1GbE BASE-T Mezzanine Adapter | E85: =VLOOKUP($C85,TS3L8_ALL,13,FALSE) ->  | F85: =VLOOKUP($C85,TS3L8_ALL,7,FALSE) ->  | J85: =VLOOKUP($C85,TS3L8_ALL,10,FALSE) -> 0 | K85: =VLOOKUP($C85,TS3L8_ALL,11,FALSE)*4 -> 0 | L85: =VLOOKUP($C85,TS3L8_ALL,12,FALSE) -> 
C87: PCI Slot 1 Processor 1
C88: Controller Card
C90: PCI Slot 2 Processor 2
E91: =VLOOKUP($C91,TS3L8_ALL,13,FALSE) ->  | F91: =VLOOKUP($C91,TS3L8_ALL,7,FALSE) ->  | J91: =VLOOKUP($C91,TS3L8_ALL,10,FALSE)*4 -> 0 | K91: =VLOOKUP($C91,TS3L8_ALL,11,FALSE)*4 -> 0 | L91: =VLOOKUP($C91,TS3L8_ALL,12,FALSE) -> 
C93: Transceivers per ENCLOSURE
C94: SFP+ SR Optic for SFP+ ports (CONNECTX-5 10Gb OCP) | E94: =IF(K94>0,VLOOKUP($C94,TS3L8_ALL,13,FALSE),"") ->  | J94: 0 | K94: =IF(F94>0,VLOOKUP($C94,TS3L8_ALL,11,FALSE)*(F94),0) -> 0 | L94: =IF(F94>0,VLOOKUP($C94,TS3L8_ALL,12,FALSE),0) -> 0
C95: 25GbE Dual Rate SFP28 SR Optic for SFP28 ports (CONNECTX-5 25Gb OCP) | E95: =IF(K95>0,VLOOKUP($C95,TS3L8_ALL,13,FALSE),"") ->  | J95: 0 | K95: =IF(F95>0,VLOOKUP($C95,TS3L8_ALL,11,FALSE)*(F95),0) -> 0 | L95: =IF(F95>0,VLOOKUP($C95,TS3L8_ALL,12,FALSE),0) -> 0
C96: Mellanox LinkX 100Gb/s Passive Copper DAC 3m | E96: =IF(K96>0,VLOOKUP($C96,TS3L8_ALL,13,FALSE),"") ->  | J96: 0 | K96: =IF(F96>0,VLOOKUP($C96,TS3L8_ALL,11,FALSE)*(F96),0) -> 0 | L96: =IF(F96>0,VLOOKUP($C96,TS3L8_ALL,12,FALSE),0) -> 0
C98: Cavi mini DP to VGA | H98: =IF(F99=4,"Un cavo per singolo Nodo",IF(F99=1,"Un cavo per Enclosure","Nessun cavo video")) -> Un cavo per singolo Nodo
C99: Adapter - Mini DisplayPort to VGA | E99: =IF(K99>0,VLOOKUP($C99,TS3L8_ALL,13,FALSE),"") -> TS3L8-MDPVGA | F99: 4 | J99: 0 | K99: =IF(F99>0,VLOOKUP($C99,TS3L8_ALL,11,FALSE)*(F99),0) -> 140 | L99: =IF(F99>0,VLOOKUP($C99,TS3L8_ALL,12,FALSE),0) -> L8N56
C101: Cavi RJ45 per ENCLOSURE
C102: Cavo “patch” di 3 mt RJ45 certificato per gigabit ethernet | E102: =IF(K102>0,VLOOKUP($C102,TS3L8_ALL,13,FALSE),"") -> TS3L8-RJ453M | F102: 20 | J102: 0 | K102: =IF(F102>0,VLOOKUP($C102,TS3L8_ALL,11,FALSE)*(F102),0) -> 60 | L102: =IF(F102>0,VLOOKUP($C102,TS3L8_ALL,12,FALSE),0) -> L8N30
C104: Warranty per ENCLOSURE | D104: =IF(J106="",HYPERLINK("https://convenzioni.converge.it/docs/ts3_datasheet/TS3warranty.pdf","i")) -> i
C105: Manutenzione in garanzia (36 mesi) | E105: =VLOOKUP($C105,TS3L8_WARRANTY,13,FALSE) ->  | F105: =VLOOKUP($C105,TS3L8_WARRANTY,7,FALSE) ->  | J105: =VLOOKUP($C105,TS3L8_WARRANTY,10,FALSE) -> 0 | K105: =VLOOKUP($C105,TS3L8_WARRANTY,11,FALSE) -> 0 | L105: =VLOOKUP($C105,TS3L8_ALL,12,FALSE) -> 
C107: Hard Disk Retention per ENCLOSURE | D107: =IF(J109="",HYPERLINK("https://convenzioni.converge.it/docs/ts3_datasheet/DELL_HDD_KYHD.pdf","i")) -> i
E108: =IFERROR(N108,VLOOKUP(C108,TS3L8_ALL,13,FALSE)) ->  | F108: =IF(C108="","",1) ->  | J108: =IFERROR(O108,VLOOKUP(C108,TS3L8_ALL,10,FALSE)) -> 0 | K108: =IFERROR(P108,VLOOKUP(C108,TS3L8_ALL,11,FALSE)) -> 0 | L108: =IFERROR(Q108,VLOOKUP(C108,TS3L8_ALL,12,FALSE)) ->  | N108: =IF(F105+F108=2,VLOOKUP("Hard Disk Retention (60 mesi)",TS3L8_ALL,13,FALSE),VLOOKUP(C108,TS3L8_ALL,13,FALSE)) ->  | O108: =IF(F105+F108=2,VLOOKUP("Hard Disk Retention (60 mesi)",TS3L8_ALL,10,FALSE),VLOOKUP(C108,TS3L8_ALL,10,FALSE)) ->  | P108: =IF(F105+F108=2,VLOOKUP("Hard Disk Retention (60 mesi)",TS3L8_ALL,11,FALSE),VLOOKUP(C108,TS3L8_ALL,11,FALSE)) ->  | Q108: =IF(F105+F108=2,VLOOKUP("Hard Disk Retention (60 mesi)",TS3L8_ALL,12,FALSE),VLOOKUP(C108,TS3L8_ALL,12,FALSE)) -> 

Sheet Lotto8_C6525_2
E1: Convenzione | F1: =SUM(J9:J120)*F5 -> 0
E2: 0.2 | F2: =SUM(K9:K120)*F5 -> 0
E3: Totale | F3: =SUM(F1:F2) -> 0
A5: PowerEdge C6400 + 4 x C6525 Consulta la Guida alla Convenzione --> | D5: =HYPERLINK("https://convenzioni.converge.it/docs/L8GuidaAllaConvenzioneTecnologieServer3.pdf","&") -> & | E5: Quantità Server | H5: =Riepilogo!G8 -> Version 4.0
C8: Base | D8: =HYPERLINK("https://convenzioni.converge.it/docs/ts3_datasheet/dell-emc-poweredge-c6525-spec-sheet.pdf","i") -> i
C9: POWEREDGE C6400-R Enclosure | E9: =IF($F$5>0,"TS3L8-SRV-U","") ->  | F9: =IF($F$5>0,1,"") ->  | J9: =VLOOKUP($C9,TS3L8_ALL,10,FALSE) -> 8877 | L9: =VLOOKUP($C9,TS3L8_ALL,12,FALSE) -> L8N01
C10: PowerEdge C6525 | F10: =IF($F$5>0,4,"") -> 
C12: Chassis Configuration | D12: =HYPERLINK("https://dellservervr.dell.com/poweredge-c6525/","i") -> i
C13: Chassis with up to 24x2.5" Drives | D13: i
C15: Trusted Platform Module (TPM)
C16: Trusted Platform Module 2.0
C18: Processor | D18: =IF(J19="",HYPERLINK("https://www.amd.com/en/products/cpu/amd-epyc-7282","i")) -> i
C19: AMD EPYC 7282 2.80GHz, 16C/32T, 64M Cache (120W) DDR4-3200
C21: Additional Processor
C22: No Additional Processor | E22: =VLOOKUP($C$22,TS3L8_CPU,13,FALSE) ->  | F22: =VLOOKUP($C$22,TS3L8_CPU,7,FALSE) -> 0 | J22: =VLOOKUP($C$22,TS3L8_CPU,10,FALSE) -> 0 | L22: =VLOOKUP($C22,TS3L8_ALL,12,FALSE) -> 
H23: =IF(N25="*",HYPERLINK("https://www.dell.com/support/manuals/it-it/poweredge-c6525/pec6525_ism_pub/general-memory-module-installation-guidelines?guid=guid-80b1c1ad-14b7-4dd6-b122-abb0c82bd3e8&lang=en-us","!!!!! ATTENZIONE !!!!! La configurazione della memoria è supportata, ma non ottimizzata per ottenere le migliori prestazioni. Per maggiori informazioni cliccare quì."),"") -> !!!!! ATTENZIONE !!!!! La configurazione della memoria è supportata, ma non ottimizzata per ottenere le migliori prestazioni. Per maggiori informazioni cliccare quì.
C24: Memory Capacity
C25: 64GB Totali (1 x 64GB DIMM per Nodo) ⚠ | D25: =IF($N$25="*",$M$25,"") -> ⚠ | E25: =IF($F$22=1,VLOOKUP($C$25,TS3L8_RAM2CPU,13,FALSE),VLOOKUP($C$25,TS3L8_RAM1CPU,13,FALSE)) -> TS3L8-RAM64 | F25: =IF($F$22=1,VLOOKUP($C$25,TS3L8_RAM2CPU,7,FALSE),VLOOKUP($C$25,TS3L8_RAM1CPU,7,FALSE)) -> 0 | G25: =IF($N$25="*",$M$25,"") -> ⚠ | J25: =IF($F$22=1,VLOOKUP($C$25,TS3L8_RAM2CPU,10,FALSE),VLOOKUP($C$25,TS3L8_RAM1CPU,10,FALSE)) -> 0 | L25: =IF($F$22=1,VLOOKUP($C$25,TS3L8_RAM2CPU,12,FALSE),VLOOKUP($C$25,TS3L8_RAM1CPU,12,FALSE)) -> L8N04 | M25: ⚠ | N25: =VLOOKUP($C$25,TS3L8_RAM,5,FALSE) -> *
C27: Operating System
C28: No Operating System | E28: =VLOOKUP($C$28,TS3L8_OS,13,FALSE) ->  | F28: =VLOOKUP($C$28,TS3L8_OS,7,FALSE) -> 0 | J28: =VLOOKUP($C$28,TS3L8_OS,10,FALSE) -> 0 | K28: =VLOOKUP($C$28,TS3L8_OS,11,FALSE) -> 0 | L28: =VLOOKUP($C28,TS3L8_ALL,12,FALSE) -> 
E29: =IF(F22=1,VLOOKUP(C28,TS3L8_OS,21,FALSE),"") ->  | F29: =IF(F22=1,VLOOKUP(C28,TS3L8_OS,14,FALSE),0) -> 0 | J29: =IF($F$28+$F$19=2,0,IF($F$19+$F$22+$F$28=2,VLOOKUP($C$28,TS3L8_OS,17,FALSE),VLOOKUP($C$28,TS3L8_OS,17,FALSE))) ->  | K29: =IF($F$28+$F$19=2,0,IF($F$19+$F$22+$F$28=2,VLOOKUP($C$28,TS3L8_OS,18,FALSE),VLOOKUP($C$28,TS3L8_OS,18,FALSE))) -> 0 | L29: =IF($F$28+$F$19=2,0,IF($F$19+$F$22+$F$28=2,VLOOKUP($C$28,TS3L8_OS,20,FALSE),VLOOKUP($C$28,TS3L8_OS,20,FALSE))) -> 0
C31: Raid Controller | D31: =IF(F32="",HYPERLINK("https://convenzioni.converge.it/docs/ts3_datasheet/dellemc-poweredge-raid-controller-h745.pdf","i"),HYPERLINK("https://convenzioni.converge.it/docs/ts3_datasheet/dellemc-poweredge-hba345.pdf","i")) -> i
C32: PERC H745 Controller Card | E32: =VLOOKUP($C32,TS3L8_ALL,13,FALSE) ->  | F32: =VLOOKUP($C32,TS3L8_ALL,7,FALSE) ->  | J32: =VLOOKUP($C32,TS3L8_ALL,10,FALSE) -> 0 | K32: =VLOOKUP($C32,TS3L8_ALL,11,FALSE)*4 -> 0 | L32: =VLOOKUP($C32,TS3L8_ALL,12,FALSE) -> 
C34: Hard Drivers Bays disponibili n° 24 (n° 6 per Nodo) | E34: Totali Enclosure C6400
E35: Usati | F35: Disponibili
E36: =SUM(F45:F59)*4 -> 8 | F36: =24-E36 -> 16
E38: Per singolo Nodo C6525
E39: Usati | F39: Disponibili
E40: =SUM(F45:F59) -> 2 | F40: =6-E40 -> 4
E43: INDICARE LA QUANTITA' PER SINGOLO NODO | H43: Configurazione RAID e/o NOTE
H44: Specificare la configurazione RAID per l'installazione del Sistema Operativo, se richiesto. e/o inserire eventuali note.
C45: =ConfigurationTS3L8!A35 -> 300GB 15K RPM SAS 12Gbps 2.5in Hot-plug | E45: =VLOOKUP($C45,TS3L8_HDD,13,FALSE) -> TS3L8-HDD300GB | J45: =VLOOKUP($C45,TS3L8_HDD,10,FALSE)*F45*4 -> 0 | K45: =VLOOKUP($C45,TS3L8_HDD,11,FALSE) -> 0 | L45: =VLOOKUP($C45,TS3L8_ALL,12,FALSE) -> L8N10
C47: =ConfigurationTS3L8!A37 -> 1.2TB 10K RPM SAS 12Gbps 2.5in Hot-plug | E47: =VLOOKUP($C47,TS3L8_HDD,13,FALSE) -> TS3L8-HDD1TB | J47: =VLOOKUP($C47,TS3L8_HDD,10,FALSE)*F47*4 -> 0 | K47: =VLOOKUP($C47,TS3L8_HDD,11,FALSE) -> 0 | L47: =VLOOKUP($C47,TS3L8_ALL,12,FALSE) -> L8N09
C49: =ConfigurationTS3L8!A39 -> 480GB SSD SAS Read Intensive 12Gbps 2.5in Hot-plug | E49: =VLOOKUP($C49,TS3L8_HDD,13,FALSE) -> TS3L8-RI400GB-U | F49: 0 | J49: =IF(F49>2,(VLOOKUP($C49,TS3L8_HDD,10,FALSE)*(F49*4-2*4)),0) -> 0 | K49: =VLOOKUP($C49,TS3L8_HDD,11,FALSE) -> 0 | L49: =VLOOKUP($C49,TS3L8_ALL,12,FALSE) -> L8N15
C51: =ConfigurationTS3L8!A41 -> 960GB SSD SAS Read Intensive 12Gbps 2.5in Hot-plug | E51: =VLOOKUP($C51,TS3L8_HDD,13,FALSE) -> TS3L8-RI800GB | F51: 2 | J51: =IF(F51>2,(VLOOKUP($C51,TS3L8_HDD,10,FALSE)*(F51*4-2*4)),0) -> 0 | K51: =VLOOKUP($C51,TS3L8_HDD,11,FALSE) -> 0 | L51: =VLOOKUP($C51,TS3L8_ALL,12,FALSE) -> L8N13
C53: =ConfigurationTS3L8!A43 -> 1.92TB SSD SAS Read Intensive 12Gbps 2.5in Hot-plug | E53: =VLOOKUP($C53,TS3L8_HDD,13,FALSE) -> TS3L8-RI1600GB | J53: =VLOOKUP($C53,TS3L8_HDD,10,FALSE)*F53*4 -> 0 | K53: =VLOOKUP($C53,TS3L8_HDD,11,FALSE) -> 0 | L53: =VLOOKUP($C53,TS3L8_ALL,12,FALSE) -> L8N11
C55: =ConfigurationTS3L8!A45 -> 960GB SSD SAS Mixed Use 12Gbps 512e 2.5in Hot-Plug | E55: =VLOOKUP($C55,TS3L8_HDD,13,FALSE) -> TS3L8-MU800GB | J55: =VLOOKUP($C55,TS3L8_HDD,10,FALSE)*F55*4 -> 0 | K55: =VLOOKUP($C55,TS3L8_HDD,11,FALSE) -> 0 | L55: =VLOOKUP($C55,TS3L8_ALL,12,FALSE) -> L8N14
C57: =ConfigurationTS3L8!A47 -> 1.6TB SSD SAS Mixed Use 12Gbps 2.5in Hot-plug | E57: =VLOOKUP($C57,TS3L8_HDD,13,FALSE) -> TS3L8-MU1600GB | J57: =VLOOKUP($C57,TS3L8_HDD,10,FALSE)*F57*4 -> 0 | K57: =VLOOKUP($C57,TS3L8_HDD,11,FALSE) -> 0 | L57: =VLOOKUP($C57,TS3L8_ALL,12,FALSE) -> L8N12
C59: =ConfigurationTS3L8!A49 -> 800GB SSD SAS Write Intensive 12Gbps 2.5in Hot-plug | E59: =VLOOKUP($C59,TS3L8_HDD,13,FALSE) -> TS3L8-WI800GB | J59: =VLOOKUP($C59,TS3L8_HDD,10,FALSE)*F59*4 -> 0 | K59: =VLOOKUP($C59,TS3L8_HDD,11,FALSE)*F59*4 -> 0 | L59: =VLOOKUP($C59,TS3L8_ALL,12,FALSE) -> L8N32
C61: Power Supply
C62: Dual,Hot-plug Power Supply, 2400W,250 Volt
C64: Power Cords | H64: Verificare, per ogni Enclosure, la disponibilità di 2 prese C19 sulle PDU
C65: C19 to C20, 250V, 0.6m Power Cord | F65: 2
C67: Boot Optimized Storage Cards | D67: =IF(J69="",HYPERLINK("https://convenzioni.converge.it/docs/ts3_datasheet/DELL_BOSS.pdf","i")) -> i
E68: =VLOOKUP($C68,TS3L8_ALL,13,FALSE) ->  | F68: =VLOOKUP($C68,TS3L8_ALL,7,FALSE) ->  | J68: =VLOOKUP($C68,TS3L8_ALL,10,FALSE) -> 0 | K68: =VLOOKUP($C68,TS3L8_ALL,11,FALSE)*4 -> 0 | L68: =VLOOKUP($C68,TS3L8_ALL,12,FALSE) -> 
C70: Embedded Systems Management
C71: BMC
C84: Network Mezzanine Cards
C85: Broadcom 5720 Quad Port 1GbE BASE-T Mezzanine Adapter | E85: =VLOOKUP($C85,TS3L8_ALL,13,FALSE) ->  | F85: =VLOOKUP($C85,TS3L8_ALL,7,FALSE) ->  | J85: =VLOOKUP($C85,TS3L8_ALL,10,FALSE) -> 0 | K85: =VLOOKUP($C85,TS3L8_ALL,11,FALSE)*4 -> 0 | L85: =VLOOKUP($C85,TS3L8_ALL,12,FALSE) -> 
C87: PCI Slot 1 Processor 1
C88: Controller Card
C90: PCI Slot 2 Processor 2
E91: =VLOOKUP($C91,TS3L8_ALL,13,FALSE) ->  | F91: =VLOOKUP($C91,TS3L8_ALL,7,FALSE) ->  | J91: =VLOOKUP($C91,TS3L8_ALL,10,FALSE)*4 -> 0 | K91: =VLOOKUP($C91,TS3L8_ALL,11,FALSE)*4 -> 0 | L91: =VLOOKUP($C91,TS3L8_ALL,12,FALSE) -> 
C93: Transceivers per ENCLOSURE
C94: SFP+ SR Optic for SFP+ ports (CONNECTX-5 10Gb OCP) | E94: =IF(K94>0,VLOOKUP($C94,TS3L8_ALL,13,FALSE),"") ->  | J94: 0 | K94: =IF(F94>0,VLOOKUP($C94,TS3L8_ALL,11,FALSE)*(F94),0) -> 0 | L94: =IF(F94>0,VLOOKUP($C94,TS3L8_ALL,12,FALSE),0) -> 0
C95: 25GbE Dual Rate SFP28 SR Optic for SFP28 ports (CONNECTX-5 25Gb OCP) | E95: =IF(K95>0,VLOOKUP($C95,TS3L8_ALL,13,FALSE),"") ->  | J95: 0 | K95: =IF(F95>0,VLOOKUP($C95,TS3L8_ALL,11,FALSE)*(F95),0) -> 0 | L95: =IF(F95>0,VLOOKUP($C95,TS3L8_ALL,12,FALSE),0) -> 0
C96: Mellanox LinkX 100Gb/s Passive Copper DAC 3m | E96: =IF(K96>0,VLOOKUP($C96,TS3L8_ALL,13,FALSE),"") ->  | J96: 0 | K96: =IF(F96>0,VLOOKUP($C96,TS3L8_ALL,11,FALSE)*(F96),0) -> 0 | L96: =IF(F96>0,VLOOKUP($C96,TS3L8_ALL,12,FALSE),0) -> 0
C98: Cavi mini DP to VGA | H98: =IF(F99=4,"Un cavo per singolo Nodo",IF(F99=1,"Un cavo per Enclosure","Nessun cavo video")) -> Un cavo per singolo Nodo
C99: Adapter - Mini DisplayPort to VGA | E99: =IF(K99>0,VLOOKUP($C99,TS3L8_ALL,13,FALSE),"") -> TS3L8-MDPVGA | F99: 4 | J99: 0 | K99: =IF(F99>0,VLOOKUP($C99,TS3L8_ALL,11,FALSE)*(F99),0) -> 140 | L99: =IF(F99>0,VLOOKUP($C99,TS3L8_ALL,12,FALSE),0) -> L8N56
C101: Cavi RJ45 per ENCLOSURE
C102: Cavo “patch” di 3 mt RJ45 certificato per gigabit ethernet | E102: =IF(K102>0,VLOOKUP($C102,TS3L8_ALL,13,FALSE),"") -> TS3L8-RJ453M | F102: 20 | J102: 0 | K102: =IF(F102>0,VLOOKUP($C102,TS3L8_ALL,11,FALSE)*(F102),0) -> 60 | L102: =IF(F102>0,VLOOKUP($C102,TS3L8_ALL,12,FALSE),0) -> L8N30
C104: Warranty per ENCLOSURE | D104: =IF(J106="",HYPERLINK("https://convenzioni.converge.it/docs/ts3_datasheet/TS3warranty.pdf","i")) -> i
C105: Manutenzione in garanzia (36 mesi) | E105: =VLOOKUP($C105,TS3L8_WARRANTY,13,FALSE) ->  | F105: =VLOOKUP($C105,TS3L8_WARRANTY,7,FALSE) ->  | J105: =VLOOKUP($C105,TS3L8_WARRANTY,10,FALSE) -> 0 | K105: =VLOOKUP($C105,TS3L8_WARRANTY,11,FALSE) -> 0 | L105: =VLOOKUP($C105,TS3L8_ALL,12,FALSE) -> 
C107: Hard Disk Retention per ENCLOSURE | D107: =IF(J109="",HYPERLINK("https://convenzioni.converge.it/docs/ts3_datasheet/DELL_HDD_KYHD.pdf","i")) -> i
E108: =IFERROR(N108,VLOOKUP(C108,TS3L8_ALL,13,FALSE)) ->  | F108: =IF(C108="","",1) ->  | J108: =IFERROR(O108,VLOOKUP(C108,TS3L8_ALL,10,FALSE)) -> 0 | K108: =IFERROR(P108,VLOOKUP(C108,TS3L8_ALL,11,FALSE)) -> 0 | L108: =IFERROR(Q108,VLOOKUP(C108,TS3L8_ALL,12,FALSE)) ->  | N108: =IF(F105+F108=2,VLOOKUP("Hard Disk Retention (60 mesi)",TS3L8_ALL,13,FALSE),VLOOKUP(C108,TS3L8_ALL,13,FALSE)) ->  | O108: =IF(F105+F108=2,VLOOKUP("Hard Disk Retention (60 mesi)",TS3L8_ALL,10,FALSE),VLOOKUP(C108,TS3L8_ALL,10,FALSE)) ->  | P108: =IF(F105+F108=2,VLOOKUP("Hard Disk Retention (60 mesi)",TS3L8_ALL,11,FALSE),VLOOKUP(C108,TS3L8_ALL,11,FALSE)) ->  | Q108: =IF(F105+F108=2,VLOOKUP("Hard Disk Retention (60 mesi)",TS3L8_ALL,12,FALSE),VLOOKUP(C108,TS3L8_ALL,12,FALSE)) -> 

Sheet Lotto8_C6525_3
E1: Convenzione | F1: =SUM(J9:J120)*F5 -> 0
E2: 0.2 | F2: =SUM(K9:K120)*F5 -> 0
E3: Totale | F3: =SUM(F1:F2) -> 0
A5: PowerEdge C6400 + 4 x C6525 Consulta la Guida alla Convenzione --> | D5: =HYPERLINK("https://convenzioni.converge.it/docs/L8GuidaAllaConvenzioneTecnologieServer3.pdf","&") -> & | E5: Quantità Server | H5: =Riepilogo!G8 -> Version 4.0
C8: Base | D8: =HYPERLINK("https://convenzioni.converge.it/docs/ts3_datasheet/dell-emc-poweredge-c6525-spec-sheet.pdf","i") -> i
C9: POWEREDGE C6400-R Enclosure | E9: =IF($F$5>0,"TS3L8-SRV-U","") ->  | F9: =IF($F$5>0,1,"") ->  | J9: =VLOOKUP($C9,TS3L8_ALL,10,FALSE) -> 8877 | L9: =VLOOKUP($C9,TS3L8_ALL,12,FALSE) -> L8N01
C10: PowerEdge C6525 | F10: =IF($F$5>0,4,"") -> 
C12: Chassis Configuration | D12: =HYPERLINK("https://dellservervr.dell.com/poweredge-c6525/","i") -> i
C13: Chassis with up to 24x2.5" Drives | D13: i
C15: Trusted Platform Module (TPM)
C16: Trusted Platform Module 2.0
C18: Processor | D18: =IF(J19="",HYPERLINK("https://www.amd.com/en/products/cpu/amd-epyc-7282","i")) -> i
C19: AMD EPYC 7282 2.80GHz, 16C/32T, 64M Cache (120W) DDR4-3200
C21: Additional Processor
C22: No Additional Processor | E22: =VLOOKUP($C$22,TS3L8_CPU,13,FALSE) ->  | F22: =VLOOKUP($C$22,TS3L8_CPU,7,FALSE) -> 0 | J22: =VLOOKUP($C$22,TS3L8_CPU,10,FALSE) -> 0 | L22: =VLOOKUP($C22,TS3L8_ALL,12,FALSE) -> 
H23: =IF(N25="*",HYPERLINK("https://www.dell.com/support/manuals/it-it/poweredge-c6525/pec6525_ism_pub/general-memory-module-installation-guidelines?guid=guid-80b1c1ad-14b7-4dd6-b122-abb0c82bd3e8&lang=en-us","!!!!! ATTENZIONE !!!!! La configurazione della memoria è supportata, ma non ottimizzata per ottenere le migliori prestazioni. Per maggiori informazioni cliccare quì."),"") -> !!!!! ATTENZIONE !!!!! La configurazione della memoria è supportata, ma non ottimizzata per ottenere le migliori prestazioni. Per maggiori informazioni cliccare quì.
C24: Memory Capacity
C25: 64GB Totali (1 x 64GB DIMM per Nodo) ⚠ | D25: =IF($N$25="*",$M$25,"") -> ⚠ | E25: =IF($F$22=1,VLOOKUP($C$25,TS3L8_RAM2CPU,13,FALSE),VLOOKUP($C$25,TS3L8_RAM1CPU,13,FALSE)) -> TS3L8-RAM64 | F25: =IF($F$22=1,VLOOKUP($C$25,TS3L8_RAM2CPU,7,FALSE),VLOOKUP($C$25,TS3L8_RAM1CPU,7,FALSE)) -> 0 | G25: =IF($N$25="*",$M$25,"") -> ⚠ | J25: =IF($F$22=1,VLOOKUP($C$25,TS3L8_RAM2CPU,10,FALSE),VLOOKUP($C$25,TS3L8_RAM1CPU,10,FALSE)) -> 0 | L25: =IF($F$22=1,VLOOKUP($C$25,TS3L8_RAM2CPU,12,FALSE),VLOOKUP($C$25,TS3L8_RAM1CPU,12,FALSE)) -> L8N04 | M25: ⚠ | N25: =VLOOKUP($C$25,TS3L8_RAM,5,FALSE) -> *
C27: Operating System
C28: No Operating System | E28: =VLOOKUP($C$28,TS3L8_OS,13,FALSE) ->  | F28: =VLOOKUP($C$28,TS3L8_OS,7,FALSE) -> 0 | J28: =VLOOKUP($C$28,TS3L8_OS,10,FALSE) -> 0 | K28: =VLOOKUP($C$28,TS3L8_OS,11,FALSE) -> 0 | L28: =VLOOKUP($C28,TS3L8_ALL,12,FALSE) -> 
E29: =IF(F22=1,VLOOKUP(C28,TS3L8_OS,21,FALSE),"") ->  | F29: =IF(F22=1,VLOOKUP(C28,TS3L8_OS,14,FALSE),0) -> 0 | J29: =IF($F$28+$F$19=2,0,IF($F$19+$F$22+$F$28=2,VLOOKUP($C$28,TS3L8_OS,17,FALSE),VLOOKUP($C$28,TS3L8_OS,17,FALSE))) ->  | K29: =IF($F$28+$F$19=2,0,IF($F$19+$F$22+$F$28=2,VLOOKUP($C$28,TS3L8_OS,18,FALSE),VLOOKUP($C$28,TS3L8_OS,18,FALSE))) -> 0 | L29: =IF($F$28+$F$19=2,0,IF($F$19+$F$22+$F$28=2,VLOOKUP($C$28,TS3L8_OS,20,FALSE),VLOOKUP($C$28,TS3L8_OS,20,FALSE))) -> 0
C31: Raid Controller | D31: =IF(F32="",HYPERLINK("https://convenzioni.converge.it/docs/ts3_datasheet/dellemc-poweredge-raid-controller-h745.pdf","i"),HYPERLINK("https://convenzioni.converge.it/docs/ts3_datasheet/dellemc-poweredge-hba345.pdf","i")) -> i
C32: PERC H745 Controller Card | E32: =VLOOKUP($C32,TS3L8_ALL,13,FALSE) ->  | F32: =VLOOKUP($C32,TS3L8_ALL,7,FALSE) ->  | J32: =VLOOKUP($C32,TS3L8_ALL,10,FALSE) -> 0 | K32: =VLOOKUP($C32,TS3L8_ALL,11,FALSE)*4 -> 0 | L32: =VLOOKUP($C32,TS3L8_ALL,12,FALSE) -> 
C34: Hard Drivers Bays disponibili n° 24 (n° 6 per Nodo) | E34: Totali Enclosure C6400
E35: Usati | F35: Disponibili
E36: =SUM(F45:F59)*4 -> 8 | F36: =24-E36 -> 16
E38: Per singolo Nodo C6525
E39: Usati | F39: Disponibili
E40: =SUM(F45:F59) -> 2 | F40: =6-E40 -> 4
E43: INDICARE LA QUANTITA' PER SINGOLO NODO | H43: Configurazione RAID e/o NOTE
H44: Specificare la configurazione RAID per l'installazione del Sistema Operativo, se richiesto. e/o inserire eventuali note.
C45: =ConfigurationTS3L8!A35 -> 300GB 15K RPM SAS 12Gbps 2.5in Hot-plug | E45: =VLOOKUP($C45,TS3L8_HDD,13,FALSE) -> TS3L8-HDD300GB | J45: =VLOOKUP($C45,TS3L8_HDD,10,FALSE)*F45*4 -> 0 | K45: =VLOOKUP($C45,TS3L8_HDD,11,FALSE) -> 0 | L45: =VLOOKUP($C45,TS3L8_ALL,12,FALSE) -> L8N10
C47: =ConfigurationTS3L8!A37 -> 1.2TB 10K RPM SAS 12Gbps 2.5in Hot-plug | E47: =VLOOKUP($C47,TS3L8_HDD,13,FALSE) -> TS3L8-HDD1TB | J47: =VLOOKUP($C47,TS3L8_HDD,10,FALSE)*F47*4 -> 0 | K47: =VLOOKUP($C47,TS3L8_HDD,11,FALSE) -> 0 | L47: =VLOOKUP($C47,TS3L8_ALL,12,FALSE) -> L8N09
C49: =ConfigurationTS3L8!A39 -> 480GB SSD SAS Read Intensive 12Gbps 2.5in Hot-plug | E49: =VLOOKUP($C49,TS3L8_HDD,13,FALSE) -> TS3L8-RI400GB-U | F49: 0 | J49: =IF(F49>2,(VLOOKUP($C49,TS3L8_HDD,10,FALSE)*(F49*4-2*4)),0) -> 0 | K49: =VLOOKUP($C49,TS3L8_HDD,11,FALSE) -> 0 | L49: =VLOOKUP($C49,TS3L8_ALL,12,FALSE) -> L8N15
C51: =ConfigurationTS3L8!A41 -> 960GB SSD SAS Read Intensive 12Gbps 2.5in Hot-plug | E51: =VLOOKUP($C51,TS3L8_HDD,13,FALSE) -> TS3L8-RI800GB | F51: 2 | J51: =IF(F51>2,(VLOOKUP($C51,TS3L8_HDD,10,FALSE)*(F51*4-2*4)),0) -> 0 | K51: =VLOOKUP($C51,TS3L8_HDD,11,FALSE) -> 0 | L51: =VLOOKUP($C51,TS3L8_ALL,12,FALSE) -> L8N13
C53: =ConfigurationTS3L8!A43 -> 1.92TB SSD SAS Read Intensive 12Gbps 2.5in Hot-plug | E53: =VLOOKUP($C53,TS3L8_HDD,13,FALSE) -> TS3L8-RI1600GB | J53: =VLOOKUP($C53,TS3L8_HDD,10,FALSE)*F53*4 -> 0 | K53: =VLOOKUP($C53,TS3L8_HDD,11,FALSE) -> 0 | L53: =VLOOKUP($C53,TS3L8_ALL,12,FALSE) -> L8N11
C55: =ConfigurationTS3L8!A45 -> 960GB SSD SAS Mixed Use 12Gbps 512e 2.5in Hot-Plug | E55: =VLOOKUP($C55,TS3L8_HDD,13,FALSE) -> TS3L8-MU800GB | J55: =VLOOKUP($C55,TS3L8_HDD,10,FALSE)*F55*4 -> 0 | K55: =VLOOKUP($C55,TS3L8_HDD,11,FALSE) -> 0 | L55: =VLOOKUP($C55,TS3L8_ALL,12,FALSE) -> L8N14
C57: =ConfigurationTS3L8!A47 -> 1.6TB SSD SAS Mixed Use 12Gbps 2.5in Hot-plug | E57: =VLOOKUP($C57,TS3L8_HDD,13,FALSE) -> TS3L8-MU1600GB | J57: =VLOOKUP($C57,TS3L8_HDD,10,FALSE)*F57*4 -> 0 | K57: =VLOOKUP($C57,TS3L8_HDD,11,FALSE) -> 0 | L57: =VLOOKUP($C57,TS3L8_ALL,12,FALSE) -> L8N12
C59: =ConfigurationTS3L8!A49 -> 800GB SSD SAS Write Intensive 12Gbps 2.5in Hot-plug | E59: =VLOOKUP($C59,TS3L8_HDD,13,FALSE) -> TS3L8-WI800GB | J59: =VLOOKUP($C59,TS3L8_HDD,10,FALSE)*F59*4 -> 0 | K59: =VLOOKUP($C59,TS3L8_HDD,11,FALSE)*F59*4 -> 0 | L59: =VLOOKUP($C59,TS3L8_ALL,12,FALSE) -> L8N32
C61: Power Supply
C62: Dual,Hot-plug Power Supply, 2400W,250 Volt
C64: Power Cords | H64: Verificare, per ogni Enclosure, la disponibilità di 2 prese C19 sulle PDU
C65: C19 to C20, 250V, 0.6m Power Cord | F65: 2
C67: Boot Optimized Storage Cards | D67: =IF(J69="",HYPERLINK("https://convenzioni.converge.it/docs/ts3_datasheet/DELL_BOSS.pdf","i")) -> i
E68: =VLOOKUP($C68,TS3L8_ALL,13,FALSE) ->  | F68: =VLOOKUP($C68,TS3L8_ALL,7,FALSE) ->  | J68: =VLOOKUP($C68,TS3L8_ALL,10,FALSE) -> 0 | K68: =VLOOKUP($C68,TS3L8_ALL,11,FALSE)*4 -> 0 | L68: =VLOOKUP($C68,TS3L8_ALL,12,FALSE) -> 
C70: Embedded Systems Management
C71: BMC
C84: Network Mezzanine Cards
C85: Broadcom 5720 Quad Port 1GbE BASE-T Mezzanine Adapter | E85: =VLOOKUP($C85,TS3L8_ALL,13,FALSE) ->  | F85: =VLOOKUP($C85,TS3L8_ALL,7,FALSE) ->  | J85: =VLOOKUP($C85,TS3L8_ALL,10,FALSE) -> 0 | K85: =VLOOKUP($C85,TS3L8_ALL,11,FALSE)*4 -> 0 | L85: =VLOOKUP($C85,TS3L8_ALL,12,FALSE) -> 
C87: PCI Slot 1 Processor 1
C88: Controller Card
C90: PCI Slot 2 Processor 2
E91: =VLOOKUP($C91,TS3L8_ALL,13,FALSE) ->  | F91: =VLOOKUP($C91,TS3L8_ALL,7,FALSE) ->  | J91: =VLOOKUP($C91,TS3L8_ALL,10,FALSE)*4 -> 0 | K91: =VLOOKUP($C91,TS3L8_ALL,11,FALSE)*4 -> 0 | L91: =VLOOKUP($C91,TS3L8_ALL,12,FALSE) -> 
C93: Transceivers per ENCLOSURE
C94: SFP+ SR Optic for SFP+ ports (CONNECTX-5 10Gb OCP) | E94: =IF(K94>0,VLOOKUP($C94,TS3L8_ALL,13,FALSE),"") ->  | J94: 0 | K94: =IF(F94>0,VLOOKUP($C94,TS3L8_ALL,11,FALSE)*(F94),0) -> 0 | L94: =IF(F94>0,VLOOKUP($C94,TS3L8_ALL,12,FALSE),0) -> 0
C95: 25GbE Dual Rate SFP28 SR Optic for SFP28 ports (CONNECTX-5 25Gb OCP) | E95: =IF(K95>0,VLOOKUP($C95,TS3L8_ALL,13,FALSE),"") ->  | J95: 0 | K95: =IF(F95>0,VLOOKUP($C95,TS3L8_ALL,11,FALSE)*(F95),0) -> 0 | L95: =IF(F95>0,VLOOKUP($C95,TS3L8_ALL,12,FALSE),0) -> 0
C96: Mellanox LinkX 100Gb/s Passive Copper DAC 3m | E96: =IF(K96>0,VLOOKUP($C96,TS3L8_ALL,13,FALSE),"") ->  | J96: 0 | K96: =IF(F96>0,VLOOKUP($C96,TS3L8_ALL,11,FALSE)*(F96),0) -> 0 | L96: =IF(F96>0,VLOOKUP($C96,TS3L8_ALL,12,FALSE),0) -> 0
C98: Cavi mini DP to VGA | H98: =IF(F99=4,"Un cavo per singolo Nodo",IF(F99=1,"Un cavo per Enclosure","Nessun cavo video")) -> Un cavo per singolo Nodo
C99: Adapter - Mini DisplayPort to VGA | E99: =IF(K99>0,VLOOKUP($C99,TS3L8_ALL,13,FALSE),"") -> TS3L8-MDPVGA | F99: 4 | J99: 0 | K99: =IF(F99>0,VLOOKUP($C99,TS3L8_ALL,11,FALSE)*(F99),0) -> 140 | L99: =IF(F99>0,VLOOKUP($C99,TS3L8_ALL,12,FALSE),0) -> L8N56
C101: Cavi RJ45 per ENCLOSURE
C102: Cavo “patch” di 3 mt RJ45 certificato per gigabit ethernet | E102: =IF(K102>0,VLOOKUP($C102,TS3L8_ALL,13,FALSE),"") -> TS3L8-RJ453M | F102: 20 | J102: 0 | K102: =IF(F102>0,VLOOKUP($C102,TS3L8_ALL,11,FALSE)*(F102),0) -> 60 | L102: =IF(F102>0,VLOOKUP($C102,TS3L8_ALL,12,FALSE),0) -> L8N30
C104: Warranty per ENCLOSURE | D104: =IF(J106="",HYPERLINK("https://convenzioni.converge.it/docs/ts3_datasheet/TS3warranty.pdf","i")) -> i
C105: Manutenzione in garanzia (36 mesi) | E105: =VLOOKUP($C105,TS3L8_WARRANTY,13,FALSE) ->  | F105: =VLOOKUP($C105,TS3L8_WARRANTY,7,FALSE) ->  | J105: =VLOOKUP($C105,TS3L8_WARRANTY,10,FALSE) -> 0 | K105: =VLOOKUP($C105,TS3L8_WARRANTY,11,FALSE) -> 0 | L105: =VLOOKUP($C105,TS3L8_ALL,12,FALSE) -> 
C107: Hard Disk Retention per ENCLOSURE | D107: =IF(J109="",HYPERLINK("https://convenzioni.converge.it/docs/ts3_datasheet/DELL_HDD_KYHD.pdf","i")) -> i
E108: =IFERROR(N108,VLOOKUP(C108,TS3L8_ALL,13,FALSE)) ->  | F108: =IF(C108="","",1) ->  | J108: =IFERROR(O108,VLOOKUP(C108,TS3L8_ALL,10,FALSE)) -> 0 | K108: =IFERROR(P108,VLOOKUP(C108,TS3L8_ALL,11,FALSE)) -> 0 | L108: =IFERROR(Q108,VLOOKUP(C108,TS3L8_ALL,12,FALSE)) ->  | N108: =IF(F105+F108=2,VLOOKUP("Hard Disk Retention (60 mesi)",TS3L8_ALL,13,FALSE),VLOOKUP(C108,TS3L8_ALL,13,FALSE)) ->  | O108: =IF(F105+F108=2,VLOOKUP("Hard Disk Retention (60 mesi)",TS3L8_ALL,10,FALSE),VLOOKUP(C108,TS3L8_ALL,10,FALSE)) ->  | P108: =IF(F105+F108=2,VLOOKUP("Hard Disk Retention (60 mesi)",TS3L8_ALL,11,FALSE),VLOOKUP(C108,TS3L8_ALL,11,FALSE)) ->  | Q108: =IF(F105+F108=2,VLOOKUP("Hard Disk Retention (60 mesi)",TS3L8_ALL,12,FALSE),VLOOKUP(C108,TS3L8_ALL,12,FALSE)) -> 

Sheet Altre_Opzioni
E1: Convenzione | F1: =SUM(J9:J148) -> 0
E2: 0.2 | F2: =SUM(K9:K148) -> 0
E3: Totale | F3: =SUM(F1:F2) -> 0
C5: Opzioni
C8: Opzione Rack APC con PDU Monofase | D8: =HYPERLINK("https://convenzioni.converge.it/docs/ts3_datasheet/RACK_APC_MONO.pdf","i") -> i
C9: Armadio Rack 42U 600x1200, 2 x PDU Monofase 2G, ZeroU, 32A, 230V, (36) C13 & (6) C19 | E9: =VLOOKUP($C9,TS3L8_ALL,13,FALSE) -> TS3L8-RACKM32A | J9: =VLOOKUP($C9,TS3L8_ALL,10,FALSE)*F9 -> 0 | K9: =VLOOKUP($C9,TS3L8_ALL,11,FALSE)*F9 -> 0 | L9: =VLOOKUP($C9,TS3L8_ALL,12,FALSE) -> L8N45
C11: Opzione Rack APC con PDU Trifase | D11: =HYPERLINK("https://convenzioni.converge.it/docs/ts3_datasheet/RACK_APC_3PH.pdf","i") -> i
C12: Armadio Rack 42U 600x1200, 2 x PDU Trifase 2G, ZeroU, 22.0kW(32A) 17.3kW(24A), 230V, (30) C13 & (12) C19 | E12: =VLOOKUP($C12,TS3L8_ALL,13,FALSE) -> TS3L8-RACKT32A | J12: =VLOOKUP($C12,TS3L8_ALL,10,FALSE)*F12 -> 0 | K12: =VLOOKUP($C12,TS3L8_ALL,11,FALSE)*F12 -> 0 | L12: =VLOOKUP($C12,TS3L8_ALL,12,FALSE) -> L8N46
C15: OpzRack | D15: =HYPERLINK("https://convenzioni.converge.it/docs/ts3_datasheet/TS3Rack.pdf","i") -> i
C16: Rack 42U con portata 1000 KG e 4 ruote + coppia PDU 12 prese Shuko bipasso ITA | E16: =VLOOKUP($C16,TS3L8_ALL,13,FALSE) -> TS3L8-RACK | J16: =VLOOKUP($C16,TS3L8_ALL,10,FALSE)*F16 -> 0 | K16: =VLOOKUP($C16,TS3L8_ALL,11,FALSE) -> 0 | L16: =VLOOKUP($C16,TS3L8_ALL,12,FALSE) -> L8N26
C19: Prodotti VMware
C20: VMware vSphere 7 Standard Acceleration Kit OEM for 6 CPU, 3YR License and Maintenance | E20: =VLOOKUP($C20,TS3L8_ALL,13,FALSE) -> TS3L8-VS7STD6AK | J20: =VLOOKUP($C20,TS3L8_ALL,10,FALSE)*F20 -> 0 | K20: =VLOOKUP($C20,TS3L8_ALL,11,FALSE)*F20 -> 0 | L20: =VLOOKUP($C20,TS3L8_ALL,12,FALSE) -> L8N33
C21: VMware vSphere 7 Standard OEM, 1 CPU (max 32 cores/CPU socket), 3YR License and Maintenance | E21: TS3L8-VS7STD | J21: 0 | K21: 0 | L21: L8N34
C22: VMware vSphere 7 Enterprise Plus Acceleration Kit OEM for 6 CPU, 3YR License and Maintenance | E22: TS3L8-VS7EPL6AK | J22: 0 | K22: 0 | L22: L8N35
C23: VMware vSphere 7 Enterprise Plus OEM, 1 CPU (max 32 cores/CPU socket), 3YR License and Maintenance | E23: TS3L8-VS7EPL | J23: 0 | K23: 0 | L23: L8N36
C24: VMware vCenter 7 Standard OEM ,Per Instance,3YR License and Maintenance | E24: TS3L8-VCS7STD | J24: 0 | K24: 0 | L24: L8N37
C25: VMware vSAN 7 Enterprise OEM, 1 CPU (max 32 cores/CPU socket), 3YR License and Maintenance | E25: TS3L8-ST7ENT | J25: 0 | K25: 0 | L25: L8N38
C26: VMware Horizon 8 Advanced OEM,10 Pack,CCU, 3YR License and Maintenance | E26: TS3L8-HZ8ADC10 | J26: 0 | K26: 0 | L26: L8N39
C27: VMware Horizon 8 Enterprise OEM,10 Pack,CCU, 3YR License and Maintenance | E27: TS3L8-HZ8ENC10 | J27: 0 | K27: 0 | L27: L8N40
C28: VMware Horizon Advanced OEM, 10 Pack, Named User, 3YR License and Maintenance | E28: TS3L8-HZ8ADN10 | J28: 0 | K28: 0 | L28: L8N41
C29: VMware Horizon 8 Enterprise OEM,10 Pack, Named User, 3YR License and Maintenance | E29: TS3L8-HZ8ENN10 | J29: 0 | K29: 0 | L29: L8N42
C32: Enclosure Dischi SAS 3.5" (No disk) | D32: =HYPERLINK("https://convenzioni.converge.it/docs/ts3_datasheet/MD1400_MD1420.pdf","i") -> i
C33: Enclosure SAS 12 Slot 3.5", 3YR ProSupport and 4hr Mission Critical | E33: =VLOOKUP($C33,TS3L8_ALL,13,FALSE) -> TS3L8-Encl13Y4H | J33: =VLOOKUP($C33,TS3L8_ALL,10,FALSE)*F33 -> 0 | K33: =VLOOKUP($C33,TS3L8_ALL,11,FALSE)*F33 -> 0 | L33: =VLOOKUP($C33,TS3L8_ALL,12,FALSE) -> L8N43
C34: Enclosure SAS 12 Slot 3.5", 5YR ProSupport and 4hr Mission Critical | E34: =VLOOKUP($C34,TS3L8_ALL,13,FALSE) -> TS3L8-Encl25Y4H | J34: =VLOOKUP($C34,TS3L8_ALL,10,FALSE)*F34 -> 0 | K34: =VLOOKUP($C34,TS3L8_ALL,11,FALSE)*F34 -> 0 | L34: =VLOOKUP($C34,TS3L8_ALL,12,FALSE) -> L8N44
C35: Dischi per Enclosure 3.5"
C36: HDD 16TB SAS 12Gbps 7k 3.5in Hot-Plug per Enclosure 3.5" | E36: =VLOOKUP($C36,TS3L8_ALL,13,FALSE) -> TS3L8-ED16TB | J36: =VLOOKUP($C36,TS3L8_ALL,10,FALSE)*F36 -> 0 | K36: =VLOOKUP($C36,TS3L8_ALL,11,FALSE)*F36 -> 0 | L36: =VLOOKUP($C36,TS3L8_ALL,12,FALSE) -> L8N50
C37: HDD 12TB SAS 12Gbps 7k 3.5in Hot-Plug per Enclosure 3.5" | E37: =VLOOKUP($C37,TS3L8_ALL,13,FALSE) -> TS3L8-ED12TB | J37: =VLOOKUP($C37,TS3L8_ALL,10,FALSE)*F37 -> 0 | K37: =VLOOKUP($C37,TS3L8_ALL,11,FALSE)*F37 -> 0 | L37: =VLOOKUP($C37,TS3L8_ALL,12,FALSE) -> L8N51
C38: HDD 8TB SAS 12Gbps 7k 3.5in Hot-Plug per Enclosure 3.5" | E38: =VLOOKUP($C38,TS3L8_ALL,13,FALSE) -> TS3L8-ED08TB | J38: =VLOOKUP($C38,TS3L8_ALL,10,FALSE)*F38 -> 0 | K38: =VLOOKUP($C38,TS3L8_ALL,11,FALSE)*F38 -> 0 | L38: =VLOOKUP($C38,TS3L8_ALL,12,FALSE) -> L8N52
C40: OpzUps (3000VA) | D40: =HYPERLINK("https://convenzioni.converge.it/docs/ts3_datasheet/RPMM_UPS.pdf","i") -> i
C41: BUNDLE PMEUPS3RTSER Comprensivo di UPS e scheda SNMP + Kit Rack incluso | E41: =VLOOKUP($C41,TS3L8_ALL,13,FALSE) -> TS3L8-UPS | J41: =VLOOKUP($C41,TS3L8_ALL,10,FALSE)*F41 -> 0 | K41: =VLOOKUP($C41,TS3L8_ALL,11,FALSE) -> 0 | L41: =VLOOKUP($C41,TS3L8_ALL,12,FALSE) -> L8N16
C44: OpzGUI | D44: =HYPERLINK("https://convenzioni.converge.it/docs/ts3_datasheet/KVM_datasheet_ITA.pdf","i") -> i
C45: Unità KVM - monitor 17", cavo combi PS2 e USB da 1,8mt, tastiera ita, touch pad | E45: =VLOOKUP($C45,TS3L8_ALL,13,FALSE) -> TS3L8-GUI | J45: =VLOOKUP($C45,TS3L8_ALL,10,FALSE)*F45 -> 0 | K45: =VLOOKUP($C45,TS3L8_ALL,11,FALSE) -> 0 | L45: =VLOOKUP($C45,TS3L8_ALL,12,FALSE) -> L8N17
C48: OpzKVM | D48: =HYPERLINK("https://convenzioni.converge.it/docs/ts3_datasheet/T9816NIP.pdf","i") -> i
C49: Switch 16 porte IP con relativi cavi combi PS/2 e USB inclusi | E49: =VLOOKUP($C49,TS3L8_ALL,13,FALSE) -> TS3L8-SWKVM | J49: =VLOOKUP($C49,TS3L8_ALL,10,FALSE)*F49 -> 0 | K49: =VLOOKUP($C49,TS3L8_ALL,11,FALSE) -> 0 | L49: =VLOOKUP($C49,TS3L8_ALL,12,FALSE) -> L8N18
C51: =IF(Riepilogo!P41>0,"OpzDeviceCal","") -> 
C52: =IF(Riepilogo!P41>0,"1-pack of Windows Server 2019/2016 Device CALs (STD or DC)","") ->  | E52: =VLOOKUP($C52,TS3L8_ALL,13,FALSE) ->  | J52: =VLOOKUP($C52,TS3L8_ALL,10,FALSE)*F52 -> 0 | K52: =VLOOKUP($C52,TS3L8_ALL,11,FALSE) -> 0 | L52: =VLOOKUP($C52,TS3L8_ALL,12,FALSE) -> 
C54: =IF(Riepilogo!P41>0,"OpzUserCal","") -> 
C55: =IF(Riepilogo!P41>0,"1-pack of Windows Server 2019/2016 User CALs (STD or DC)","") ->  | E55: =VLOOKUP($C55,TS3L8_ALL,13,FALSE) ->  | J55: =VLOOKUP($C55,TS3L8_ALL,10,FALSE)*F55 -> 0 | K55: =VLOOKUP($C55,TS3L8_ALL,11,FALSE) -> 0 | L55: =VLOOKUP($C55,TS3L8_ALL,12,FALSE) -> 

Sheet ConfigurationTS3L8 (hidden)
A2: POWEREDGE C6400-R Enclosure | D2: =VLOOKUP($L$2,Tabella_prezzi!$A$1:$J$223,8,FALSE) -> DELL PowerEdge C6400 con 4 x DELL PowerEdge C6525 | G2: 1 | H2: =VLOOKUP(L2,Tabella_prezzi!$A$1:$J$223,3,FALSE) -> Server rackable high-density | I2: =VLOOKUP(L2,Tabella_prezzi!$A$1:$J$223,9,FALSE) -> L8N01-ServerC6525 | J2: =VLOOKUP(L2,Tabella_prezzi!$A$1:$J$223,4,FALSE) -> 8877 | L2: L8N01 | M2: =VLOOKUP(L2,Tabella_prezzi!$A$1:$J$223,6,FALSE) -> TS3L8-SRV-U
A4: TS3L8_CPU
A5: No Additional Processor | G5: 0 | I5: ="" ->  | L5: ="" ->  | M5: ="" -> 
A6: AMD EPYC 7282 2.80GHz, 16C/32T, 64M Cache (120W) DDR4-3200 | D6: =VLOOKUP($L$6,Tabella_prezzi!$A$1:$J$223,8,FALSE) -> Processore AMD EPYC 7282 16C | G6: 1 | H6: =VLOOKUP($L$6,Tabella_prezzi!$A$1:$J$223,3,FALSE) -> Kit n. 1 Processore aggiuntivo | I6: =VLOOKUP($L$6,Tabella_prezzi!$A$1:$J$223,9,FALSE) -> L8N02-OpzCPU | J6: =VLOOKUP($L$6,Tabella_prezzi!$A$1:$J$223,4,FALSE)*4 -> 4628 | L6: L8N02 | M6: =VLOOKUP($L$6,Tabella_prezzi!$A$1:$J$223,6,FALSE) -> TS3L8-CPU
A8: TS3L8_RAM (1CPU)
A9: 64GB Totali (1 x 64GB DIMM per Nodo) ⚠ | B9: Memory Capacity | D9: 64GB RDIMM, 3200MT/s, Dual Rank | E9: * | F9: AA799110 | H9: =VLOOKUP(L9,Tabella_prezzi!$A$1:$J$223,3,FALSE) -> OpzRAM64GB | I9: =VLOOKUP(L9,Tabella_prezzi!$A$1:$J$223,9,FALSE) -> L8N04-OpzRAM64GB | J9: =VLOOKUP(L9,Tabella_prezzi!$A$1:$J$223,4,FALSE)*G9*4 -> 0 | L9: L8N04 | M9: =VLOOKUP(L9,Tabella_prezzi!$A$1:$J$223,6,FALSE) -> TS3L8-RAM64
A10: 128GB Totali (2 x 64GB DIMM per Nodo) ⚠ | B10: Memory Capacity | D10: 64GB RDIMM, 3200MT/s, Dual Rank | E10: * | F10: AA799110 | G10: 1 | H10: =VLOOKUP(L10,Tabella_prezzi!$A$1:$J$223,3,FALSE) -> OpzRAM64GB | I10: =VLOOKUP(L10,Tabella_prezzi!$A$1:$J$223,9,FALSE) -> L8N04-OpzRAM64GB | J10: =VLOOKUP(L10,Tabella_prezzi!$A$1:$J$223,4,FALSE)*G10*4 -> 1600 | L10: L8N04 | M10: =VLOOKUP(L10,Tabella_prezzi!$A$1:$J$223,6,FALSE) -> TS3L8-RAM64
A11: 256GB Totali (4 x 64GB DIMM per Nodo) | B11: Memory Capacity | D11: 64GB RDIMM, 3200MT/s, Dual Rank | F11: AA799110 | G11: 3 | H11: =VLOOKUP(L11,Tabella_prezzi!$A$1:$J$223,3,FALSE) -> OpzRAM64GB | I11: =VLOOKUP(L11,Tabella_prezzi!$A$1:$J$223,9,FALSE) -> L8N04-OpzRAM64GB | J11: =VLOOKUP(L11,Tabella_prezzi!$A$1:$J$223,4,FALSE)*G11*4 -> 4800 | L11: L8N04 | M11: =VLOOKUP(L11,Tabella_prezzi!$A$1:$J$223,6,FALSE) -> TS3L8-RAM64
A12: 512GB Totali (8 x 64GB DIMM per Nodo) | B12: Memory Capacity | D12: 64GB RDIMM, 3200MT/s, Dual Rank | F12: AA799110 | G12: 7 | H12: =VLOOKUP(L12,Tabella_prezzi!$A$1:$J$223,3,FALSE) -> OpzRAM64GB | I12: =VLOOKUP(L12,Tabella_prezzi!$A$1:$J$223,9,FALSE) -> L8N04-OpzRAM64GB | J12: =VLOOKUP(L12,Tabella_prezzi!$A$1:$J$223,4,FALSE)*G12*4 -> 11200 | L12: L8N04 | M12: =VLOOKUP(L12,Tabella_prezzi!$A$1:$J$223,6,FALSE) -> TS3L8-RAM64
A14: TS3L8_RAM (2CPU)
A15: 64GB Totali (1 x 64GB DIMM per Nodo) ⚠ | B15: Memory Capacity | D15: 64GB RDIMM, 3200MT/s, Dual Rank | E15: * | F15: AA799110 | G15: 1 | H15: =VLOOKUP(L15,Tabella_prezzi!$A$1:$J$223,3,FALSE) -> OpzRAM64GB | I15: =VLOOKUP(L15,Tabella_prezzi!$A$1:$J$223,9,FALSE) -> L8N04-OpzRAM64GB | J15: =VLOOKUP(L15,Tabella_prezzi!$A$1:$J$223,4,FALSE)*G15*4 -> 1600 | L15: L8N04 | M15: =VLOOKUP(L15,Tabella_prezzi!$A$1:$J$223,6,FALSE) -> TS3L8-RAM64
A16: 128GB Totali (2 x 64GB DIMM per Nodo) ⚠ | B16: Memory Capacity | D16: 64GB RDIMM, 3200MT/s, Dual Rank | E16: * | F16: AA799110 | G16: 1 | H16: =VLOOKUP(L16,Tabella_prezzi!$A$1:$J$223,3,FALSE) -> OpzRAM64GB | I16: =VLOOKUP(L16,Tabella_prezzi!$A$1:$J$223,9,FALSE) -> L8N04-OpzRAM64GB | J16: =VLOOKUP(L16,Tabella_prezzi!$A$1:$J$223,4,FALSE)*G16*4 -> 1600 | L16: L8N04 | M16: =VLOOKUP(L16,Tabella_prezzi!$A$1:$J$223,6,FALSE) -> TS3L8-RAM64
A17: 256GB Totali (4 x 64GB DIMM per Nodo) ⚠ | B17: Memory Capacity | D17: 64GB RDIMM, 3200MT/s, Dual Rank | E17: * | F17: AA799110 | G17: 3 | H17: =VLOOKUP(L17,Tabella_prezzi!$A$1:$J$223,3,FALSE) -> OpzRAM64GB | I17: =VLOOKUP(L17,Tabella_prezzi!$A$1:$J$223,9,FALSE) -> L8N04-OpzRAM64GB | J17: =VLOOKUP(L17,Tabella_prezzi!$A$1:$J$223,4,FALSE)*G17*4 -> 4800 | L17: L8N04 | M17: =VLOOKUP(L17,Tabella_prezzi!$A$1:$J$223,6,FALSE) -> TS3L8-RAM64
A18: 512GB Totali (8 x 64GB DIMM per Nodo) | B18: Memory Capacity | D18: 64GB RDIMM, 3200MT/s, Dual Rank | F18: AA799110 | G18: 7 | H18: =VLOOKUP(L18,Tabella_prezzi!$A$1:$J$223,3,FALSE) -> OpzRAM64GB | I18: =VLOOKUP(L18,Tabella_prezzi!$A$1:$J$223,9,FALSE) -> L8N04-OpzRAM64GB | J18: =VLOOKUP(L18,Tabella_prezzi!$A$1:$J$223,4,FALSE)*G18*4 -> 11200 | L18: L8N04 | M18: =VLOOKUP(L18,Tabella_prezzi!$A$1:$J$223,6,FALSE) -> TS3L8-RAM64
A19: 1024GB Totali (16 x 64GB DIMM per Nodo) | B19: Memory Capacity | D19: 64GB RDIMM, 3200MT/s, Dual Rank | F19: AA799110 | G19: 15 | H19: =VLOOKUP(L19,Tabella_prezzi!$A$1:$J$223,3,FALSE) -> OpzRAM64GB | I19: =VLOOKUP(L19,Tabella_prezzi!$A$1:$J$223,9,FALSE) -> L8N04-OpzRAM64GB | J19: =VLOOKUP(L19,Tabella_prezzi!$A$1:$J$223,4,FALSE)*G19*4 -> 24000 | L19: L8N04 | M19: =VLOOKUP(L19,Tabella_prezzi!$A$1:$J$223,6,FALSE) -> TS3L8-RAM64
A21: 128GB Totali (1 x 64GB DIMM + 2 x 32GB DIMM per Nodo) ⚠ | B21: Memory Capacity | D21: 32GB RDIMM, 3200MT/s, Dual Rank | E21: * | F21: AA799087 | G21: 2 | H21: =VLOOKUP(L21,Tabella_prezzi!$A$1:$J$223,3,FALSE) -> OpzRAM32GB | I21: =VLOOKUP(L21,Tabella_prezzi!$A$1:$J$223,9,FALSE) -> L8N03-OpzRAM32GB | J21: =VLOOKUP(L21,Tabella_prezzi!$A$1:$J$223,4,FALSE)*G21*4 -> 1312 | L21: L8N03 | M21: =VLOOKUP(L21,Tabella_prezzi!$A$1:$J$223,6,FALSE) -> TS3L8-RAM32
A22: 256GB Totali (1 x 64GB DIMM + 6 x 32GB DIMM per Nodo) ⚠ | B22: Memory Capacity | D22: 32GB RDIMM, 3200MT/s, Dual Rank | E22: * | F22: AA799087 | G22: 6 | H22: =VLOOKUP(L22,Tabella_prezzi!$A$1:$J$223,3,FALSE) -> OpzRAM32GB | I22: =VLOOKUP(L22,Tabella_prezzi!$A$1:$J$223,9,FALSE) -> L8N03-OpzRAM32GB | J22: =VLOOKUP(L22,Tabella_prezzi!$A$1:$J$223,4,FALSE)*G22*4 -> 3936 | L22: L8N03 | M22: =VLOOKUP(L22,Tabella_prezzi!$A$1:$J$223,6,FALSE) -> TS3L8-RAM32
A23: 512GB Totali (1 x 64GB DIMM + 14 x 32GB DIMM per Nodo) ⚠ | B23: Memory Capacity | D23: 32GB RDIMM, 3200MT/s, Dual Rank | E23: * | F23: AA799087 | G23: 6 | H23: =VLOOKUP(L23,Tabella_prezzi!$A$1:$J$223,3,FALSE) -> OpzRAM32GB | I23: =VLOOKUP(L23,Tabella_prezzi!$A$1:$J$223,9,FALSE) -> L8N03-OpzRAM32GB | J23: =VLOOKUP(L23,Tabella_prezzi!$A$1:$J$223,4,FALSE)*G23*4 -> 3936 | L23: L8N03 | M23: =VLOOKUP(L23,Tabella_prezzi!$A$1:$J$223,6,FALSE) -> TS3L8-RAM32
A26: 128GB Totali (1 x 64GB DIMM + 2 x 32GB DIMM per Nodo) ⚠ | B26: Memory Capacity | D26: 32GB RDIMM, 3200MT/s, Dual Rank | E26: * | F26: AA799087 | G26: 2 | H26: =VLOOKUP(L26,Tabella_prezzi!$A$1:$J$223,3,FALSE) -> OpzRAM32GB | I26: =VLOOKUP(L26,Tabella_prezzi!$A$1:$J$223,9,FALSE) -> L8N03-OpzRAM32GB | J26: =VLOOKUP(L26,Tabella_prezzi!$A$1:$J$223,4,FALSE)*G26*4 -> 1312 | L26: L8N03 | M26: =VLOOKUP(L26,Tabella_prezzi!$A$1:$J$223,6,FALSE) -> TS3L8-RAM32
A27: 256GB Totali (1 x 64GB DIMM + 6 x 32GB DIMM per Nodo) ⚠ | B27: Memory Capacity | D27: 32GB RDIMM, 3200MT/s, Dual Rank | E27: * | F27: AA799087 | G27: 6 | H27: =VLOOKUP(L27,Tabella_prezzi!$A$1:$J$223,3,FALSE) -> OpzRAM32GB | I27: =VLOOKUP(L27,Tabella_prezzi!$A$1:$J$223,9,FALSE) -> L8N03-OpzRAM32GB | J27: =VLOOKUP(L27,Tabella_prezzi!$A$1:$J$223,4,FALSE)*G27*4 -> 3936 | L27: L8N03 | M27: =VLOOKUP(L27,Tabella_prezzi!$A$1:$J$223,6,FALSE) -> TS3L8-RAM32
A28: TS3L8_OS
A29: No Operating System | B29: Operating System | G29: 0 | I29: ="" ->  | L29: ="" ->  | M29: ="" ->  | N29: 0 | P29: ="" ->  | Q29: ="" ->  | S29: 0 | T29: 0 | U29: ="" -> 
A30: [TS3L8-WINSRVSTD] Windows Server® 2019 Standard | B30: Operating System | D30: =VLOOKUP(L30,Tabella_prezzi!$A$1:$J$223,8,FALSE) -> Windows Server 2019 Standard, ROK, 16CORE | G30: 1 | H30: =VLOOKUP(L30,Tabella_prezzi!$A$1:$J$223,3,FALSE) -> OpzWinServSTD | I30: =VLOOKUP(L30,Tabella_prezzi!$A$1:$J$223,9,FALSE) -> L8N19-OpzWinServSTD | J30: =VLOOKUP(L30,Tabella_prezzi!$A$1:$J$223,4,FALSE)*4 -> 2436 | L30: L8N19 | M30: =VLOOKUP(L30,Tabella_prezzi!$A$1:$J$223,6,FALSE) -> TS3L8-WINSRVSTD | N30: 8 | O30: =VLOOKUP(T30,Tabella_prezzi!$A$1:$J$223,3,FALSE) -> OpzWinServSTD2core | P30: =VLOOKUP(T30,Tabella_prezzi!$A$1:$J$223,9,FALSE) -> L8N22-OpzWinServSTD2core | Q30: =VLOOKUP(T30,Tabella_prezzi!$A$1:$J$223,4,FALSE)*N30*4 -> 2784 | S30: 0 | T30: L8N22 | U30: =VLOOKUP(T30,Tabella_prezzi!$A$1:$J$223,6,FALSE) -> TS3L8-WINSRV2C
A31: [TS3L8-LINUX] Ubuntu 18.04 LTS 64 Bit | B31: Operating System | D31: =VLOOKUP(L31,Tabella_prezzi!$A$1:$J$223,8,FALSE) -> Ubuntu 18.04 LTS 64 Bit | G31: 1 | H31: =VLOOKUP(L31,Tabella_prezzi!$A$1:$J$223,3,FALSE) -> OpzOpenSource | I31: =VLOOKUP(L31,Tabella_prezzi!$A$1:$J$223,9,FALSE) -> L8N23-OpzOpenSource | J31: =VLOOKUP(L31,Tabella_prezzi!$A$1:$J$223,4,FALSE)*4 -> 208 | L31: L8N23 | M31: =VLOOKUP(L31,Tabella_prezzi!$A$1:$J$223,6,FALSE) -> TS3L8-LINUX | N31: 0 | P31: ="" ->  | Q31: ="" ->  | S31: 0 | T31: 0 | U31: ="" -> 
A33: TS3L8_HDD
A34: ="" ->  | G34: ="" ->  | I34: ="" ->  | L34: ="" ->  | M34: ="" -> 
A35: 300GB 15K RPM SAS 12Gbps 2.5in Hot-plug | B35: Hard Drives | D35: =VLOOKUP(L35,Tabella_prezzi!$A$1:$J$223,8,FALSE) -> HDD 300GB 15K SAS 12Gbps 2.5in Hot-plug | G35: 1 | H35: =VLOOKUP(L35,Tabella_prezzi!$A$1:$J$223,3,FALSE) -> OpzHDD300GB | I35: =VLOOKUP(L35,Tabella_prezzi!$A$1:$J$223,9,FALSE) -> L8N10-OpzHDD300GB | J35: =VLOOKUP(L35,Tabella_prezzi!$A$1:$J$223,4,FALSE) -> 89 | L35: L8N10 | M35: =VLOOKUP(L35,Tabella_prezzi!$A$1:$J$223,6,FALSE) -> TS3L8-HDD300GB
A37: 1.2TB 10K RPM SAS 12Gbps 2.5in Hot-plug | B37: Hard Drives | D37: =VLOOKUP(L37,Tabella_prezzi!$A$1:$J$223,8,FALSE) -> HDD 1200GB 10K SAS 12Gbps 2.5in Hot-plug | G37: 1 | H37: =VLOOKUP(L37,Tabella_prezzi!$A$1:$J$223,3,FALSE) -> OpzHDD1TB | I37: =VLOOKUP(L37,Tabella_prezzi!$A$1:$J$223,9,FALSE) -> L8N09-OpzHDD1TB | J37: =VLOOKUP(L37,Tabella_prezzi!$A$1:$J$223,4,FALSE) -> 105 | L37: L8N09 | M37: =VLOOKUP(L37,Tabella_prezzi!$A$1:$J$223,6,FALSE) -> TS3L8-HDD1TB
A39: 480GB SSD SAS Read Intensive 12Gbps 2.5in Hot-plug | B39: Hard Drives | D39: =VLOOKUP(L39,Tabella_prezzi!$A$1:$J$223,8,FALSE) -> SSD 960GB SAS RI 12Gbps 2.5in Hot-plug, 1 DWPD | G39: 1 | H39: =VLOOKUP(L39,Tabella_prezzi!$A$1:$J$223,3,FALSE) -> OpzSSD-RI400GB | I39: =VLOOKUP(L39,Tabella_prezzi!$A$1:$J$223,9,FALSE) -> L8N15-OpzSSD-RI400GB | J39: =VLOOKUP(L39,Tabella_prezzi!$A$1:$J$223,4,FALSE) -> 288 | L39: L8N15 | M39: =VLOOKUP(L39,Tabella_prezzi!$A$1:$J$223,6,FALSE) -> TS3L8-RI400GB-U
A41: 960GB SSD SAS Read Intensive 12Gbps 2.5in Hot-plug | B41: Hard Drives | D41: =VLOOKUP(L41,Tabella_prezzi!$A$1:$J$223,8,FALSE) -> SSD 960GB SAS RI 12Gbps 2.5in Hot-plug, 1 DWPD | G41: 1 | H41: =VLOOKUP(L41,Tabella_prezzi!$A$1:$J$223,3,FALSE) -> OpzSSD-RI800GB | I41: =VLOOKUP(L41,Tabella_prezzi!$A$1:$J$223,9,FALSE) -> L8N13-OpzSSD-RI800GB | J41: =VLOOKUP(L41,Tabella_prezzi!$A$1:$J$223,4,FALSE) -> 432 | L41: L8N13 | M41: =VLOOKUP(L41,Tabella_prezzi!$A$1:$J$223,6,FALSE) -> TS3L8-RI800GB
A43: 1.92TB SSD SAS Read Intensive 12Gbps 2.5in Hot-plug | B43: Hard Drives | D43: =VLOOKUP(L43,Tabella_prezzi!$A$1:$J$223,8,FALSE) -> SSD 1,92TB SAS RI 12Gbps 2.5in Hot-plug, 1 DWPD | G43: 1 | H43: =VLOOKUP(L43,Tabella_prezzi!$A$1:$J$223,3,FALSE) -> OpzSSD-RI1,6TB | I43: =VLOOKUP(L43,Tabella_prezzi!$A$1:$J$223,9,FALSE) -> L8N11-OpzSSD-RI1,6TB | J43: =VLOOKUP(L43,Tabella_prezzi!$A$1:$J$223,4,FALSE) -> 615 | L43: L8N11 | M43: =VLOOKUP(L43,Tabella_prezzi!$A$1:$J$223,6,FALSE) -> TS3L8-RI1600GB
A45: 960GB SSD SAS Mixed Use 12Gbps 512e 2.5in Hot-Plug | B45: Hard Drives | D45: =VLOOKUP(L45,Tabella_prezzi!$A$1:$J$223,8,FALSE) -> SSD 960GB SAS MU 12Gbps 2.5in Hot-plug, 3 DWPD | G45: 1 | H45: =VLOOKUP(L45,Tabella_prezzi!$A$1:$J$223,3,FALSE) -> OpzSSD-MU800GB | I45: =VLOOKUP(L45,Tabella_prezzi!$A$1:$J$223,9,FALSE) -> L8N14-OpzSSD-MU800GB | J45: =VLOOKUP(L45,Tabella_prezzi!$A$1:$J$223,4,FALSE) -> 599 | L45: L8N14 | M45: =VLOOKUP(L45,Tabella_prezzi!$A$1:$J$223,6,FALSE) -> TS3L8-MU800GB
A47: 1.6TB SSD SAS Mixed Use 12Gbps 2.5in Hot-plug | B47: Hard Drives | D47: =VLOOKUP(L47,Tabella_prezzi!$A$1:$J$223,8,FALSE) -> SSD 1,6TB SAS MU 12Gbps 2.5in Hot-plug, 3 DWPD | G47: 1 | H47: =VLOOKUP(L47,Tabella_prezzi!$A$1:$J$223,3,FALSE) -> OpzSSD-MU1,6TB | I47: =VLOOKUP(L47,Tabella_prezzi!$A$1:$J$223,9,FALSE) -> L8N12-OpzSSD-MU1,6TB | J47: =VLOOKUP(L47,Tabella_prezzi!$A$1:$J$223,4,FALSE) -> 754 | L47: L8N12 | M47: =VLOOKUP(L47,Tabella_prezzi!$A$1:$J$223,6,FALSE) -> TS3L8-MU1600GB
A49: 800GB SSD SAS Write Intensive 12Gbps 2.5in Hot-plug | B49: Hard Drives | D49: =VLOOKUP(L49,Tabella_prezzi!$A$1:$J$223,8,FALSE) -> SSD 800GB SAS WI 12Gbps 2.5in Hot-plug, 10 DWPD | G49: 1 | H49: =VLOOKUP(L49,Tabella_prezzi!$A$1:$J$223,3,FALSE) -> 0 | I49: =VLOOKUP(L49,Tabella_prezzi!$A$1:$J$223,9,FALSE) -> TS3-OpzA20800WI | K49: =VLOOKUP(L49,Tabella_prezzi!$A$1:$J$223,4,FALSE) -> 1106 | L49: L8N32 | M49: =VLOOKUP(L49,Tabella_prezzi!$A$1:$J$223,6,FALSE) -> TS3L8-WI800GB
A51: Aggiungere Secondo Processore
A52: TS3L8_PCI_C
A53: ="" ->  | G53: ="" ->  | I53: ="" ->  | L53: ="" ->  | M53: ="" -> 
A54: [TS3L8-LAN1-L] Broadcom 5719 Quad Port 1Gb Network Interface Card LP | D54: =VLOOKUP(L54,Tabella_prezzi!$A$1:$J$223,8,FALSE) -> Scheda LAN 5719 QP 1Gb LOW | G54: 1 | H54: =VLOOKUP(L54,Tabella_prezzi!$A$1:$J$223,3,FALSE) -> OpzGigabit | I54: =VLOOKUP(L54,Tabella_prezzi!$A$1:$J$223,9,FALSE) -> L8N05-OpzGigabitLP | J54: =VLOOKUP(L54,Tabella_prezzi!$A$1:$J$223,4,FALSE) -> 26 | L54: L8N05 | M54: =VLOOKUP(L54,Tabella_prezzi!$A$1:$J$223,6,FALSE) -> TS3L8-LAN1-L
A55: [TS3L8-LAN10-L] Intel X710 2-port 10GbE Adapter LP | D55: =VLOOKUP(L55,Tabella_prezzi!$A$1:$J$223,8,FALSE) -> Scheda DP X710 10Gb SFP+ LOW | G55: 1 | H55: =VLOOKUP(L55,Tabella_prezzi!$A$1:$J$223,3,FALSE) -> OpzGigabit10Gbps | I55: =VLOOKUP(L55,Tabella_prezzi!$A$1:$J$223,9,FALSE) -> L8N06-OpzGigabit10GbpsLP | J55: =VLOOKUP(L55,Tabella_prezzi!$A$1:$J$223,4,FALSE) -> 153 | L55: L8N06 | M55: =VLOOKUP(L55,Tabella_prezzi!$A$1:$J$223,6,FALSE) -> TS3L8-LAN10-L
A56: [TS3L8-LAN25-L] Mellanox ConnectX-5 Dual Port 10/25GbE SFP28 Adapter, PCIe LP | D56: =VLOOKUP(L56,Tabella_prezzi!$A$1:$J$223,8,FALSE) -> Scheda DP CONNECTX-5 25Gb SFP28 LOW | G56: 1 | H56: =VLOOKUP(L56,Tabella_prezzi!$A$1:$J$223,3,FALSE) -> OpzGigabit25Gbps | I56: =VLOOKUP(L56,Tabella_prezzi!$A$1:$J$223,9,FALSE) -> L8N07-OpzGigabit25GbpsLP | J56: =VLOOKUP(L56,Tabella_prezzi!$A$1:$J$223,4,FALSE) -> 389 | L56: L8N07 | M56: =VLOOKUP(L56,Tabella_prezzi!$A$1:$J$223,6,FALSE) -> TS3L8-LAN25-L
A57: [TS3L8-CNA10-L] Marvell Qlogic 41232 2-port 10GbE Adapter LP | D57: =VLOOKUP(L57,Tabella_prezzi!$A$1:$J$223,8,FALSE) -> Scheda CNA QL41232 DP 10Gb SFP+ LOW | G57: 1 | H57: =VLOOKUP(L57,Tabella_prezzi!$A$1:$J$223,3,FALSE) -> OpzGigabit10Gbps CNA | I57: =VLOOKUP(L57,Tabella_prezzi!$A$1:$J$223,9,FALSE) -> L8N08-OpzCNA10GbpsLP | J57: =VLOOKUP(L57,Tabella_prezzi!$A$1:$J$223,4,FALSE) -> 159 | L57: L8N08 | M57: =VLOOKUP(L57,Tabella_prezzi!$A$1:$J$223,6,FALSE) -> TS3L8-CNA10-L
A58: -=-=-=-=-=-=-=-=-=-=-=-=-=-=-=-=-20%-=-=-=-=-=-=-=-=-=-=-=-=-=-=-=-=- | G58: ="" ->  | I58: ="" ->  | L58: ="" ->  | M58: ="" -> 
A59: [TS3L8-57416BT-L] Broadcom 57416 Dual Port 10Gb, Base-T, PCIe Adapter, LP | B59: TS3L8-57416BT-L | D59: =VLOOKUP(L59,Tabella_prezzi!$A$1:$J$223,8,FALSE) -> Broadcom 57416 Dual Port 10Gb, Base-T, PCIe Adapter, LP | G59: 1 | H59: =VLOOKUP(L59,Tabella_prezzi!$A$1:$J$223,3,FALSE) -> 0 | I59: =VLOOKUP(L59,Tabella_prezzi!$A$1:$J$223,9,FALSE) -> TS3-OpzA2057416 | K59: =VLOOKUP(L59,Tabella_prezzi!$A$1:$J$223,4,FALSE) -> 240 | L59: L8N49 | M59: =VLOOKUP(L59,Tabella_prezzi!$A$1:$J$223,6,FALSE) -> TS3L8-57416BT-L
A60: [TS3L8-X710BT-L] Intel X710-T2L Dual Port 10GbE BASE-T, PCIE Adapter, LP | B60: TS3L8-X710BT-L | D60: =VLOOKUP(L60,Tabella_prezzi!$A$1:$J$223,8,FALSE) -> Intel X710-T2L Dual Port 10GbE BASE-T, PCIE Adapter, LP | G60: 1 | H60: =VLOOKUP(L60,Tabella_prezzi!$A$1:$J$223,3,FALSE) -> 0 | I60: =VLOOKUP(L60,Tabella_prezzi!$A$1:$J$223,9,FALSE) -> TS3-OpzA20X710 | K60: =VLOOKUP(L60,Tabella_prezzi!$A$1:$J$223,4,FALSE) -> 267 | L60: L8N48 | M60: =VLOOKUP(L60,Tabella_prezzi!$A$1:$J$223,6,FALSE) -> TS3L8-X710BT-L
A61: [TS3L8-MCX6SP-L] Mellanox ConnectX-6 Single Port HDR100 QSFP56 Infiniband Adapter LP | D61: =VLOOKUP(L61,Tabella_prezzi!$A$1:$J$223,8,FALSE) -> Mellanox ConnectX-6 Single Port HDR100 QSFP56 Infiniband Adapter, PCIe Low Profile | G61: 1 | H61: =VLOOKUP(L61,Tabella_prezzi!$A$1:$J$223,3,FALSE) -> 0 | I61: =VLOOKUP(L61,Tabella_prezzi!$A$1:$J$223,9,FALSE) -> TS3-OpzA20MCX6L | K61: =VLOOKUP(L61,Tabella_prezzi!$A$1:$J$223,4,FALSE) -> 826 | L61: L8N28 | M61: =VLOOKUP(L61,Tabella_prezzi!$A$1:$J$223,6,FALSE) -> TS3L8-MCX6SP-L
A64: Cavo “patch” di 3 mt RJ45 certificato per gigabit ethernet | D64: =VLOOKUP(L64,Tabella_prezzi!$A$1:$J$223,8,FALSE) -> Cavo “patch” di 3 mt RJ45 certificato per gigabit ethernet | G64: 1 | H64: =VLOOKUP(L64,Tabella_prezzi!$A$1:$J$223,3,FALSE) -> OpzRJ45 3m | I64: =VLOOKUP(L64,Tabella_prezzi!$A$1:$J$223,9,FALSE) -> TS3-OpzA20RJ45 | K64: =VLOOKUP(L64,Tabella_prezzi!$A$1:$J$223,4,FALSE) -> 3 | L64: L8N30 | M64: =VLOOKUP(L64,Tabella_prezzi!$A$1:$J$223,6,FALSE) -> TS3L8-RJ453M
A65: Adapter - Mini DisplayPort to VGA | D65: =VLOOKUP(L65,Tabella_prezzi!$A$1:$J$223,8,FALSE) -> Adapter - Mini DisplayPort to VGA | G65: 1 | H65: =VLOOKUP(L65,Tabella_prezzi!$A$1:$J$223,3,FALSE) -> 0 | I65: =VLOOKUP(L65,Tabella_prezzi!$A$1:$J$223,9,FALSE) -> TS3-OpzA20MDPVGA | K65: =VLOOKUP(L65,Tabella_prezzi!$A$1:$J$223,4,FALSE) -> 35 | L65: L8N56 | M65: =VLOOKUP(L65,Tabella_prezzi!$A$1:$J$223,6,FALSE) -> TS3L8-MDPVGA
A66: TS3L8_WARRANTY
A67: Manutenzione in garanzia (36 mesi) | B67: Dell Services: Extended Service | D67: RESTRICTED:ProSupport One Data Center and Next Business Day Onsite Service Volume Low, 39 Month(s) | G67: ="" ->  | I67: ="" ->  | L67: ="" ->  | M67: ="" -> 
A68: [TS3L8-5Y] Manutenzione in garanzia (60 mesi) | B68: Dell Services: Extended Service | D68: =VLOOKUP(L68,Tabella_prezzi!$A$1:$J$223,8,FALSE) -> Estensione della manutenzione in garanzia per ulteriori 24 mesi | G68: 1 | H68: =VLOOKUP(L68,Tabella_prezzi!$A$1:$J$223,3,FALSE) -> OpzEstensione24 | I68: =VLOOKUP(L68,Tabella_prezzi!$A$1:$J$223,9,FALSE) -> L8N25-OpzEstensione24 | J68: =VLOOKUP(L68,Tabella_prezzi!$A$1:$J$223,4,FALSE) -> 318 | L68: L8N25 | M68: =VLOOKUP(L68,Tabella_prezzi!$A$1:$J$223,6,FALSE) -> TS3L8-5Y
A70: TS3L8_KYHDD
A71: ="" ->  | B71: Keep Your Hard Drive | G71: ="" ->  | I71: ="" ->  | L71: ="" ->  | M71: ="" -> 
A72: Hard Disk Retention | B72: Keep Your Hard Drive | D72: =VLOOKUP(L72,Tabella_prezzi!$A$1:$J$223,8,FALSE) -> Hard Disk Retention 36m | G72: 1 | H72: =VLOOKUP(L72,Tabella_prezzi!$A$1:$J$223,3,FALSE) -> OpzHDDRetention | I72: =VLOOKUP(L72,Tabella_prezzi!$A$1:$J$223,9,FALSE) -> L8N24-OpzHDDRetention | J72: =VLOOKUP(L72,Tabella_prezzi!$A$1:$J$223,4,FALSE) -> 44 | L72: L8N24 | M72: =VLOOKUP(L72,Tabella_prezzi!$A$1:$J$223,6,FALSE) -> TS3L8-HDRTNTN
A73: Hard Disk Retention (60 mesi) | B73: Keep Your Hard Drive | D73: =VLOOKUP(L73,Tabella_prezzi!$A$1:$J$223,8,FALSE) -> Hard Disk Retention 60m | G73: 1 | H73: =VLOOKUP(L73,Tabella_prezzi!$A$1:$J$223,3,FALSE) -> OpzHDDRetention | I73: =VLOOKUP(L73,Tabella_prezzi!$A$1:$J$223,9,FALSE) -> L8N27-OpzHDDRetention60 | J73: =VLOOKUP(L73,Tabella_prezzi!$A$1:$J$223,4,FALSE) -> 73 | L73: L8N27 | M73: =VLOOKUP(L73,Tabella_prezzi!$A$1:$J$223,6,FALSE) -> TS3L8-HDRTNTN60
A76: Broadcom 5720 Quad Port 1GbE BASE-T Mezzanine Adapter | G76: ="" ->  | I76: ="" ->  | L76: ="" ->  | M76: ="" -> 
A77: Scheda DP CONNECTX-5 25Gb SFP28 OCP, Transceiver NON INCLUSI | G77: 1 | H77: =VLOOKUP(L77,Tabella_prezzi!$A$1:$J$223,3,FALSE) -> 0 | I77: =VLOOKUP(L77,Tabella_prezzi!$A$1:$J$223,9,FALSE) -> TS3-OpzA20OCP25 | K77: 154 | L77: L8N47 | M77: =VLOOKUP(L77,Tabella_prezzi!$A$1:$J$223,6,FALSE) -> TS3L8-OCP25GB
A79: TS3L8_BOSS
A80: ="" ->  | G80: ="" ->  | I80: ="" ->  | L80: ="" ->  | M80: ="" -> 
A81: [TS3L8-BOSS480] BOSS controller card for C6525, 2 x 480G M.2 Drive | D81: =VLOOKUP(L81,Tabella_prezzi!$A$1:$J$223,8,FALSE) -> BOSS controller card for C6525, 2 x 480G M.2 Drive | G81: 1 | H81: =VLOOKUP(L81,Tabella_prezzi!$A$1:$J$223,3,FALSE) -> 0 | I81: =VLOOKUP(L81,Tabella_prezzi!$A$1:$J$223,9,FALSE) -> TS3-OpzA20B4808 | K81: =VLOOKUP(L81,Tabella_prezzi!$A$1:$J$223,4,FALSE) -> 953 | L81: L8N29 | M81: =VLOOKUP(L81,Tabella_prezzi!$A$1:$J$223,6,FALSE) -> TS3L8-BOSS480
A82: Selezionare HBA345
A83: TS3L8_Controller
A84: PERC H745 Controller Card | G84: ="" ->  | I84: ="" ->  | L84: ="" ->  | M84: ="" -> 
A85: [TS3L8-HBA345] HBA345 Controller Card | D85: =VLOOKUP(L85,Tabella_prezzi!$A$1:$J$223,8,FALSE) -> HBA345 Controller Card in sostituzione del Controller in configurazione BASE | G85: 1 | H85: =VLOOKUP(L85,Tabella_prezzi!$A$1:$J$223,3,FALSE) -> OpzHBA345 | I85: =VLOOKUP(L85,Tabella_prezzi!$A$1:$J$223,9,FALSE) -> TS3-OpzA20BA345 | K85: =VLOOKUP(L85,Tabella_prezzi!$A$1:$J$223,4,FALSE) -> 635 | L85: L8N31 | M85: =VLOOKUP(L85,Tabella_prezzi!$A$1:$J$223,6,FALSE) -> TS3L8-HBA345
A88: BUNDLE PMEUPS3RTSER Comprensivo di UPS e scheda SNMP + Kit Rack incluso | D88: =VLOOKUP(L88,Tabella_prezzi!$A$1:$J$223,8,FALSE) -> Powerme Online UPS RPMM/9 3K, Rack, SNMP card | G88: 1 | H88: =VLOOKUP(L88,Tabella_prezzi!$A$1:$J$223,3,FALSE) -> OpzUps (3000VA) | I88: =VLOOKUP(L88,Tabella_prezzi!$A$1:$J$223,9,FALSE) -> L8N16-OpzUps | J88: =VLOOKUP(L88,Tabella_prezzi!$A$1:$J$223,4,FALSE) -> 328 | L88: L8N16 | M88: =VLOOKUP(L88,Tabella_prezzi!$A$1:$J$223,6,FALSE) -> TS3L8-UPS
A89: Unità KVM - monitor 17", cavo combi PS2 e USB da 1,8mt, tastiera ita, touch pad | D89: =VLOOKUP(L89,Tabella_prezzi!$A$1:$J$223,8,FALSE) -> Console KVM GUI da rack | G89: 1 | H89: =VLOOKUP(L89,Tabella_prezzi!$A$1:$J$223,3,FALSE) -> OpzGUI | I89: =VLOOKUP(L89,Tabella_prezzi!$A$1:$J$223,9,FALSE) -> L8N17-OpzGUI | J89: =VLOOKUP(L89,Tabella_prezzi!$A$1:$J$223,4,FALSE) -> 439 | L89: L8N17 | M89: =VLOOKUP(L89,Tabella_prezzi!$A$1:$J$223,6,FALSE) -> TS3L8-GUI
A90: Switch 16 porte IP con relativi cavi combi PS/2 e USB inclusi | D90: =VLOOKUP(L90,Tabella_prezzi!$A$1:$J$223,8,FALSE) -> KVM Switch IP per GUI 16P | G90: 1 | H90: =VLOOKUP(L90,Tabella_prezzi!$A$1:$J$223,3,FALSE) -> OpzKVM | I90: =VLOOKUP(L90,Tabella_prezzi!$A$1:$J$223,9,FALSE) -> L8N18-OpzKVM | J90: =VLOOKUP(L90,Tabella_prezzi!$A$1:$J$223,4,FALSE) -> 506 | L90: L8N18 | M90: =VLOOKUP(L90,Tabella_prezzi!$A$1:$J$223,6,FALSE) -> TS3L8-SWKVM
A91: 1-pack of Windows Server 2019/2016 Device CALs (STD or DC) | D91: =VLOOKUP(L91,Tabella_prezzi!$A$1:$J$223,8,FALSE) -> Windows Server 2019 Device CAL (STD or DC) | G91: 1 | H91: =VLOOKUP(L91,Tabella_prezzi!$A$1:$J$223,3,FALSE) -> OpzDeviceCal | I91: =VLOOKUP(L91,Tabella_prezzi!$A$1:$J$223,9,FALSE) -> L8N20-OpzDeviceCal | J91: =VLOOKUP(L91,Tabella_prezzi!$A$1:$J$223,4,FALSE) -> 21 | L91: L8N20 | M91: =VLOOKUP(L91,Tabella_prezzi!$A$1:$J$223,6,FALSE) -> TS3L8-WINDEVCAL
A92: 1-pack of Windows Server 2019/2016 User CALs (STD or DC) | D92: =VLOOKUP(L92,Tabella_prezzi!$A$1:$J$223,8,FALSE) -> Windows Server 2019 User CAL (STD or DC) | G92: 1 | H92: =VLOOKUP(L92,Tabella_prezzi!$A$1:$J$223,3,FALSE) -> OpzUserCal | I92: =VLOOKUP(L92,Tabella_prezzi!$A$1:$J$223,9,FALSE) -> L8N21-OpzUserCal | J92: =VLOOKUP(L92,Tabella_prezzi!$A$1:$J$223,4,FALSE) -> 26 | L92: L8N21 | M92: =VLOOKUP(L92,Tabella_prezzi!$A$1:$J$223,6,FALSE) -> TS3L8-WINUSRCAL
A93: Rack 42U con portata 1000 KG e 4 ruote + coppia PDU 12 prese Shuko bipasso ITA | D93: =VLOOKUP(L93,Tabella_prezzi!$A$1:$J$223,8,FALSE) -> Armadio Rack 42U | G93: 1 | H93: =VLOOKUP(L93,Tabella_prezzi!$A$1:$J$223,3,FALSE) -> OpzRack | I93: =VLOOKUP(L93,Tabella_prezzi!$A$1:$J$223,9,FALSE) -> L8N26-OpzRack | J93: =VLOOKUP(L93,Tabella_prezzi!$A$1:$J$223,4,FALSE) -> 511 | L93: L8N26 | M93: =VLOOKUP(L93,Tabella_prezzi!$A$1:$J$223,6,FALSE) -> TS3L8-RACK
A94: Armadio Rack 42U 600x1200, 2 x PDU Monofase 2G, ZeroU, 32A, 230V, (36) C13 & (6) C19 | D94: =VLOOKUP(L94,Tabella_prezzi!$A$1:$J$223,8,FALSE) -> Armadio Rack 42U 600x1200, 2 x PDU Monofase 2G, ZeroU, 32A, 230V, (36) C13 & (6) C19 | G94: 1 | H94: =VLOOKUP(L94,Tabella_prezzi!$A$1:$J$223,3,FALSE) -> 0 | I94: =VLOOKUP(L94,Tabella_prezzi!$A$1:$J$223,9,FALSE) -> TS3-OpzA20RAPCM | K94: =VLOOKUP(L94,Tabella_prezzi!$A$1:$J$223,4,FALSE) -> 2653 | L94: L8N45 | M94: =VLOOKUP(L94,Tabella_prezzi!$A$1:$J$223,6,FALSE) -> TS3L8-RACKM32A
A95: Armadio Rack 42U 600x1200, 2 x PDU Trifase 2G, ZeroU, 22.0kW(32A) 17.3kW(24A), 230V, (30) C13 & (12) C19 | D95: =VLOOKUP(L95,Tabella_prezzi!$A$1:$J$223,8,FALSE) -> Armadio Rack 42U 600x1200, 2 x PDU Trifase 2G, ZeroU, 22.0kW(32A) 17.3kW(24A), 230V, (30) C13 & (12) C19 | G95: 1 | H95: =VLOOKUP(L95,Tabella_prezzi!$A$1:$J$223,3,FALSE) -> 0 | I95: =VLOOKUP(L95,Tabella_prezzi!$A$1:$J$223,9,FALSE) -> TS3-OpzA20RAPCT | K95: =VLOOKUP(L95,Tabella_prezzi!$A$1:$J$223,4,FALSE) -> 4311 | L95: L8N46 | M95: =VLOOKUP(L95,Tabella_prezzi!$A$1:$J$223,6,FALSE) -> TS3L8-RACKT32A
A96: VMware vSphere 7 Standard Acceleration Kit OEM for 6 CPU, 3YR License and Maintenance | D96: =VLOOKUP(L96,Tabella_prezzi!$A$1:$J$223,8,FALSE) -> VMware vSphere 7 Standard Acceleration Kit OEM for 6 CPU, 3YR License and Maintenance | G96: 1 | H96: =VLOOKUP(L96,Tabella_prezzi!$A$1:$J$223,3,FALSE) -> 0 | I96: =VLOOKUP(L96,Tabella_prezzi!$A$1:$J$223,9,FALSE) -> TS3-OpzA20VMW01 | K96: =VLOOKUP(L96,Tabella_prezzi!$A$1:$J$223,4,FALSE) -> 16549 | L96: L8N33 | M96: =VLOOKUP(L96,Tabella_prezzi!$A$1:$J$223,6,FALSE) -> TS3L8-VS7STD6AK
A97: VMware vSphere 7 Standard OEM, 1 CPU (max 32 cores/CPU socket), 3YR License and Maintenance | D97: =VLOOKUP(L97,Tabella_prezzi!$A$1:$J$223,8,FALSE) -> VMware vSphere 7 Standard OEM, 1 CPU (max 32 cores/CPU socket), 3YR License and Maintenance | G97: 1 | H97: =VLOOKUP(L97,Tabella_prezzi!$A$1:$J$223,3,FALSE) -> 0 | I97: =VLOOKUP(L97,Tabella_prezzi!$A$1:$J$223,9,FALSE) -> TS3-OpzA20VMW02 | K97: =VLOOKUP(L97,Tabella_prezzi!$A$1:$J$223,4,FALSE) -> 1557 | L97: L8N34 | M97: =VLOOKUP(L97,Tabella_prezzi!$A$1:$J$223,6,FALSE) -> TS3L8-VS7STD
A98: VMware vSphere 7 Enterprise Plus Acceleration Kit OEM for 6 CPU, 3YR License and Maintenance | D98: =VLOOKUP(L98,Tabella_prezzi!$A$1:$J$223,8,FALSE) -> VMware vSphere 7 Enterprise Plus Acceleration Kit OEM for 6 CPU, 3YR License and Maintenance | G98: 1 | H98: =VLOOKUP(L98,Tabella_prezzi!$A$1:$J$223,3,FALSE) -> 0 | I98: =VLOOKUP(L98,Tabella_prezzi!$A$1:$J$223,9,FALSE) -> TS3-OpzA20VMW03 | K98: =VLOOKUP(L98,Tabella_prezzi!$A$1:$J$223,4,FALSE) -> 34860 | L98: L8N35 | M98: =VLOOKUP(L98,Tabella_prezzi!$A$1:$J$223,6,FALSE) -> TS3L8-VS7EPL6AK
A99: VMware vSphere 7 Enterprise Plus OEM, 1 CPU (max 32 cores/CPU socket), 3YR License and Maintenance | D99: =VLOOKUP(L99,Tabella_prezzi!$A$1:$J$223,8,FALSE) -> VMware vSphere 7 Enterprise Plus OEM, 1 CPU (max 32 cores/CPU socket), 3YR License and Maintenance | G99: 1 | H99: =VLOOKUP(L99,Tabella_prezzi!$A$1:$J$223,3,FALSE) -> 0 | I99: =VLOOKUP(L99,Tabella_prezzi!$A$1:$J$223,9,FALSE) -> TS3-OpzA20VMW04 | K99: =VLOOKUP(L99,Tabella_prezzi!$A$1:$J$223,4,FALSE) -> 4576 | L99: L8N36 | M99: =VLOOKUP(L99,Tabella_prezzi!$A$1:$J$223,6,FALSE) -> TS3L8-VS7EPL
A100: VMware vCenter 7 Standard OEM ,Per Instance,3YR License and Maintenance | D100: =VLOOKUP(L100,Tabella_prezzi!$A$1:$J$223,8,FALSE) -> VMware vCenter 7 Standard OEM ,Per Instance,3YR License and Maintenance | G100: 1 | H100: =VLOOKUP(L100,Tabella_prezzi!$A$1:$J$223,3,FALSE) -> 0 | I100: =VLOOKUP(L100,Tabella_prezzi!$A$1:$J$223,9,FALSE) -> TS3-OpzA20VMW05 | K100: =VLOOKUP(L100,Tabella_prezzi!$A$1:$J$223,4,FALSE) -> 7860 | L100: L8N37 | M100: =VLOOKUP(L100,Tabella_prezzi!$A$1:$J$223,6,FALSE) -> TS3L8-VCS7STD
A101: VMware vSAN 7 Enterprise OEM, 1 CPU (max 32 cores/CPU socket), 3YR License and Maintenance | D101: =VLOOKUP(L101,Tabella_prezzi!$A$1:$J$223,8,FALSE) -> VMware vSAN 7 Enterprise OEM, 1 CPU (max 32 cores/CPU socket), 3YR License and Maintenance | G101: 1 | H101: =VLOOKUP(L101,Tabella_prezzi!$A$1:$J$223,3,FALSE) -> 0 | I101: =VLOOKUP(L101,Tabella_prezzi!$A$1:$J$223,9,FALSE) -> TS3-OpzA20VMW06 | K101: =VLOOKUP(L101,Tabella_prezzi!$A$1:$J$223,4,FALSE) -> 7196 | L101: L8N38 | M101: =VLOOKUP(L101,Tabella_prezzi!$A$1:$J$223,6,FALSE) -> TS3L8-ST7ENT
A102: VMware Horizon 8 Advanced OEM,10 Pack,CCU, 3YR License and Maintenance | D102: =VLOOKUP(L102,Tabella_prezzi!$A$1:$J$223,8,FALSE) -> VMware Horizon 8 Advanced OEM,10 Pack,CCU, 3YR License and Maintenance | G102: 1 | H102: =VLOOKUP(L102,Tabella_prezzi!$A$1:$J$223,3,FALSE) -> 0 | I102: =VLOOKUP(L102,Tabella_prezzi!$A$1:$J$223,9,FALSE) -> TS3-OpzA20VMW07 | K102: =VLOOKUP(L102,Tabella_prezzi!$A$1:$J$223,4,FALSE) -> 5028 | L102: L8N39 | M102: =VLOOKUP(L102,Tabella_prezzi!$A$1:$J$223,6,FALSE) -> TS3L8-HZ8ADC10
A103: VMware Horizon 8 Enterprise OEM,10 Pack,CCU, 3YR License and Maintenance | D103: =VLOOKUP(L103,Tabella_prezzi!$A$1:$J$223,8,FALSE) -> VMware Horizon 8 Enterprise OEM,10 Pack,CCU, 3YR License and Maintenance | G103: 1 | H103: =VLOOKUP(L103,Tabella_prezzi!$A$1:$J$223,3,FALSE) -> 0 | I103: =VLOOKUP(L103,Tabella_prezzi!$A$1:$J$223,9,FALSE) -> TS3-OpzA20VMW08 | K103: =VLOOKUP(L103,Tabella_prezzi!$A$1:$J$223,4,FALSE) -> 7116 | L103: L8N40 | M103: =VLOOKUP(L103,Tabella_prezzi!$A$1:$J$223,6,FALSE) -> TS3L8-HZ8ENC10
A104: VMware Horizon Advanced OEM, 10 Pack, Named User, 3YR License and Maintenance | D104: =VLOOKUP(L104,Tabella_prezzi!$A$1:$J$223,8,FALSE) -> VMware Horizon Advanced OEM, 10 Pack, Named User, 3YR License and Maintenance | G104: 1 | H104: =VLOOKUP(L104,Tabella_prezzi!$A$1:$J$223,3,FALSE) -> 0 | I104: =VLOOKUP(L104,Tabella_prezzi!$A$1:$J$223,9,FALSE) -> TS3-OpzA20VMW09 | K104: =VLOOKUP(L104,Tabella_prezzi!$A$1:$J$223,4,FALSE) -> 3089 | L104: L8N41 | M104: =VLOOKUP(L104,Tabella_prezzi!$A$1:$J$223,6,FALSE) -> TS3L8-HZ8ADN10
A105: VMware Horizon 8 Enterprise OEM,10 Pack, Named User, 3YR License and Maintenance | D105: =VLOOKUP(L105,Tabella_prezzi!$A$1:$J$223,8,FALSE) -> VMware Horizon 8 Enterprise OEM,10 Pack, Named User, 3YR License and Maintenance | G105: 1 | H105: =VLOOKUP(L105,Tabella_prezzi!$A$1:$J$223,3,FALSE) -> 0 | I105: =VLOOKUP(L105,Tabella_prezzi!$A$1:$J$223,9,FALSE) -> TS3-OpzA20VMW10 | K105: =VLOOKUP(L105,Tabella_prezzi!$A$1:$J$223,4,FALSE) -> 4398 | L105: L8N42 | M105: =VLOOKUP(L105,Tabella_prezzi!$A$1:$J$223,6,FALSE) -> TS3L8-HZ8ENN10
A106: Enclosure SAS 12 Slot 3.5", 3YR ProSupport and 4hr Mission Critical | D106: =VLOOKUP(L106,Tabella_prezzi!$A$1:$J$223,8,FALSE) -> Enclosure SAS 12 Slot 3.5", 3YR ProSupport and 4hr Mission Critical | G106: 1 | H106: =VLOOKUP(L106,Tabella_prezzi!$A$1:$J$223,3,FALSE) -> 0 | I106: =VLOOKUP(L106,Tabella_prezzi!$A$1:$J$223,9,FALSE) -> TS3-OpzA20E13Y4 | K106: =VLOOKUP(L106,Tabella_prezzi!$A$1:$J$223,4,FALSE) -> 2727 | L106: L8N43 | M106: =VLOOKUP(L106,Tabella_prezzi!$A$1:$J$223,6,FALSE) -> TS3L8-Encl13Y4H
A107: Enclosure SAS 12 Slot 3.5", 5YR ProSupport and 4hr Mission Critical | D107: =VLOOKUP(L107,Tabella_prezzi!$A$1:$J$223,8,FALSE) -> Enclosure SAS 12 Slot 3.5", 5YR ProSupport and 4hr Mission Critical | G107: 1 | H107: =VLOOKUP(L107,Tabella_prezzi!$A$1:$J$223,3,FALSE) -> 0 | I107: =VLOOKUP(L107,Tabella_prezzi!$A$1:$J$223,9,FALSE) -> TS3-OpzA20E25Y4 | K107: =VLOOKUP(L107,Tabella_prezzi!$A$1:$J$223,4,FALSE) -> 2827 | L107: L8N44 | M107: =VLOOKUP(L107,Tabella_prezzi!$A$1:$J$223,6,FALSE) -> TS3L8-Encl25Y4H
A109: HDD 16TB SAS 12Gbps 7k 3.5in Hot-Plug per Enclosure 3.5" | D109: =VLOOKUP(L109,Tabella_prezzi!$A$1:$J$223,8,FALSE) -> HDD 16TB SAS 12Gbps 7k 3.5in Hot-Plug per Enclosure 3.5" | G109: 1 | H109: =VLOOKUP(L109,Tabella_prezzi!$A$1:$J$223,3,FALSE) -> 0 | I109: =VLOOKUP(L109,Tabella_prezzi!$A$1:$J$223,9,FALSE) -> TS3-OpzA20ED16TB | K109: =VLOOKUP(L109,Tabella_prezzi!$A$1:$J$223,4,FALSE) -> 494 | L109: L8N50 | M109: =VLOOKUP(L109,Tabella_prezzi!$A$1:$J$223,6,FALSE) -> TS3L8-ED16TB
A110: HDD 12TB SAS 12Gbps 7k 3.5in Hot-Plug per Enclosure 3.5" | D110: =VLOOKUP(L110,Tabella_prezzi!$A$1:$J$223,8,FALSE) -> HDD 12TB SAS 12Gbps 7k 3.5in Hot-Plug per Enclosure 3.5" | G110: 1 | H110: =VLOOKUP(L110,Tabella_prezzi!$A$1:$J$223,3,FALSE) -> 0 | I110: =VLOOKUP(L110,Tabella_prezzi!$A$1:$J$223,9,FALSE) -> TS3-OpzA20ED12TB | K110: =VLOOKUP(L110,Tabella_prezzi!$A$1:$J$223,4,FALSE) -> 443 | L110: L8N51 | M110: =VLOOKUP(L110,Tabella_prezzi!$A$1:$J$223,6,FALSE) -> TS3L8-ED12TB
A111: HDD 8TB SAS 12Gbps 7k 3.5in Hot-Plug per Enclosure 3.5" | D111: =VLOOKUP(L111,Tabella_prezzi!$A$1:$J$223,8,FALSE) -> HDD 8TB SAS 12Gbps 7k 3.5in Hot-Plug per Enclosure 3.5" | G111: 1 | H111: =VLOOKUP(L111,Tabella_prezzi!$A$1:$J$223,3,FALSE) -> 0 | I111: =VLOOKUP(L111,Tabella_prezzi!$A$1:$J$223,9,FALSE) -> TS3-OpzA20ED8TB | K111: =VLOOKUP(L111,Tabella_prezzi!$A$1:$J$223,4,FALSE) -> 281 | L111: L8N52 | M111: =VLOOKUP(L111,Tabella_prezzi!$A$1:$J$223,6,FALSE) -> TS3L8-ED08TB
A113: SFP+ SR Optic for SFP+ ports (CONNECTX-5 10Gb OCP) | D113: =VLOOKUP(L113,Tabella_prezzi!$A$1:$J$223,8,FALSE) -> SFP+ SR Optic for SFP+ ports (CONNECTX-5 10Gb OCP) | G113: 1 | H113: =VLOOKUP(L113,Tabella_prezzi!$A$1:$J$223,3,FALSE) -> 0 | I113: =VLOOKUP(L113,Tabella_prezzi!$A$1:$J$223,9,FALSE) -> TS3-OpzA20O10GB | K113: =VLOOKUP(L113,Tabella_prezzi!$A$1:$J$223,4,FALSE) -> 126 | L113: L8N53 | M113: =VLOOKUP(L113,Tabella_prezzi!$A$1:$J$223,6,FALSE) -> TS3L8-OT10GB
A114: 25GbE Dual Rate SFP28 SR Optic for SFP28 ports (CONNECTX-5 25Gb OCP) | D114: =VLOOKUP(L114,Tabella_prezzi!$A$1:$J$223,8,FALSE) -> 25GbE Dual Rate SFP28 SR Optic for SFP28 ports (CONNECTX-5 25Gb OCP) | G114: 2 | H114: =VLOOKUP(L114,Tabella_prezzi!$A$1:$J$223,3,FALSE) -> 0 | I114: =VLOOKUP(L114,Tabella_prezzi!$A$1:$J$223,9,FALSE) -> TS3-OpzA20O25GB | K114: =VLOOKUP(L114,Tabella_prezzi!$A$1:$J$223,4,FALSE) -> 258 | L114: L8N54 | M114: =VLOOKUP(L114,Tabella_prezzi!$A$1:$J$223,6,FALSE) -> TS3L8-OT25GB
A115: Mellanox LinkX 100Gb/s Passive Copper DAC 3m | D115: =VLOOKUP(L115,Tabella_prezzi!$A$1:$J$223,8,FALSE) -> Mellanox LinkX 100Gb/s Passive Copper DAC 3m | G115: 3 | H115: =VLOOKUP(L115,Tabella_prezzi!$A$1:$J$223,3,FALSE) -> 0 | I115: =VLOOKUP(L115,Tabella_prezzi!$A$1:$J$223,9,FALSE) -> TS3-OpzA20MLX3M | K115: =VLOOKUP(L115,Tabella_prezzi!$A$1:$J$223,4,FALSE) -> 258 | L115: L8N55 | M115: =VLOOKUP(L115,Tabella_prezzi!$A$1:$J$223,6,FALSE) -> TS3L8-MLX100M3
A118: Mini DisplayPort to VGA
B119: 0 | C119: 0
B120: 1 | C120: 1
B121: 4 | C121: 4

Sheet Tabella_prezzi (hidden)
A1: N° | C1: Attributo | D1: Valore inserito | E1: N° | F1: Codice Convenzione | G1: Qty: | H1: Description: | I1: Sku Number: | J1: Sku Number:
A2: L8N01 | B2: 1 | C2: Server rackable high-density | D2: 8877 | E2: L8N01 | F2: TS3L8-SRV-U | G2: 1 | H2: DELL PowerEdge C6400 con 4 x DELL PowerEdge C6525 | I2: L8N01-ServerC6525 | K2: DELL
A3: L8N02 | B3: 2 | C3: Kit n. 1 Processore aggiuntivo | D3: 1157 | E3: L8N02 | F3: TS3L8-CPU | G3: 1 | H3: Processore AMD EPYC 7282 16C | I3: L8N02-OpzCPU | J3: 338-BWBE | K3: DELL
A4: L8N03 | B4: 3 | C4: OpzRAM32GB | D4: 164 | E4: L8N03 | F4: TS3L8-RAM32 | G4: 1 | H4: 32GB - 2Rx4 DDR4 RDIMM 3200MHz | I4: L8N03-OpzRAM32GB | J4: AA799087 | K4: DELL
A5: L8N04 | B5: 4 | C5: OpzRAM64GB | D5: 400 | E5: L8N04 | F5: TS3L8-RAM64 | G5: 1 | H5: 64GB - 2RX4 DDR4 RDIMM 3200MHz | I5: L8N04-OpzRAM64GB | J5: AA799110 | K5: DELL
A6: L8N05 | B6: 5 | C6: OpzGigabit | D6: 26 | E6: L8N05 | F6: TS3L8-LAN1-L | G6: 1 | H6: Scheda LAN 5719 QP 1Gb LOW | I6: L8N05-OpzGigabitLP | J6: 540-BBHB | K6: DELL
A7: L8N06 | B7: 6 | C7: OpzGigabit10Gbps | D7: 153 | E7: L8N06 | F7: TS3L8-LAN10-L | G7: 1 | H7: Scheda DP X710 10Gb SFP+ LOW | I7: L8N06-OpzGigabit10GbpsLP | J7: 540-BBML | K7: DELL
G8: 2 | J8: 407-BCBN | K8: DELL
A9: L8N07 | B9: 7 | C9: OpzGigabit25Gbps | D9: 389 | E9: L8N07 | F9: TS3L8-LAN25-L | G9: 1 | H9: Scheda DP CONNECTX-5 25Gb SFP28 LOW | I9: L8N07-OpzGigabit25GbpsLP | J9: 540-BCNJ | K9: DELL
G10: 2 | J10: 407-BCHI | K10: DELL
A11: L8N08 | B11: 8 | C11: OpzGigabit10Gbps CNA | D11: 159 | E11: L8N08 | F11: TS3L8-CNA10-L | G11: 1 | H11: Scheda CNA QL41232 DP 10Gb SFP+ LOW | I11: L8N08-OpzCNA10GbpsLP | J11: 540-BCNS | K11: DELL
G12: 2 | J12: 407-BCBN | K12: DELL
A13: L8N09 | B13: 9 | C13: OpzHDD1TB | D13: 105 | E13: L8N09 | F13: TS3L8-HDD1TB | G13: 1 | H13: HDD 1200GB 10K SAS 12Gbps 2.5in Hot-plug | I13: L8N09-OpzHDD1TB | J13: 400-ATJL | K13: DELL
A14: L8N10 | B14: 10 | C14: OpzHDD300GB | D14: 89 | E14: L8N10 | F14: TS3L8-HDD300GB | G14: 1 | H14: HDD 300GB 15K SAS 12Gbps 2.5in Hot-plug | I14: L8N10-OpzHDD300GB | J14: 400-ATII | K14: DELL
A15: L8N11 | B15: 11 | C15: OpzSSD-RI1,6TB | D15: 615 | E15: L8N11 | F15: TS3L8-RI1600GB | G15: 1 | H15: SSD 1,92TB SAS RI 12Gbps 2.5in Hot-plug, 1 DWPD | I15: L8N11-OpzSSD-RI1,6TB | J15: 400-BFZC | K15: DELL
A16: L8N12 | B16: 12 | C16: OpzSSD-MU1,6TB | D16: 754 | E16: L8N12 | F16: TS3L8-MU1600GB | G16: 1 | H16: SSD 1,6TB SAS MU 12Gbps 2.5in Hot-plug, 3 DWPD | I16: L8N12-OpzSSD-MU1,6TB | J16: 400-AZIH | K16: DELL
A17: L8N13 | B17: 13 | C17: OpzSSD-RI800GB | D17: 432 | E17: L8N13 | F17: TS3L8-RI800GB | G17: 1 | H17: SSD 960GB SAS RI 12Gbps 2.5in Hot-plug, 1 DWPD | I17: L8N13-OpzSSD-RI800GB | J17: 400-BBPN | K17: DELL
A18: L8N14 | B18: 14 | C18: OpzSSD-MU800GB | D18: 599 | E18: L8N14 | F18: TS3L8-MU800GB | G18: 1 | H18: SSD 960GB SAS MU 12Gbps 2.5in Hot-plug, 3 DWPD | I18: L8N14-OpzSSD-MU800GB | J18: 400-BCNN | K18: DELL
A19: L8N15 | B19: 15 | C19: OpzSSD-RI400GB | D19: 288 | E19: L8N15 | F19: TS3L8-RI400GB-U | G19: 1 | H19: SSD 960GB SAS RI 12Gbps 2.5in Hot-plug, 1 DWPD | I19: L8N15-OpzSSD-RI400GB | J19: 400-BKYR | K19: DELL
A20: L8N16 | B20: 16 | C20: OpzUps (3000VA) | D20: 328 | E20: L8N16 | F20: TS3L8-UPS | G20: 1 | H20: Powerme Online UPS RPMM/9 3K, Rack, SNMP card | I20: L8N16-OpzUps | J20: RPMM9/3K | K20: DELL
G21: 1 | K21: DELL
A22: L8N17 | B22: 17 | C22: OpzGUI | D22: 439 | E22: L8N17 | F22: TS3L8-GUI | G22: 1 | H22: Console KVM GUI da rack | I22: L8N17-OpzGUI | J22: F9857N | K22: DELL
A23: L8N18 | B23: 18 | C23: OpzKVM | D23: 506 | E23: L8N18 | F23: TS3L8-SWKVM | G23: 1 | H23: KVM Switch IP per GUI 16P | I23: L8N18-OpzKVM | J23: T9816NIP | K23: DELL
A24: L8N19 | B24: 19 | C24: OpzWinServSTD | D24: 609 | E24: L8N19 | F24: TS3L8-WINSRVSTD | G24: 1 | H24: Windows Server 2019 Standard, ROK, 16CORE | I24: L8N19-OpzWinServSTD | J24: 634-BSFX | K24: DELL
A25: L8N20 | B25: 20 | C25: OpzDeviceCal | D25: 21 | E25: L8N20 | F25: TS3L8-WINDEVCAL | G25: 1 | H25: Windows Server 2019 Device CAL (STD or DC) | I25: L8N20-OpzDeviceCal | J25: 623-BBCV | K25: DELL
A26: L8N21 | B26: 21 | C26: OpzUserCal | D26: 26 | E26: L8N21 | F26: TS3L8-WINUSRCAL | G26: 1 | H26: Windows Server 2019 User CAL (STD or DC) | I26: L8N21-OpzUserCal | J26: 623-BBCT | K26: DELL
A27: L8N22 | B27: 22 | C27: OpzWinServSTD2core | D27: 87 | E27: L8N22 | F27: TS3L8-WINSRV2C | G27: 1 | H27: Windows Server 2019 Standard, Additional License, 2CORE | I27: L8N22-OpzWinServSTD2core | J27: 634-BSGS | K27: DELL
A28: L8N23 | B28: 23 | C28: OpzOpenSource | D28: 52 | E28: L8N23 | F28: TS3L8-LINUX | G28: 1 | H28: Ubuntu 18.04 LTS 64 Bit | I28: L8N23-OpzOpenSource | J28: UbuntuSRV18 | K28: DELL
A29: L8N24 | B29: 24 | C29: OpzHDDRetention | D29: 44 | E29: L8N24 | F29: TS3L8-HDRTNTN | G29: 1 | H29: Hard Disk Retention 36m | I29: L8N24-OpzHDDRetention | J29: 785-10921 | K29: DELL
A30: L8N25 | B30: 25 | C30: OpzEstensione24 | D30: 318 | E30: L8N25 | F30: TS3L8-5Y | G30: 1 | H30: Estensione della manutenzione in garanzia per ulteriori 24 mesi | I30: L8N25-OpzEstensione24 | J30: 742-10105 | K30: DELL
A31: L8N26 | B31: 26 | C31: OpzRack | D31: 511 | E31: L8N26 | F31: TS3L8-RACK | G31: 1 | H31: Armadio Rack 42U | I31: L8N26-OpzRack | J31: P6142NCONSIP | K31: DELL
A32: L8N27 | B32: 27 | C32: OpzHDDRetention | D32: 73 | E32: L8N27 | F32: TS3L8-HDRTNTN60 | G32: 1 | H32: Hard Disk Retention 60m | I32: L8N27-OpzHDDRetention60 | K32: DELL
A33: L8N28 | B33: 28 | D33: 826 | E33: L8N28 | F33: TS3L8-MCX6SP-L | G33: 1 | H33: Mellanox ConnectX-6 Single Port HDR100 QSFP56 Infiniband Adapter, PCIe Low Profile | I33: TS3-OpzA20MCX6L | J33: 540-BCMX | K33: DELL
A34: L8N29 | B34: 29 | D34: 953 | E34: L8N29 | F34: TS3L8-BOSS480 | G34: 1 | H34: BOSS controller card for C6525, 2 x 480G M.2 Drive | I34: TS3-OpzA20B4808 | J34: 403-BBRN | K34: DELL
G35: 2 | J35: 400-AVSS | K35: DELL
A36: L8N30 | B36: 30 | C36: OpzRJ45 3m | D36: 3 | E36: L8N30 | F36: TS3L8-RJ453M | G36: 1 | H36: Cavo “patch” di 3 mt RJ45 certificato per gigabit ethernet | I36: TS3-OpzA20RJ45
A37: L8N31 | B37: 31 | C37: OpzHBA345 | D37: 635 | E37: L8N31 | F37: TS3L8-HBA345 | G37: 1 | H37: HBA345 Controller Card in sostituzione del Controller in configurazione BASE | I37: TS3-OpzA20BA345 | K37: DELL
A38: L8N32 | B38: 32 | D38: 1106 | E38: L8N32 | F38: TS3L8-WI800GB | G38: 1 | H38: SSD 800GB SAS WI 12Gbps 2.5in Hot-plug, 10 DWPD | I38: TS3-OpzA20800WI
A39: L8N33 | D39: 16549 | E39: L8N33 | F39: TS3L8-VS7STD6AK | G39: 1 | H39: VMware vSphere 7 Standard Acceleration Kit OEM for 6 CPU, 3YR License and Maintenance | I39: TS3-OpzA20VMW01
A40: L8N34 | D40: 1557 | E40: L8N34 | F40: TS3L8-VS7STD | G40: 1 | H40: VMware vSphere 7 Standard OEM, 1 CPU (max 32 cores/CPU socket), 3YR License and Maintenance | I40: TS3-OpzA20VMW02
A41: L8N35 | D41: 34860 | E41: L8N35 | F41: TS3L8-VS7EPL6AK | G41: 1 | H41: VMware vSphere 7 Enterprise Plus Acceleration Kit OEM for 6 CPU, 3YR License and Maintenance | I41: TS3-OpzA20VMW03
A42: L8N36 | D42: 4576 | E42: L8N36 | F42: TS3L8-VS7EPL | G42: 1 | H42: VMware vSphere 7 Enterprise Plus OEM, 1 CPU (max 32 cores/CPU socket), 3YR License and Maintenance | I42: TS3-OpzA20VMW04
A43: L8N37 | D43: 7860 | E43: L8N37 | F43: TS3L8-VCS7STD | G43: 1 | H43: VMware vCenter 7 Standard OEM ,Per Instance,3YR License and Maintenance | I43: TS3-OpzA20VMW05
A44: L8N38 | D44: 7196 | E44: L8N38 | F44: TS3L8-ST7ENT | G44: 1 | H44: VMware vSAN 7 Enterprise OEM, 1 CPU (max 32 cores/CPU socket), 3YR License and Maintenance | I44: TS3-OpzA20VMW06
A45: L8N39 | D45: 5028 | E45: L8N39 | F45: TS3L8-HZ8ADC10 | G45: 1 | H45: VMware Horizon 8 Advanced OEM,10 Pack,CCU, 3YR License and Maintenance | I45: TS3-OpzA20VMW07
A46: L8N40 | D46: 7116 | E46: L8N40 | F46: TS3L8-HZ8ENC10 | G46: 1 | H46: VMware Horizon 8 Enterprise OEM,10 Pack,CCU, 3YR License and Maintenance | I46: TS3-OpzA20VMW08
A47: L8N41 | D47: 3089 | E47: L8N41 | F47: TS3L8-HZ8ADN10 | G47: 1 | H47: VMware Horizon Advanced OEM, 10 Pack, Named User, 3YR License and Maintenance | I47: TS3-OpzA20VMW09
A48: L8N42 | D48: 4398 | E48: L8N42 | F48: TS3L8-HZ8ENN10 | G48: 1 | H48: VMware Horizon 8 Enterprise OEM,10 Pack, Named User, 3YR License and Maintenance | I48: TS3-OpzA20VMW10
A49: L8N43 | D49: 2727 | E49: L8N43 | F49: TS3L8-Encl13Y4H | G49: 1 | H49: Enclosure SAS 12 Slot 3.5", 3YR ProSupport and 4hr Mission Critical | I49: TS3-OpzA20E13Y4
A50: L8N44 | D50: 2827 | E50: L8N44 | F50: TS3L8-Encl25Y4H | G50: 1 | H50: Enclosure SAS 12 Slot 3.5", 5YR ProSupport and 4hr Mission Critical | I50: TS3-OpzA20E25Y4
A51: L8N45 | D51: 2653 | E51: L8N45 | F51: TS3L8-RACKM32A | G51: 1 | H51: Armadio Rack 42U 600x1200, 2 x PDU Monofase 2G, ZeroU, 32A, 230V, (36) C13 & (6) C19 | I51: TS3-OpzA20RAPCM
A52: L8N46 | D52: 4311 | E52: L8N46 | F52: TS3L8-RACKT32A | G52: 1 | H52: Armadio Rack 42U 600x1200, 2 x PDU Trifase 2G, ZeroU, 22.0kW(32A) 17.3kW(24A), 230V, (30) C13 & (12) C19 | I52: TS3-OpzA20RAPCT
A53: L8N47 | D53: 154 | E53: L8N47 | F53: TS3L8-OCP25GB | G53: 1 | H53: Scheda DP CONNECTX-5 25Gb SFP28 OCP, Transceiver NON INCLUSI | I53: TS3-OpzA20OCP25
A54: L8N48 | D54: 267 | E54: L8N48 | F54: TS3L8-X710BT-L | G54: 1 | H54: Intel X710-T2L Dual Port 10GbE BASE-T, PCIE Adapter, LP | I54: TS3-OpzA20X710
A55: L8N49 | D55: 240 | E55: L8N49 | F55: TS3L8-57416BT-L | G55: 1 | H55: Broadcom 57416 Dual Port 10Gb, Base-T, PCIe Adapter, LP | I55: TS3-OpzA2057416
A56: L8N50 | D56: 494 | E56: L8N50 | F56: TS3L8-ED16TB | G56: 1 | H56: HDD 16TB SAS 12Gbps 7k 3.5in Hot-Plug per Enclosure 3.5" | I56: TS3-OpzA20ED16TB
A57: L8N51 | D57: 443 | E57: L8N51 | F57: TS3L8-ED12TB | G57: 1 | H57: HDD 12TB SAS 12Gbps 7k 3.5in Hot-Plug per Enclosure 3.5" | I57: TS3-OpzA20ED12TB
A58: L8N52 | D58: 281 | E58: L8N52 | F58: TS3L8-ED08TB | G58: 1 | H58: HDD 8TB SAS 12Gbps 7k 3.5in Hot-Plug per Enclosure 3.5" | I58: TS3-OpzA20ED8TB
A59: L8N53 | D59: 126 | E59: L8N53 | F59: TS3L8-OT10GB | G59: 1 | H59: SFP+ SR Optic for SFP+ ports (CONNECTX-5 10Gb OCP) | I59: TS3-OpzA20O10GB
A60: L8N54 | D60: 258 | E60: L8N54 | F60: TS3L8-OT25GB | G60: 1 | H60: 25GbE Dual Rate SFP28 SR Optic for SFP28 ports (CONNECTX-5 25Gb OCP) | I60: TS3-OpzA20O25GB
A61: L8N55 | D61: 258 | E61: L8N55 | F61: TS3L8-MLX100M3 | G61: 1 | H61: Mellanox LinkX 100Gb/s Passive Copper DAC 3m | I61: TS3-OpzA20MLX3M
A62: L8N56 | D62: 35 | E62: L8N56 | F62: TS3L8-MDPVGA | G62: 1 | H62: Adapter - Mini DisplayPort to VGA | I62: TS3-OpzA20MDPVGA
A63: L8N57 | E63: L8N57
A64: L8N99 | B64: 99 | C64: OpzCodiceNATO | D64: 200 | E64: L8N99 | F64: TS3L8-NATO | G64: 1 | H64: Codifica NATO | I64: L8N99-OpzCodiceNATO | K64: DELL

Sheet Riepilogo
J1: 1
B2: Ente: | J2: 1 | L2: ente | M2: =IF(D2>0,0,1) -> 1
J3: 1
B4: Ordine N. | E4: =M7 -> ERRORE DI MANCATA COPMILAZIONE DATI NECESSARI PER L'ORDINATIVO | J4: 1 | L4: N°ordine | M4: =IF(D4>0,0,1) -> 1
E5: =M8 ->  | J5: 1
B6: Data | E6: =M9 ->  | J6: 1 | L6: data | M6: =IF(D6>0,0,1) -> 1
E7: =M10 ->  | J7: 1 | L7: ERRORE1 | M7: =IF(M2+M4+M6+M11+M13+M16+M18+O18+O13,"ERRORE DI MANCATA COPMILAZIONE DATI NECESSARI PER L'ORDINATIVO","") -> ERRORE DI MANCATA COPMILAZIONE DATI NECESSARI PER L'ORDINATIVO | N7: =IF(M7="",0,1) -> 1
B8: Totale IVA incl. | D8: =G115 -> 0 | E8: =IF(Q11=0,"CONFIGURATORE OK", "") ->  | G8: Version 4.0 | J8: 1 | L8: Warning2 | M8: =IF(G112>D112,"!!! ATTENZIONE !!! L'IMPORTO 20% SUPERA IL VALORE MASSIMO CONSENTITO","") ->  | N8: =IF(M8="",0,1) -> 0
J9: 1 | L9: ERRORE3 | M9: ="" ->  | N9: 0
J10: 1 | L10: Waning4 | M10: =IF(N10>0,"!!! ATTENZIONE !!! COMPLETARE IL CAMPO NOTE NELLE CONFIGURAZIONI","") ->  | N10: =IF(M22>0,O10,0)+IF(N22>0,P10,0)+IF(O22>0,Q10,0) -> 0 | O10: =IF(Lotto8_C6525_1!$H$44="Specificare la configurazione RAID per l'installazione del Sistema Operativo, se richiesto. e/o inserire eventuali note.",1,0) -> 1 | P10: =IF(Lotto8_C6525_2!$H$44="Specificare la configurazione RAID per l'installazione del Sistema Operativo, se richiesto. e/o inserire eventuali note.",1,0) -> 1 | Q10: =IF(Lotto8_C6525_3!$H$44="Specificare la configurazione RAID per l'installazione del Sistema Operativo, se richiesto. e/o inserire eventuali note.",1,0) -> 1
B11: Referente Consegna | J11: 1 | L11: ref1 | M11: =IF(D11>0,0,1) -> 1 | O11: Verifica Errori | Q11: =N7+N9 -> 1
J12: 1
B13: Telefono | D13: email | J13: 1 | L13: tel1 | M13: =IF(C13>0,0,1) -> 1 | N13: mail1 | O13: =IF(E13>0,0,1) -> 1
J14: 1
J15: 1
B16: Referente Installazione | J16: 1 | L16: ref2 | M16: =IF(D16>0,0,1) -> 1
J17: 1
B18: Telefono | D18: email | J18: 1 | L18: tel2 | M18: =IF(C18>0,0,1) -> 1 | N18: mail2 | O18: =IF(E18>0,0,1) -> 1
J19: 1
J20: 1 | M20: Server1 | N20: Server2 | O20: Server3 | P20: Totale
B21: TECNOLOGIE SERVER 3 LOTTO 8 - LISTA ARTICOLI IN CONVENZIONE - | J21: =IF($G$111>0,1,0) -> 0
B22: Quantità | C22: Codice Articolo Produttore | D22: Codice Articolo Convenzione | E22: Descrizione | F22: Costo unitario | G22: Costo complessivo | J22: =IF($G$111>0,1,0) -> 0 | M22: =Lotto8_C6525_1!F5 -> 0 | N22: =Lotto8_C6525_2!F5 -> 0 | O22: =Lotto8_C6525_3!F5 -> 0 | Q22: Qty_1 | R22: Qty_2 | S22: Qty_3
B23: =IF(P23>0,P23,"") ->  | C23: =IF(B23="","",VLOOKUP(L23,Tabella_prezzi!$A$1:$K$183,9,FALSE)) ->  | D23: =IF(B23="","",VLOOKUP(L23,Tabella_prezzi!$A$1:$K$183,6,FALSE)) ->  | E23: =IF(B23="","",VLOOKUP(L23,Tabella_prezzi!$A$1:$K$183,8,FALSE)) ->  | F23: =IF(B23="","",VLOOKUP(L23,Tabella_prezzi!$A$1:$K$183,4,FALSE)) ->  | G23: =IF(C23="","",F23*B23) ->  | J23: =IF(B23="",0,1) -> 0 | K23: TS3L8-SRV-U | L23: L8N01 | M23: =COUNTIF(TS3L8_L8N_1,L23)*$M$22 -> 0 | N23: =COUNTIF(TS3L8_L8N_2,L23)*$N$22 -> 0 | O23: =COUNTIF(TS3L8_L8N_3,L23)*$O$22 -> 0 | P23: =SUM(M23:O23) -> 0 | T23: =Lotto8_C6525_1!L9 -> L8N01 | U23: =Lotto8_C6525_1!F9 ->  | V23: =Lotto8_C6525_2!L9 -> L8N01 | W23: =Lotto8_C6525_2!F9 ->  | X23: =Lotto8_C6525_3!L9 -> L8N01 | Y23: =Lotto8_C6525_3!F9 ->  | AA23: =ISODD(J23) -> FALSE | AB23: server
B24: =IF(P24>0,P24,"") ->  | C24: =IF(B24="","",VLOOKUP(L24,Tabella_prezzi!$A$1:$K$183,9,FALSE)) ->  | D24: =IF(B24="","",VLOOKUP(L24,Tabella_prezzi!$A$1:$K$183,6,FALSE)) ->  | E24: =IF(B24="","",VLOOKUP(L24,Tabella_prezzi!$A$1:$K$183,8,FALSE)) ->  | F24: =IF(B24="","",VLOOKUP(L24,Tabella_prezzi!$A$1:$K$183,4,FALSE)) ->  | G24: =IF(C24="","",F24*B24) ->  | J24: =IF(B24="",0,1) -> 0 | K24: TS3L8-CPU | L24: L8N02 | M24: =COUNTIF(TS3L8_L8N_1,L24)*$M$22*4 -> 0 | N24: =COUNTIF(TS3L8_L8N_2,L24)*$N$22*4 -> 0 | O24: =COUNTIF(TS3L8_L8N_3,L24)*$O$22*4 -> 0 | P24: 0 | T24: =Lotto8_C6525_1!L22 ->  | U24: =Lotto8_C6525_1!F22 -> 0 | V24: =Lotto8_C6525_2!L22 ->  | W24: =Lotto8_C6525_2!F22 -> 0 | X24: =Lotto8_C6525_3!L22 ->  | Y24: =Lotto8_C6525_3!F22 -> 0 | AA24: =ISODD(SUM($J$23:J24)) -> FALSE | AB24: Cpu
C25: =IF(B25="","",VLOOKUP(L25,Tabella_prezzi!$A$1:$K$183,9,FALSE)) ->  | D25: =IF(B25="","",VLOOKUP(L25,Tabella_prezzi!$A$1:$K$183,6,FALSE)) ->  | E25: =IF(B25="","",VLOOKUP(L25,Tabella_prezzi!$A$1:$K$183,8,FALSE)) ->  | F25: =IF(B25="","",VLOOKUP(L25,Tabella_prezzi!$A$1:$K$183,4,FALSE)) ->  | J25: 0 | K25: TS3L8-RAM32 | L25: L8N03 | M25: =COUNTIF(TS3L8_L8N_1,L25)*$M$22*Q25*4 -> 0 | N25: =COUNTIF(TS3L8_L8N_2,L25)*$N$22*R25*4 -> 0 | O25: =COUNTIF(TS3L8_L8N_3,L25)*$O$22*S25*4 -> 0 | P25: =SUM(M25:O25) -> 0 | Q25: =Lotto8_C6525_1!F25 -> 0 | R25: =Lotto8_C6525_2!F25 -> 0 | S25: =Lotto8_C6525_3!F25 -> 0 | AA25: =ISODD(SUM($J$23:J25)) -> FALSE
C26: =IF(B26="","",VLOOKUP(L26,Tabella_prezzi!$A$1:$K$183,9,FALSE)) ->  | D26: =IF(B26="","",VLOOKUP(L26,Tabella_prezzi!$A$1:$K$183,6,FALSE)) ->  | E26: =IF(B26="","",VLOOKUP(L26,Tabella_prezzi!$A$1:$K$183,8,FALSE)) ->  | F26: =IF(B26="","",VLOOKUP(L26,Tabella_prezzi!$A$1:$K$183,4,FALSE)) ->  | J26: 0 | K26: TS3L8-RAM64 | L26: L8N04 | M26: =COUNTIF(TS3L8_L8N_1,L26)*$M$22*Q26*4 -> 0 | N26: =COUNTIF(TS3L8_L8N_2,L26)*$N$22*R26*4 -> 0 | O26: =COUNTIF(TS3L8_L8N_3,L26)*$O$22*S26*4 -> 0 | P26: 0 | Q26: =Lotto8_C6525_1!F25 -> 0 | R26: =Lotto8_C6525_2!F25 -> 0 | S26: =Lotto8_C6525_3!F25 -> 0 | T26: =Lotto8_C6525_1!L25 -> L8N04 | V26: =Lotto8_C6525_2!L25 -> L8N04 | X26: =Lotto8_C6525_3!L25 -> L8N04 | AA26: =ISODD(SUM($J$23:J26)) -> FALSE
C27: =IF(B27="","",VLOOKUP(L27,Tabella_prezzi!$A$1:$K$183,9,FALSE)) ->  | D27: =IF(B27="","",VLOOKUP(L27,Tabella_prezzi!$A$1:$K$183,6,FALSE)) ->  | E27: =IF(B27="","",VLOOKUP(L27,Tabella_prezzi!$A$1:$K$183,8,FALSE)) ->  | F27: =IF(B27="","",VLOOKUP(L27,Tabella_prezzi!$A$1:$K$183,4,FALSE)) ->  | J27: 0 | K27: TS3L8-LAN1-L | L27: L8N05 | M27: =COUNTIF(TS3L8_L8N_1,L27)*$M$22*4 -> 0 | N27: =COUNTIF(TS3L8_L8N_2,L27)*$N$22*4 -> 0 | O27: =COUNTIF(TS3L8_L8N_3,L27)*$O$22*4 -> 0 | P27: =SUM(M27:O27) -> 0 | T27: =Lotto8_C6525_1!L26 -> 0 | U27: =Lotto8_C6525_1!F26 -> 0 | V27: =Lotto8_C6525_2!L26 -> 0 | W27: =Lotto8_C6525_2!F26 -> 0 | X27: =Lotto8_C6525_3!L26 -> 0 | Y27: =Lotto8_C6525_3!F26 -> 0 | AA27: =ISODD(SUM($J$23:J27)) -> FALSE
C28: =IF(B28="","",VLOOKUP(L28,Tabella_prezzi!$A$1:$K$183,9,FALSE)) ->  | D28: =IF(B28="","",VLOOKUP(L28,Tabella_prezzi!$A$1:$K$183,6,FALSE)) ->  | E28: =IF(B28="","",VLOOKUP(L28,Tabella_prezzi!$A$1:$K$183,8,FALSE)) ->  | F28: =IF(B28="","",VLOOKUP(L28,Tabella_prezzi!$A$1:$K$183,4,FALSE)) ->  | J28: 0 | K28: TS3L8-LAN10-L | L28: L8N06 | M28: =COUNTIF(TS3L8_L8N_1,L28)*$M$22*4 -> 0 | N28: =COUNTIF(TS3L8_L8N_2,L28)*$N$22*4 -> 0 | O28: =COUNTIF(TS3L8_L8N_3,L28)*$O$22*4 -> 0 | P28: =SUM(M28:O28) -> 0 | T28: =Lotto8_C6525_1!L27 -> 0 | U28: =Lotto8_C6525_1!F27 -> 0 | V28: =Lotto8_C6525_2!L27 -> 0 | W28: =Lotto8_C6525_2!F27 -> 0 | X28: =Lotto8_C6525_3!L27 -> 0 | Y28: =Lotto8_C6525_3!F27 -> 0 | AA28: =ISODD(SUM($J$23:J28)) -> FALSE
C29: =IF(B29="","",VLOOKUP(L29,Tabella_prezzi!$A$1:$K$183,9,FALSE)) ->  | D29: =IF(B29="","",VLOOKUP(L29,Tabella_prezzi!$A$1:$K$183,6,FALSE)) ->  | E29: =IF(B29="","",VLOOKUP(L29,Tabella_prezzi!$A$1:$K$183,8,FALSE)) ->  | F29: =IF(B29="","",VLOOKUP(L29,Tabella_prezzi!$A$1:$K$183,4,FALSE)) ->  | J29: 0 | K29: TS3L8-LAN25-L | L29: L8N07 | M29: =COUNTIF(TS3L8_L8N_1,L29)*$M$22*4 -> 0 | N29: =COUNTIF(TS3L8_L8N_2,L29)*$N$22*4 -> 0 | O29: =COUNTIF(TS3L8_L8N_3,L29)*$O$22*4 -> 0 | P29: 0 | AA29: =ISODD(SUM($J$23:J29)) -> FALSE
C30: =IF(B30="","",VLOOKUP(L30,Tabella_prezzi!$A$1:$K$183,9,FALSE)) ->  | D30: =IF(B30="","",VLOOKUP(L30,Tabella_prezzi!$A$1:$K$183,6,FALSE)) ->  | E30: =IF(B30="","",VLOOKUP(L30,Tabella_prezzi!$A$1:$K$183,8,FALSE)) ->  | F30: =IF(B30="","",VLOOKUP(L30,Tabella_prezzi!$A$1:$K$183,4,FALSE)) ->  | J30: 0 | K30: TS3L8-CNA10-L | L30: L8N08 | M30: =COUNTIF(TS3L8_L8N_1,L30)*$M$22*4 -> 0 | N30: =COUNTIF(TS3L8_L8N_2,L30)*$N$22*4 -> 0 | O30: =COUNTIF(TS3L8_L8N_3,L30)*$O$22*4 -> 0 | P30: 0 | AA30: =ISODD(SUM($J$23:J30)) -> FALSE
C31: =IF(B31="","",VLOOKUP(L31,Tabella_prezzi!$A$1:$K$183,9,FALSE)) ->  | D31: =IF(B31="","",VLOOKUP(L31,Tabella_prezzi!$A$1:$K$183,6,FALSE)) ->  | E31: =IF(B31="","",VLOOKUP(L31,Tabella_prezzi!$A$1:$K$183,8,FALSE)) ->  | F31: =IF(B31="","",VLOOKUP(L31,Tabella_prezzi!$A$1:$K$183,4,FALSE)) ->  | J31: 0 | K31: TS3L8-HDD1TB | L31: L8N09 | M31: =COUNTIF(TS3L8_L8N_1,L31)*$M$22*Q31*4 -> 0 | N31: =COUNTIF(TS3L8_L8N_2,L31)*$N$22*R31*4 -> 0 | O31: =COUNTIF(TS3L8_L8N_3,L31)*$O$22*S31*4 -> 0 | P31: 0 | Q31: =Lotto8_C6525_1!F47 -> 0 | R31: =Lotto8_C6525_2!F47 -> 0 | S31: =Lotto8_C6525_3!F47 -> 0 | T31: =Lotto8_C6525_1!L47 -> L8N09 | V31: =Lotto8_C6525_2!L47 -> L8N09 | X31: =Lotto8_C6525_3!L47 -> L8N09 | AA31: =ISODD(SUM($J$23:J31)) -> FALSE
C32: =IF(B32="","",VLOOKUP(L32,Tabella_prezzi!$A$1:$K$183,9,FALSE)) ->  | D32: =IF(B32="","",VLOOKUP(L32,Tabella_prezzi!$A$1:$K$183,6,FALSE)) ->  | E32: =IF(B32="","",VLOOKUP(L32,Tabella_prezzi!$A$1:$K$183,8,FALSE)) ->  | F32: =IF(B32="","",VLOOKUP(L32,Tabella_prezzi!$A$1:$K$183,4,FALSE)) ->  | J32: 0 | K32: TS3L8-HDD300GB | L32: L8N10 | M32: 0 | N32: 0 | O32: 0 | P32: 0 | Q32: =Lotto8_C6525_1!F45 -> 0 | R32: =Lotto8_C6525_2!F45 -> 0 | S32: =Lotto8_C6525_3!F45 -> 0 | T32: =Lotto8_C6525_1!L45 -> L8N10 | V32: =Lotto8_C6525_2!L45 -> L8N10 | X32: =Lotto8_C6525_3!L45 -> L8N10 | AA32: =ISODD(SUM($J$23:J32)) -> FALSE
C33: =IF(B33="","",VLOOKUP(L33,Tabella_prezzi!$A$1:$K$183,9,FALSE)) ->  | D33: =IF(B33="","",VLOOKUP(L33,Tabella_prezzi!$A$1:$K$183,6,FALSE)) ->  | E33: =IF(B33="","",VLOOKUP(L33,Tabella_prezzi!$A$1:$K$183,8,FALSE)) ->  | F33: =IF(B33="","",VLOOKUP(L33,Tabella_prezzi!$A$1:$K$183,4,FALSE)) ->  | J33: 0 | K33: TS3L8-RI1600GB | L33: L8N11 | M33: 0 | N33: 0 | O33: 0 | P33: 0 | Q33: =Lotto8_C6525_1!F53 -> 0 | R33: =Lotto8_C6525_2!F53 -> 0 | S33: =Lotto8_C6525_3!F53 -> 0 | T33: =Lotto8_C6525_1!L53 -> L8N11 | V33: =Lotto8_C6525_2!L53 -> L8N11 | X33: =Lotto8_C6525_3!L53 -> L8N11 | AA33: =ISODD(SUM($J$23:J33)) -> FALSE
C34: =IF(B34="","",VLOOKUP(L34,Tabella_prezzi!$A$1:$K$183,9,FALSE)) ->  | D34: =IF(B34="","",VLOOKUP(L34,Tabella_prezzi!$A$1:$K$183,6,FALSE)) ->  | E34: =IF(B34="","",VLOOKUP(L34,Tabella_prezzi!$A$1:$K$183,8,FALSE)) ->  | F34: =IF(B34="","",VLOOKUP(L34,Tabella_prezzi!$A$1:$K$183,4,FALSE)) ->  | J34: 0 | K34: TS3L8-MU1600GB | L34: L8N12 | M34: 0 | N34: 0 | O34: 0 | P34: 0 | Q34: =Lotto8_C6525_1!F57 -> 0 | R34: =Lotto8_C6525_2!F57 -> 0 | S34: =Lotto8_C6525_3!F57 -> 0 | T34: =Lotto8_C6525_1!L57 -> L8N12 | V34: =Lotto8_C6525_2!L57 -> L8N12 | X34: =Lotto8_C6525_3!L57 -> L8N12 | AA34: =ISODD(SUM($J$23:J34)) -> FALSE
C35: =IF(B35="","",VLOOKUP(L35,Tabella_prezzi!$A$1:$K$183,9,FALSE)) ->  | D35: =IF(B35="","",VLOOKUP(L35,Tabella_prezzi!$A$1:$K$183,6,FALSE)) ->  | E35: =IF(B35="","",VLOOKUP(L35,Tabella_prezzi!$A$1:$K$183,8,FALSE)) ->  | F35: =IF(B35="","",VLOOKUP(L35,Tabella_prezzi!$A$1:$K$183,4,FALSE)) ->  | J35: 0 | K35: TS3L8-RI800GB | L35: L8N13 | M35: 0 | N35: 0 | O35: 0 | P35: 0 | Q35: =IF(Lotto8_C6525_1!F51>=2,Lotto8_C6525_1!F51-2,0) -> 0 | R35: =IF(Lotto8_C6525_2!F51>=2,Lotto8_C6525_2!F51-2,0) -> 0 | S35: =IF(Lotto8_C6525_3!F51>=2,Lotto8_C6525_3!F51-2,0) -> 0 | T35: =Lotto8_C6525_1!L51 -> L8N13 | V35: =Lotto8_C6525_2!L51 -> L8N13 | X35: =Lotto8_C6525_3!L51 -> L8N13 | AA35: =ISODD(SUM($J$23:J35)) -> FALSE
C36: =IF(B36="","",VLOOKUP(L36,Tabella_prezzi!$A$1:$K$183,9,FALSE)) ->  | D36: =IF(B36="","",VLOOKUP(L36,Tabella_prezzi!$A$1:$K$183,6,FALSE)) ->  | E36: =IF(B36="","",VLOOKUP(L36,Tabella_prezzi!$A$1:$K$183,8,FALSE)) ->  | F36: =IF(B36="","",VLOOKUP(L36,Tabella_prezzi!$A$1:$K$183,4,FALSE)) ->  | J36: 0 | K36: TS3L8-MU800GB | L36: L8N14 | M36: 0 | N36: 0 | O36: 0 | P36: 0 | Q36: =Lotto8_C6525_1!F55 -> 0 | R36: =Lotto8_C6525_2!F55 -> 0 | S36: =Lotto8_C6525_3!F55 -> 0 | T36: =Lotto8_C6525_1!L55 -> L8N14 | V36: =Lotto8_C6525_2!L55 -> L8N14 | X36: =Lotto8_C6525_3!L55 -> L8N14 | AA36: =ISODD(SUM($J$23:J36)) -> FALSE
C37: =IF(B37="","",VLOOKUP(L37,Tabella_prezzi!$A$1:$K$183,9,FALSE)) ->  | D37: =IF(B37="","",VLOOKUP(L37,Tabella_prezzi!$A$1:$K$183,6,FALSE)) ->  | E37: =IF(B37="","",VLOOKUP(L37,Tabella_prezzi!$A$1:$K$183,8,FALSE)) ->  | F37: =IF(B37="","",VLOOKUP(L37,Tabella_prezzi!$A$1:$K$183,4,FALSE)) ->  | J37: 0 | K37: TS3L8-RI400GB-U | L37: L8N15 | M37: 0 | N37: 0 | O37: 0 | P37: 0 | Q37: =IF(Lotto8_C6525_1!F49>=2,Lotto8_C6525_1!F49-2,0) -> 0 | R37: =IF(Lotto8_C6525_2!F49>=2,Lotto8_C6525_2!F49-2,0) -> 0 | S37: =IF(Lotto8_C6525_3!F49>=2,Lotto8_C6525_3!F49-2,0) -> 0 | T37: =Lotto8_C6525_1!L49 -> L8N15 | V37: =Lotto8_C6525_2!L49 -> L8N15 | X37: =Lotto8_C6525_3!L49 -> L8N15 | AA37: =ISODD(SUM($J$23:J37)) -> FALSE
C38: =IF(B38="","",VLOOKUP(L38,Tabella_prezzi!$A$1:$K$183,9,FALSE)) ->  | D38: =IF(B38="","",VLOOKUP(L38,Tabella_prezzi!$A$1:$K$183,6,FALSE)) ->  | E38: =IF(B38="","",VLOOKUP(L38,Tabella_prezzi!$A$1:$K$183,8,FALSE)) ->  | F38: =IF(B38="","",VLOOKUP(L38,Tabella_prezzi!$A$1:$K$183,4,FALSE)) ->  | J38: 0 | K38: TS3L8-UPS | L38: L8N16 | P38: =Altre_Opzioni!F41 -> 0 | AA38: =ISODD(SUM($J$23:J38)) -> FALSE
C39: =IF(B39="","",VLOOKUP(L39,Tabella_prezzi!$A$1:$K$183,9,FALSE)) ->  | D39: =IF(B39="","",VLOOKUP(L39,Tabella_prezzi!$A$1:$K$183,6,FALSE)) ->  | E39: =IF(B39="","",VLOOKUP(L39,Tabella_prezzi!$A$1:$K$183,8,FALSE)) ->  | F39: =IF(B39="","",VLOOKUP(L39,Tabella_prezzi!$A$1:$K$183,4,FALSE)) ->  | J39: 0 | K39: TS3L8-GUI | L39: L8N17 | P39: =Altre_Opzioni!F45 -> 0 | AA39: =ISODD(SUM($J$23:J39)) -> FALSE
C40: =IF(B40="","",VLOOKUP(L40,Tabella_prezzi!$A$1:$K$183,9,FALSE)) ->  | D40: =IF(B40="","",VLOOKUP(L40,Tabella_prezzi!$A$1:$K$183,6,FALSE)) ->  | E40: =IF(B40="","",VLOOKUP(L40,Tabella_prezzi!$A$1:$K$183,8,FALSE)) ->  | F40: =IF(B40="","",VLOOKUP(L40,Tabella_prezzi!$A$1:$K$183,4,FALSE)) ->  | J40: 0 | K40: TS3L8-SWKVM | L40: L8N18 | P40: =Altre_Opzioni!F49 -> 0 | T40: =Lotto8_C6525_1!L39 -> 0 | U40: =Lotto8_C6525_1!F39 -> Disponibili | V40: =Lotto8_C6525_2!L39 -> 0 | W40: =Lotto8_C6525_2!F39 -> Disponibili | X40: =Lotto8_C6525_3!L39 -> 0 | Y40: =Lotto8_C6525_3!F39 -> Disponibili | AA40: =ISODD(SUM($J$23:J40)) -> FALSE
C41: =IF(B41="","",VLOOKUP(L41,Tabella_prezzi!$A$1:$K$183,9,FALSE)) ->  | D41: =IF(B41="","",VLOOKUP(L41,Tabella_prezzi!$A$1:$K$183,6,FALSE)) ->  | E41: =IF(B41="","",VLOOKUP(L41,Tabella_prezzi!$A$1:$K$183,8,FALSE)) ->  | F41: =IF(B41="","",VLOOKUP(L41,Tabella_prezzi!$A$1:$K$183,4,FALSE)) ->  | J41: 0 | K41: TS3L8-WINSRVSTD | L41: L8N19 | M41: =COUNTIF(TS3L8_L8N_1,L41)*$M$22*4 -> 0 | N41: =COUNTIF(TS3L8_L8N_2,L41)*$N$22*4 -> 0 | O41: =COUNTIF(TS3L8_L8N_3,L41)*$O$22*4 -> 0 | P41: =SUM(M41:O41) -> 0 | T41: =Lotto8_C6525_1!L28 ->  | U41: =Lotto8_C6525_1!F28 -> 0 | V41: =Lotto8_C6525_2!L28 ->  | W41: =Lotto8_C6525_2!F28 -> 0 | X41: =Lotto8_C6525_3!L28 ->  | Y41: =Lotto8_C6525_3!F28 -> 0 | AA41: =ISODD(SUM($J$23:J41)) -> FALSE
C42: =IF(B42="","",VLOOKUP(L42,Tabella_prezzi!$A$1:$K$183,9,FALSE)) ->  | D42: =IF(B42="","",VLOOKUP(L42,Tabella_prezzi!$A$1:$K$183,6,FALSE)) ->  | E42: =IF(B42="","",VLOOKUP(L42,Tabella_prezzi!$A$1:$K$183,8,FALSE)) ->  | F42: =IF(B42="","",VLOOKUP(L42,Tabella_prezzi!$A$1:$K$183,4,FALSE)) ->  | J42: 0 | K42: TS3L8-WINDEVCAL | L42: L8N20 | P42: =IF(P41>0,Altre_Opzioni!F52,0) -> 0 | T42: =Lotto8_C6525_1!L41 -> 0 | U42: =Lotto8_C6525_1!F41 -> 0 | V42: =Lotto8_C6525_2!L41 -> 0 | W42: =Lotto8_C6525_2!F41 -> 0 | X42: =Lotto8_C6525_3!L41 -> 0 | Y42: =Lotto8_C6525_3!F41 -> 0 | AA42: =ISODD(SUM($J$23:J42)) -> FALSE
C43: =IF(B43="","",VLOOKUP(L43,Tabella_prezzi!$A$1:$K$183,9,FALSE)) ->  | D43: =IF(B43="","",VLOOKUP(L43,Tabella_prezzi!$A$1:$K$183,6,FALSE)) ->  | E43: =IF(B43="","",VLOOKUP(L43,Tabella_prezzi!$A$1:$K$183,8,FALSE)) ->  | F43: =IF(B43="","",VLOOKUP(L43,Tabella_prezzi!$A$1:$K$183,4,FALSE)) ->  | J43: 0 | K43: TS3L8-WINUSRCAL | L43: L8N21 | P43: =IF(P41>0,Altre_Opzioni!F55,0) -> 0 | AA43: =ISODD(SUM($J$23:J43)) -> FALSE
C44: =IF(B44="","",VLOOKUP(L44,Tabella_prezzi!$A$1:$K$183,9,FALSE)) ->  | D44: =IF(B44="","",VLOOKUP(L44,Tabella_prezzi!$A$1:$K$183,6,FALSE)) ->  | E44: =IF(B44="","",VLOOKUP(L44,Tabella_prezzi!$A$1:$K$183,8,FALSE)) ->  | F44: =IF(B44="","",VLOOKUP(L44,Tabella_prezzi!$A$1:$K$183,4,FALSE)) ->  | J44: 0 | K44: TS3L8-WINSRV2C | L44: L8N22 | M44: =COUNTIF(TS3L8_L8N_1,L44)*$M$22*U44*4 -> 0 | N44: =COUNTIF(TS3L8_L8N_2,L44)*$N$22*W44*4 -> 0 | O44: =COUNTIF(TS3L8_L8N_3,L44)*$O$22*Y44*4 -> 0 | P44: =SUM(M44:O44) -> 0 | T44: =Lotto8_C6525_1!L29 -> 0 | U44: =Lotto8_C6525_1!F29 -> 0 | V44: =Lotto8_C6525_2!L29 -> 0 | W44: =Lotto8_C6525_2!F29 -> 0 | X44: =Lotto8_C6525_3!L29 -> 0 | Y44: =Lotto8_C6525_3!F29 -> 0 | AA44: =ISODD(SUM($J$23:J44)) -> FALSE
C45: =IF(B45="","",VLOOKUP(L45,Tabella_prezzi!$A$1:$K$183,9,FALSE)) ->  | D45: =IF(B45="","",VLOOKUP(L45,Tabella_prezzi!$A$1:$K$183,6,FALSE)) ->  | E45: =IF(B45="","",VLOOKUP(L45,Tabella_prezzi!$A$1:$K$183,8,FALSE)) ->  | F45: =IF(B45="","",VLOOKUP(L45,Tabella_prezzi!$A$1:$K$183,4,FALSE)) ->  | J45: 0 | K45: TS3L8-LINUX | L45: L8N23 | M45: =COUNTIF(TS3L8_L8N_1,L45)*$M$22*4 -> 0 | N45: =COUNTIF(TS3L8_L8N_2,L45)*$N$22*4 -> 0 | O45: =COUNTIF(TS3L8_L8N_3,L45)*$O$22*4 -> 0 | P45: 0 | T45: =Lotto8_C6525_1!L44 -> 0 | U45: =Lotto8_C6525_1!F44 -> 0 | V45: =Lotto8_C6525_2!L44 -> 0 | W45: =Lotto8_C6525_2!F44 -> 0 | X45: =Lotto8_C6525_3!L44 -> 0 | Y45: =Lotto8_C6525_3!F44 -> 0 | AA45: =ISODD(SUM($J$23:J45)) -> FALSE
C46: =IF(B46="","",VLOOKUP(L46,Tabella_prezzi!$A$1:$K$183,9,FALSE)) ->  | D46: =IF(B46="","",VLOOKUP(L46,Tabella_prezzi!$A$1:$K$183,6,FALSE)) ->  | E46: =IF(B46="","",VLOOKUP(L46,Tabella_prezzi!$A$1:$K$183,8,FALSE)) ->  | F46: =IF(B46="","",VLOOKUP(L46,Tabella_prezzi!$A$1:$K$183,4,FALSE)) ->  | J46: 0 | K46: TS3L8-HDRTNTN | L46: L8N24 | M46: =COUNTIF(TS3L8_L8N_1,L46)*$M$22 -> 0 | N46: =COUNTIF(TS3L8_L8N_2,L46)*$N$22 -> 0 | O46: =COUNTIF(TS3L8_L8N_3,L46)*$O$22 -> 0 | P46: 0 | AA46: =ISODD(SUM($J$23:J46)) -> FALSE
C47: =IF(B47="","",VLOOKUP(L47,Tabella_prezzi!$A$1:$K$183,9,FALSE)) ->  | D47: =IF(B47="","",VLOOKUP(L47,Tabella_prezzi!$A$1:$K$183,6,FALSE)) ->  | E47: =IF(B47="","",VLOOKUP(L47,Tabella_prezzi!$A$1:$K$183,8,FALSE)) ->  | F47: =IF(B47="","",VLOOKUP(L47,Tabella_prezzi!$A$1:$K$183,4,FALSE)) ->  | J47: 0 | K47: TS3L8-5Y | L47: L8N25 | M47: =COUNTIF(TS3L8_L8N_1,L47)*$M$22 -> 0 | N47: =COUNTIF(TS3L8_L8N_2,L47)*$N$22 -> 0 | O47: =COUNTIF(TS3L8_L8N_3,L47)*$O$22 -> 0 | P47: 0 | T47: =Lotto8_C6525_1!L46 -> 0 | U47: =Lotto8_C6525_1!F46 -> 0 | V47: =Lotto8_C6525_2!L46 -> 0 | W47: =Lotto8_C6525_2!F46 -> 0 | X47: =Lotto8_C6525_3!L46 -> 0 | Y47: =Lotto8_C6525_3!F46 -> 0 | AA47: =ISODD(SUM($J$23:J47)) -> FALSE
C48: =IF(B48="","",VLOOKUP(L48,Tabella_prezzi!$A$1:$K$183,9,FALSE)) ->  | D48: =IF(B48="","",VLOOKUP(L48,Tabella_prezzi!$A$1:$K$183,6,FALSE)) ->  | E48: =IF(B48="","",VLOOKUP(L48,Tabella_prezzi!$A$1:$K$183,8,FALSE)) ->  | F48: =IF(B48="","",VLOOKUP(L48,Tabella_prezzi!$A$1:$K$183,4,FALSE)) ->  | J48: 0 | K48: TS3L8-RACK | L48: L8N26 | P48: =Altre_Opzioni!F16 -> 0 | AA48: =ISODD(SUM($J$23:J48)) -> FALSE
C49: =IF(B49="","",VLOOKUP(L49,Tabella_prezzi!$A$1:$K$183,9,FALSE)) ->  | D49: =IF(B49="","",VLOOKUP(L49,Tabella_prezzi!$A$1:$K$183,6,FALSE)) ->  | E49: =IF(B49="","",VLOOKUP(L49,Tabella_prezzi!$A$1:$K$183,8,FALSE)) ->  | F49: =IF(B49="","",VLOOKUP(L49,Tabella_prezzi!$A$1:$K$183,4,FALSE)) ->  | J49: 0 | K49: TS3L8-HDRTNTN60 | L49: L8N27 | M49: =COUNTIF(TS3L8_L8N_1,L49)*$M$22 -> 0 | N49: =COUNTIF(TS3L8_L8N_2,L49)*$N$22 -> 0 | O49: =COUNTIF(TS3L8_L8N_3,L49)*$O$22 -> 0 | P49: =SUM(M49:O49) -> 0 | T49: =Lotto8_C6525_1!L48 -> 0 | U49: =Lotto8_C6525_1!F48 -> 0 | V49: =Lotto8_C6525_2!L48 -> 0 | W49: =Lotto8_C6525_2!F48 -> 0 | X49: =Lotto8_C6525_3!L48 -> 0 | Y49: =Lotto8_C6525_3!F48 -> 0 | AA49: =ISODD(SUM($J$23:J49)) -> FALSE
B50: =IF(P50>0,P50,"") ->  | C50: =IF(B50="","",VLOOKUP(L50,Tabella_prezzi!$A$1:$K$183,9,FALSE)) ->  | D50: =IF(B50="","",VLOOKUP(L50,Tabella_prezzi!$A$1:$K$183,6,FALSE)) ->  | E50: =IF(B50="","",VLOOKUP(L50,Tabella_prezzi!$A$1:$K$183,8,FALSE)) ->  | F50: =IF(B50="","",VLOOKUP(L50,Tabella_prezzi!$A$1:$K$183,4,FALSE)) ->  | G50: =IF(C50="","",F50*B50) ->  | J50: 0 | AA50: =ISODD(SUM($J$23:J50)) -> FALSE
C51: =IF(B51="","",VLOOKUP(L51,Tabella_prezzi!$A$1:$K$183,9,FALSE)) ->  | D51: =IF(B51="","",VLOOKUP(L51,Tabella_prezzi!$A$1:$K$183,6,FALSE)) ->  | E51: =IF(B51="","",VLOOKUP(L51,Tabella_prezzi!$A$1:$K$183,8,FALSE)) ->  | F51: =IF(B51="","",VLOOKUP(L51,Tabella_prezzi!$A$1:$K$183,4,FALSE)) ->  | J51: 0 | T51: =Lotto8_C6525_1!L50 -> 0 | U51: =Lotto8_C6525_1!F50 -> 0 | V51: =Lotto8_C6525_2!L50 -> 0 | W51: =Lotto8_C6525_2!F50 -> 0 | X51: =Lotto8_C6525_3!L50 -> 0 | Y51: =Lotto8_C6525_3!F50 -> 0 | AA51: =ISODD(SUM($J$23:J51)) -> FALSE
C52: =IF(B52="","",VLOOKUP(L52,Tabella_prezzi!$A$1:$K$183,9,FALSE)) ->  | D52: =IF(B52="","",VLOOKUP(L52,Tabella_prezzi!$A$1:$K$183,6,FALSE)) ->  | E52: =IF(B52="","",VLOOKUP(L52,Tabella_prezzi!$A$1:$K$183,8,FALSE)) ->  | F52: =IF(B52="","",VLOOKUP(L52,Tabella_prezzi!$A$1:$K$183,4,FALSE)) ->  | J52: 0 | AA52: =ISODD(SUM($J$23:J52)) -> FALSE
C53: =IF(B53="","",VLOOKUP(L53,Tabella_prezzi!$A$1:$K$183,9,FALSE)) ->  | D53: =IF(B53="","",VLOOKUP(L53,Tabella_prezzi!$A$1:$K$183,6,FALSE)) ->  | E53: =IF(B53="","",VLOOKUP(L53,Tabella_prezzi!$A$1:$K$183,8,FALSE)) ->  | F53: =IF(B53="","",VLOOKUP(L53,Tabella_prezzi!$A$1:$K$183,4,FALSE)) ->  | J53: 0 | T53: =Lotto8_C6525_1!L52 -> 0 | U53: =Lotto8_C6525_1!F52 -> 0 | V53: =Lotto8_C6525_2!L52 -> 0 | W53: =Lotto8_C6525_2!F52 -> 0 | X53: =Lotto8_C6525_3!L52 -> 0 | Y53: =Lotto8_C6525_3!F52 -> 0 | AA53: =ISODD(SUM($J$23:J53)) -> FALSE
C54: =IF(B54="","",VLOOKUP(L54,Tabella_prezzi!$A$1:$K$183,9,FALSE)) ->  | D54: =IF(B54="","",VLOOKUP(L54,Tabella_prezzi!$A$1:$K$183,6,FALSE)) ->  | E54: =IF(B54="","",VLOOKUP(L54,Tabella_prezzi!$A$1:$K$183,8,FALSE)) ->  | F54: =IF(B54="","",VLOOKUP(L54,Tabella_prezzi!$A$1:$K$183,4,FALSE)) ->  | J54: 0 | AA54: =ISODD(SUM($J$23:J54)) -> FALSE
C55: =IF(B55="","",VLOOKUP(L55,Tabella_prezzi!$A$1:$K$183,9,FALSE)) ->  | D55: =IF(B55="","",VLOOKUP(L55,Tabella_prezzi!$A$1:$K$183,6,FALSE)) ->  | E55: =IF(B55="","",VLOOKUP(L55,Tabella_prezzi!$A$1:$K$183,8,FALSE)) ->  | F55: =IF(B55="","",VLOOKUP(L55,Tabella_prezzi!$A$1:$K$183,4,FALSE)) ->  | J55: 0 | T55: =Lotto8_C6525_1!L54 -> 0 | U55: =Lotto8_C6525_1!F54 -> 0 | V55: =Lotto8_C6525_2!L54 -> 0 | W55: =Lotto8_C6525_2!F54 -> 0 | X55: =Lotto8_C6525_3!L54 -> 0 | Y55: =Lotto8_C6525_3!F54 -> 0 | AA55: =ISODD(SUM($J$23:J55)) -> FALSE
C56: =IF(B56="","",VLOOKUP(L56,Tabella_prezzi!$A$1:$K$183,9,FALSE)) ->  | D56: =IF(B56="","",VLOOKUP(L56,Tabella_prezzi!$A$1:$K$183,6,FALSE)) ->  | E56: =IF(B56="","",VLOOKUP(L56,Tabella_prezzi!$A$1:$K$183,8,FALSE)) ->  | F56: =IF(B56="","",VLOOKUP(L56,Tabella_prezzi!$A$1:$K$183,4,FALSE)) ->  | J56: 0 | AA56: =ISODD(SUM($J$23:J56)) -> FALSE
C57: =IF(B57="","",VLOOKUP(L57,Tabella_prezzi!$A$1:$K$183,9,FALSE)) ->  | D57: =IF(B57="","",VLOOKUP(L57,Tabella_prezzi!$A$1:$K$183,6,FALSE)) ->  | E57: =IF(B57="","",VLOOKUP(L57,Tabella_prezzi!$A$1:$K$183,8,FALSE)) ->  | F57: =IF(B57="","",VLOOKUP(L57,Tabella_prezzi!$A$1:$K$183,4,FALSE)) ->  | J57: 0 | T57: =Lotto8_C6525_1!L56 -> 0 | U57: =Lotto8_C6525_1!F56 -> 0 | V57: =Lotto8_C6525_2!L56 -> 0 | W57: =Lotto8_C6525_2!F56 -> 0 | X57: =Lotto8_C6525_3!L56 -> 0 | Y57: =Lotto8_C6525_3!F56 -> 0 | AA57: =ISODD(SUM($J$23:J57)) -> FALSE
B58: TECNOLOGIE SERVER 3 LOTTO 8 - LISTA ULTERIORI ARTICOLI IN CONVENZIONE (20%) - | J58: =IF(G112>0,1,0) -> 0 | AA58: =ISODD(SUM($J$23:J58)) -> FALSE
B59: Quantità | C59: Codice Articolo Produttore | D59: Codice Articolo Convenzione | E59: Descrizione | F59: Costo unitario | G59: Costo complessivo | J59: =IF(G112>0,1,0) -> 0 | T59: =Lotto8_C6525_1!L58 -> 0 | U59: =Lotto8_C6525_1!F58 -> 0 | V59: =Lotto8_C6525_2!L58 -> 0 | W59: =Lotto8_C6525_2!F58 -> 0 | X59: =Lotto8_C6525_3!L58 -> 0 | Y59: =Lotto8_C6525_3!F58 -> 0 | AA59: =ISODD(SUM($J$23:J59)) -> FALSE
B60: =IF(P60>0,P60,"") ->  | C60: =IF(B60="","",VLOOKUP(L60,Tabella_prezzi!$A$1:$K$183,9,FALSE)) ->  | D60: =IF(B60="","",VLOOKUP(L60,Tabella_prezzi!$A$1:$K$183,6,FALSE)) ->  | E60: =IF(B60="","",VLOOKUP(L60,Tabella_prezzi!$A$1:$K$183,8,FALSE)) ->  | F60: =IF(B60="","",VLOOKUP(L60,Tabella_prezzi!$A$1:$K$183,4,FALSE)) ->  | G60: =IF(C60="","",F60*B60) ->  | J60: 0 | K60: TS3L8-MCX6SP-L | L60: L8N28 | M60: =COUNTIF(TS3L8_L8N_1,L60)*$M$22*4 -> 0 | N60: =COUNTIF(TS3L8_L8N_2,L60)*$N$22*4 -> 0 | O60: =COUNTIF(TS3L8_L8N_3,L60)*$O$22*4 -> 0 | P60: =SUM(M60:O60) -> 0 | T60: =Lotto8_C6525_1!L61 -> 0 | U60: =Lotto8_C6525_1!F61 -> 0 | V60: =Lotto8_C6525_2!L61 -> 0 | W60: =Lotto8_C6525_2!F61 -> 0 | X60: =Lotto8_C6525_3!L61 -> 0 | Y60: =Lotto8_C6525_3!F61 -> 0 | AA60: =ISODD(SUM($J$23:J60)) -> FALSE
B61: =IF(P61>0,P61,"") ->  | C61: =IF(B61="","",VLOOKUP(L61,Tabella_prezzi!$A$1:$K$183,9,FALSE)) ->  | D61: =IF(B61="","",VLOOKUP(L61,Tabella_prezzi!$A$1:$K$183,6,FALSE)) ->  | E61: =IF(B61="","",VLOOKUP(L61,Tabella_prezzi!$A$1:$K$183,8,FALSE)) ->  | F61: =IF(B61="","",VLOOKUP(L61,Tabella_prezzi!$A$1:$K$183,4,FALSE)) ->  | G61: =IF(C61="","",F61*B61) ->  | J61: 0 | K61: TS3L8-BOSS480 | L61: L8N29 | M61: =COUNTIF(TS3L8_L8N_1,L61)*$M$22*4 -> 0 | N61: =COUNTIF(TS3L8_L8N_2,L61)*$N$22*4 -> 0 | O61: =COUNTIF(TS3L8_L8N_3,L61)*$O$22*4 -> 0 | P61: =SUM(M61:O61) -> 0 | T61: =Lotto8_C6525_1!L62 -> 0 | U61: =Lotto8_C6525_1!F62 -> 0 | V61: =Lotto8_C6525_2!L62 -> 0 | W61: =Lotto8_C6525_2!F62 -> 0 | X61: =Lotto8_C6525_3!L62 -> 0 | Y61: =Lotto8_C6525_3!F62 -> 0 | AA61: =ISODD(SUM($J$23:J61)) -> FALSE
C62: =IF(B62="","",VLOOKUP(L62,Tabella_prezzi!$A$1:$K$183,9,FALSE)) ->  | D62: =IF(B62="","",VLOOKUP(L62,Tabella_prezzi!$A$1:$K$183,6,FALSE)) ->  | E62: =IF(B62="","",VLOOKUP(L62,Tabella_prezzi!$A$1:$K$183,8,FALSE)) ->  | F62: =IF(B62="","",VLOOKUP(L62,Tabella_prezzi!$A$1:$K$183,4,FALSE)) ->  | J62: 0 | K62: TS3L8-RJ453M | L62: L8N30 | M62: =COUNTIF(TS3L8_L8N_1,L62)*$M$22*(Lotto8_C6525_1!F102) -> 0 | N62: =COUNTIF(TS3L8_L8N_2,L62)*$N$22*(Lotto8_C6525_2!F102) -> 0 | O62: =COUNTIF(TS3L8_L8N_3,L62)*$O$22*(Lotto8_C6525_3!F102) -> 0 | P62: 0 | T62: =Lotto8_C6525_1!L63 -> 0 | U62: =Lotto8_C6525_1!F63 -> 0 | V62: =Lotto8_C6525_2!L63 -> 0 | W62: =Lotto8_C6525_2!F63 -> 0 | X62: =Lotto8_C6525_3!L63 -> 0 | Y62: =Lotto8_C6525_3!F63 -> 0 | AA62: =ISODD(SUM($J$23:J62)) -> FALSE
C63: =IF(B63="","",VLOOKUP(L63,Tabella_prezzi!$A$1:$K$183,9,FALSE)) ->  | D63: =IF(B63="","",VLOOKUP(L63,Tabella_prezzi!$A$1:$K$183,6,FALSE)) ->  | E63: =IF(B63="","",VLOOKUP(L63,Tabella_prezzi!$A$1:$K$183,8,FALSE)) ->  | F63: =IF(B63="","",VLOOKUP(L63,Tabella_prezzi!$A$1:$K$183,4,FALSE)) ->  | J63: 0 | K63: TS3L8-HBA345 | L63: L8N31 | M63: =COUNTIF(TS3L8_L8N_1,L63)*$M$22*4 -> 0 | N63: =COUNTIF(TS3L8_L8N_2,L63)*$N$22*4 -> 0 | O63: =COUNTIF(TS3L8_L8N_3,L63)*$O$22*4 -> 0 | P63: =SUM(M63:O63) -> 0 | T63: =Lotto8_C6525_1!L64 -> 0 | U63: =Lotto8_C6525_1!F64 -> 0 | V63: =Lotto8_C6525_2!L64 -> 0 | W63: =Lotto8_C6525_2!F64 -> 0 | X63: =Lotto8_C6525_3!L64 -> 0 | Y63: =Lotto8_C6525_3!F64 -> 0 | AA63: =ISODD(SUM($J$23:J63)) -> FALSE
C64: =IF(B64="","",VLOOKUP(L64,Tabella_prezzi!$A$1:$K$183,9,FALSE)) ->  | D64: =IF(B64="","",VLOOKUP(L64,Tabella_prezzi!$A$1:$K$183,6,FALSE)) ->  | E64: =IF(B64="","",VLOOKUP(L64,Tabella_prezzi!$A$1:$K$183,8,FALSE)) ->  | F64: =IF(B64="","",VLOOKUP(L64,Tabella_prezzi!$A$1:$K$183,4,FALSE)) ->  | J64: 0 | K64: TS3L8-WI800GB | L64: L8N32 | M64: =COUNTIF(TS3L8_L8N_1,L64)*$M$22*Q64*4 -> 0 | N64: =COUNTIF(TS3L8_L8N_2,L64)*$N$22*R64*4 -> 0 | O64: =COUNTIF(TS3L8_L8N_3,L64)*$O$22*S64*4 -> 0 | P64: 0 | Q64: =Lotto8_C6525_1!F59 -> 0 | R64: =Lotto8_C6525_2!F59 -> 0 | S64: =Lotto8_C6525_3!F59 -> 0 | T64: =Lotto8_C6525_1!L87 -> 0 | V64: =Lotto8_C6525_2!L87 -> 0 | X64: =Lotto8_C6525_3!L87 -> 0 | Y64: =Lotto8_C6525_3!F65 -> 2 | AA64: =ISODD(SUM($J$23:J64)) -> FALSE
C65: =IF(B65="","",VLOOKUP(L65,Tabella_prezzi!$A$1:$K$183,9,FALSE)) ->  | D65: =IF(B65="","",VLOOKUP(L65,Tabella_prezzi!$A$1:$K$183,6,FALSE)) ->  | E65: =IF(B65="","",VLOOKUP(L65,Tabella_prezzi!$A$1:$K$183,8,FALSE)) ->  | F65: =IF(B65="","",VLOOKUP(L65,Tabella_prezzi!$A$1:$K$183,4,FALSE)) ->  | J65: 0 | K65: TS3L8-VS7STD6AK | L65: L8N33 | P65: =Altre_Opzioni!F20 -> 0 | T65: =Lotto8_C6525_1!L66 -> 0 | U65: =Lotto8_C6525_1!F66 -> 0 | V65: =Lotto8_C6525_2!L66 -> 0 | W65: =Lotto8_C6525_2!F66 -> 0 | X65: =Lotto8_C6525_3!L66 -> 0 | Y65: =Lotto8_C6525_3!F66 -> 0 | AA65: =ISODD(SUM($J$23:J65)) -> FALSE
C66: =IF(B66="","",VLOOKUP(L66,Tabella_prezzi!$A$1:$K$183,9,FALSE)) ->  | D66: =IF(B66="","",VLOOKUP(L66,Tabella_prezzi!$A$1:$K$183,6,FALSE)) ->  | E66: =IF(B66="","",VLOOKUP(L66,Tabella_prezzi!$A$1:$K$183,8,FALSE)) ->  | F66: =IF(B66="","",VLOOKUP(L66,Tabella_prezzi!$A$1:$K$183,4,FALSE)) ->  | J66: 0 | K66: TS3L8-VS7STD | L66: L8N34 | P66: =Altre_Opzioni!F21 -> 0 | T66: =Lotto8_C6525_1!L67 -> 0 | U66: =Lotto8_C6525_1!F67 -> 0 | V66: =Lotto8_C6525_2!L67 -> 0 | W66: =Lotto8_C6525_2!F67 -> 0 | X66: =Lotto8_C6525_3!L67 -> 0 | Y66: =Lotto8_C6525_3!F67 -> 0 | AA66: =ISODD(SUM($J$23:J66)) -> FALSE
C67: =IF(B67="","",VLOOKUP(L67,Tabella_prezzi!$A$1:$K$183,9,FALSE)) ->  | D67: =IF(B67="","",VLOOKUP(L67,Tabella_prezzi!$A$1:$K$183,6,FALSE)) ->  | E67: =IF(B67="","",VLOOKUP(L67,Tabella_prezzi!$A$1:$K$183,8,FALSE)) ->  | F67: =IF(B67="","",VLOOKUP(L67,Tabella_prezzi!$A$1:$K$183,4,FALSE)) ->  | J67: 0 | K67: TS3L8-VS7EPL6AK | L67: L8N35 | P67: =Altre_Opzioni!F22 -> 0 | T67: =Lotto8_C6525_1!L68 ->  | U67: =Lotto8_C6525_1!F68 ->  | V67: =Lotto8_C6525_2!L68 ->  | W67: =Lotto8_C6525_2!F68 ->  | X67: =Lotto8_C6525_3!L68 ->  | Y67: =Lotto8_C6525_3!F68 ->  | AA67: =ISODD(SUM($J$23:J67)) -> FALSE
C68: =IF(B68="","",VLOOKUP(L68,Tabella_prezzi!$A$1:$K$183,9,FALSE)) ->  | D68: =IF(B68="","",VLOOKUP(L68,Tabella_prezzi!$A$1:$K$183,6,FALSE)) ->  | E68: =IF(B68="","",VLOOKUP(L68,Tabella_prezzi!$A$1:$K$183,8,FALSE)) ->  | F68: =IF(B68="","",VLOOKUP(L68,Tabella_prezzi!$A$1:$K$183,4,FALSE)) ->  | J68: 0 | K68: TS3L8-VS7EPL | L68: L8N36 | P68: =Altre_Opzioni!F23 -> 0 | T68: =Lotto8_C6525_1!L69 -> 0 | U68: =Lotto8_C6525_1!F69 -> 0 | V68: =Lotto8_C6525_2!L69 -> 0 | W68: =Lotto8_C6525_2!F69 -> 0 | X68: =Lotto8_C6525_3!L69 -> 0 | Y68: =Lotto8_C6525_3!F69 -> 0 | AA68: =ISODD(SUM($J$23:J68)) -> FALSE
C69: =IF(B69="","",VLOOKUP(L69,Tabella_prezzi!$A$1:$K$183,9,FALSE)) ->  | D69: =IF(B69="","",VLOOKUP(L69,Tabella_prezzi!$A$1:$K$183,6,FALSE)) ->  | E69: =IF(B69="","",VLOOKUP(L69,Tabella_prezzi!$A$1:$K$183,8,FALSE)) ->  | F69: =IF(B69="","",VLOOKUP(L69,Tabella_prezzi!$A$1:$K$183,4,FALSE)) ->  | J69: 0 | K69: TS3L8-VCS7STD | L69: L8N37 | P69: =Altre_Opzioni!F24 -> 0 | T69: =Lotto8_C6525_1!L70 -> 0 | U69: =Lotto8_C6525_1!F70 -> 0 | V69: =Lotto8_C6525_2!L70 -> 0 | W69: =Lotto8_C6525_2!F70 -> 0 | X69: =Lotto8_C6525_3!L70 -> 0 | Y69: =Lotto8_C6525_3!F70 -> 0 | AA69: =ISODD(SUM($J$23:J69)) -> FALSE
C70: =IF(B70="","",VLOOKUP(L70,Tabella_prezzi!$A$1:$K$183,9,FALSE)) ->  | D70: =IF(B70="","",VLOOKUP(L70,Tabella_prezzi!$A$1:$K$183,6,FALSE)) ->  | E70: =IF(B70="","",VLOOKUP(L70,Tabella_prezzi!$A$1:$K$183,8,FALSE)) ->  | F70: =IF(B70="","",VLOOKUP(L70,Tabella_prezzi!$A$1:$K$183,4,FALSE)) ->  | J70: 0 | K70: TS3L8-ST7ENT | L70: L8N38 | P70: =Altre_Opzioni!F25 -> 0 | T70: =Lotto8_C6525_1!L71 -> 0 | U70: =Lotto8_C6525_1!F71 -> 0 | V70: =Lotto8_C6525_2!L71 -> 0 | W70: =Lotto8_C6525_2!F71 -> 0 | X70: =Lotto8_C6525_3!L71 -> 0 | Y70: =Lotto8_C6525_3!F71 -> 0 | AA70: =ISODD(SUM($J$23:J70)) -> FALSE
C71: =IF(B71="","",VLOOKUP(L71,Tabella_prezzi!$A$1:$K$183,9,FALSE)) ->  | D71: =IF(B71="","",VLOOKUP(L71,Tabella_prezzi!$A$1:$K$183,6,FALSE)) ->  | E71: =IF(B71="","",VLOOKUP(L71,Tabella_prezzi!$A$1:$K$183,8,FALSE)) ->  | F71: =IF(B71="","",VLOOKUP(L71,Tabella_prezzi!$A$1:$K$183,4,FALSE)) ->  | J71: 0 | K71: TS3L8-HZ8ADC10 | L71: L8N39 | P71: =Altre_Opzioni!F26 -> 0 | T71: =Lotto8_C6525_1!L72 -> 0 | U71: =Lotto8_C6525_1!F72 -> 0 | V71: =Lotto8_C6525_2!L72 -> 0 | W71: =Lotto8_C6525_2!F72 -> 0 | X71: =Lotto8_C6525_3!L72 -> 0 | Y71: =Lotto8_C6525_3!F72 -> 0 | AA71: =ISODD(SUM($J$23:J71)) -> FALSE
C72: =IF(B72="","",VLOOKUP(L72,Tabella_prezzi!$A$1:$K$183,9,FALSE)) ->  | D72: =IF(B72="","",VLOOKUP(L72,Tabella_prezzi!$A$1:$K$183,6,FALSE)) ->  | E72: =IF(B72="","",VLOOKUP(L72,Tabella_prezzi!$A$1:$K$183,8,FALSE)) ->  | F72: =IF(B72="","",VLOOKUP(L72,Tabella_prezzi!$A$1:$K$183,4,FALSE)) ->  | J72: 0 | K72: TS3L8-HZ8ENC10 | L72: L8N40 | P72: =Altre_Opzioni!F27 -> 0 | T72: =Lotto8_C6525_1!L73 -> 0 | U72: =Lotto8_C6525_1!F73 -> 0 | V72: =Lotto8_C6525_2!L73 -> 0 | W72: =Lotto8_C6525_2!F73 -> 0 | X72: =Lotto8_C6525_3!L73 -> 0 | Y72: =Lotto8_C6525_3!F73 -> 0 | AA72: =ISODD(SUM($J$23:J72)) -> FALSE
C73: =IF(B73="","",VLOOKUP(L73,Tabella_prezzi!$A$1:$K$183,9,FALSE)) ->  | D73: =IF(B73="","",VLOOKUP(L73,Tabella_prezzi!$A$1:$K$183,6,FALSE)) ->  | E73: =IF(B73="","",VLOOKUP(L73,Tabella_prezzi!$A$1:$K$183,8,FALSE)) ->  | F73: =IF(B73="","",VLOOKUP(L73,Tabella_prezzi!$A$1:$K$183,4,FALSE)) ->  | J73: 0 | K73: TS3L8-HZ8ADN10 | L73: L8N41 | P73: =Altre_Opzioni!F28 -> 0 | T73: =Lotto8_C6525_1!L74 -> 0 | U73: =Lotto8_C6525_1!F74 -> 0 | V73: =Lotto8_C6525_2!L74 -> 0 | W73: =Lotto8_C6525_2!F74 -> 0 | X73: =Lotto8_C6525_3!L74 -> 0 | Y73: =Lotto8_C6525_3!F74 -> 0 | AA73: =ISODD(SUM($J$23:J73)) -> FALSE
C74: =IF(B74="","",VLOOKUP(L74,Tabella_prezzi!$A$1:$K$183,9,FALSE)) ->  | D74: =IF(B74="","",VLOOKUP(L74,Tabella_prezzi!$A$1:$K$183,6,FALSE)) ->  | E74: =IF(B74="","",VLOOKUP(L74,Tabella_prezzi!$A$1:$K$183,8,FALSE)) ->  | F74: =IF(B74="","",VLOOKUP(L74,Tabella_prezzi!$A$1:$K$183,4,FALSE)) ->  | J74: 0 | K74: TS3L8-HZ8ENN10 | L74: L8N42 | P74: =Altre_Opzioni!F29 -> 0 | T74: =Lotto8_C6525_1!L75 -> 0 | U74: =Lotto8_C6525_1!F75 -> 0 | V74: =Lotto8_C6525_2!L75 -> 0 | W74: =Lotto8_C6525_2!F75 -> 0 | X74: =Lotto8_C6525_3!L75 -> 0 | Y74: =Lotto8_C6525_3!F75 -> 0 | AA74: =ISODD(SUM($J$23:J74)) -> FALSE
C75: =IF(B75="","",VLOOKUP(L75,Tabella_prezzi!$A$1:$K$183,9,FALSE)) ->  | D75: =IF(B75="","",VLOOKUP(L75,Tabella_prezzi!$A$1:$K$183,6,FALSE)) ->  | E75: =IF(B75="","",VLOOKUP(L75,Tabella_prezzi!$A$1:$K$183,8,FALSE)) ->  | F75: =IF(B75="","",VLOOKUP(L75,Tabella_prezzi!$A$1:$K$183,4,FALSE)) ->  | J75: 0 | K75: TS3L8-Encl13Y4H | L75: L8N43 | P75: =Altre_Opzioni!F33 -> 0 | T75: =Lotto8_C6525_1!L76 -> 0 | U75: =Lotto8_C6525_1!F76 -> 0 | V75: =Lotto8_C6525_2!L76 -> 0 | W75: =Lotto8_C6525_2!F76 -> 0 | X75: =Lotto8_C6525_3!L76 -> 0 | Y75: =Lotto8_C6525_3!F76 -> 0 | AA75: =ISODD(SUM($J$23:J75)) -> FALSE
C76: =IF(B76="","",VLOOKUP(L76,Tabella_prezzi!$A$1:$K$183,9,FALSE)) ->  | D76: =IF(B76="","",VLOOKUP(L76,Tabella_prezzi!$A$1:$K$183,6,FALSE)) ->  | E76: =IF(B76="","",VLOOKUP(L76,Tabella_prezzi!$A$1:$K$183,8,FALSE)) ->  | F76: =IF(B76="","",VLOOKUP(L76,Tabella_prezzi!$A$1:$K$183,4,FALSE)) ->  | J76: 0 | K76: TS3L8-Encl25Y4H | L76: L8N44 | P76: =Altre_Opzioni!F34 -> 0 | T76: =Lotto8_C6525_1!L77 -> 0 | U76: =Lotto8_C6525_1!F77 -> 0 | V76: =Lotto8_C6525_2!L77 -> 0 | W76: =Lotto8_C6525_2!F77 -> 0 | X76: =Lotto8_C6525_3!L77 -> 0 | Y76: =Lotto8_C6525_3!F77 -> 0 | AA76: =ISODD(SUM($J$23:J76)) -> FALSE
C77: =IF(B77="","",VLOOKUP(L77,Tabella_prezzi!$A$1:$K$183,9,FALSE)) ->  | D77: =IF(B77="","",VLOOKUP(L77,Tabella_prezzi!$A$1:$K$183,6,FALSE)) ->  | E77: =IF(B77="","",VLOOKUP(L77,Tabella_prezzi!$A$1:$K$183,8,FALSE)) ->  | F77: =IF(B77="","",VLOOKUP(L77,Tabella_prezzi!$A$1:$K$183,4,FALSE)) ->  | J77: 0 | K77: TS3L8-RACKM32A | L77: L8N45 | P77: =Altre_Opzioni!F9 -> 0 | T77: =Lotto8_C6525_1!L78 -> 0 | U77: =Lotto8_C6525_1!F78 -> 0 | V77: =Lotto8_C6525_2!L78 -> 0 | W77: =Lotto8_C6525_2!F78 -> 0 | X77: =Lotto8_C6525_3!L78 -> 0 | Y77: =Lotto8_C6525_3!F78 -> 0 | AA77: =ISODD(SUM($J$23:J77)) -> FALSE
C78: =IF(B78="","",VLOOKUP(L78,Tabella_prezzi!$A$1:$K$183,9,FALSE)) ->  | D78: =IF(B78="","",VLOOKUP(L78,Tabella_prezzi!$A$1:$K$183,6,FALSE)) ->  | E78: =IF(B78="","",VLOOKUP(L78,Tabella_prezzi!$A$1:$K$183,8,FALSE)) ->  | F78: =IF(B78="","",VLOOKUP(L78,Tabella_prezzi!$A$1:$K$183,4,FALSE)) ->  | J78: 0 | K78: TS3L8-RACKT32A | L78: L8N46 | P78: =Altre_Opzioni!F12 -> 0 | T78: =Lotto8_C6525_1!L79 -> 0 | U78: =Lotto8_C6525_1!F79 -> 0 | V78: =Lotto8_C6525_2!L79 -> 0 | W78: =Lotto8_C6525_2!F79 -> 0 | X78: =Lotto8_C6525_3!L79 -> 0 | Y78: =Lotto8_C6525_3!F79 -> 0 | AA78: =ISODD(SUM($J$23:J78)) -> FALSE
B79: =IF(P79>0,P79,"") ->  | C79: =IF(B79="","",VLOOKUP(L79,Tabella_prezzi!$A$1:$K$183,9,FALSE)) ->  | D79: =IF(B79="","",VLOOKUP(L79,Tabella_prezzi!$A$1:$K$183,6,FALSE)) ->  | E79: =IF(B79="","",VLOOKUP(L79,Tabella_prezzi!$A$1:$K$183,8,FALSE)) ->  | F79: =IF(B79="","",VLOOKUP(L79,Tabella_prezzi!$A$1:$K$183,4,FALSE)) ->  | G79: =IF(C79="","",F79*B79) ->  | J79: 0 | K79: TS3L8-OCP25GB | L79: L8N47 | M79: =COUNTIF(TS3L8_L8N_1,L79)*$M$22*4 -> 0 | N79: =COUNTIF(TS3L8_L8N_2,L79)*$N$22*4 -> 0 | O79: =COUNTIF(TS3L8_L8N_3,L79)*$O$22*4 -> 0 | P79: =SUM(M79:O79) -> 0 | T79: =Lotto8_C6525_1!L80 -> 0 | U79: =Lotto8_C6525_1!F80 -> 0 | V79: =Lotto8_C6525_2!L80 -> 0 | W79: =Lotto8_C6525_2!F80 -> 0 | X79: =Lotto8_C6525_3!L80 -> 0 | Y79: =Lotto8_C6525_3!F80 -> 0 | AA79: =ISODD(SUM($J$23:J79)) -> FALSE
C80: =IF(B80="","",VLOOKUP(L80,Tabella_prezzi!$A$1:$K$183,9,FALSE)) ->  | D80: =IF(B80="","",VLOOKUP(L80,Tabella_prezzi!$A$1:$K$183,6,FALSE)) ->  | E80: =IF(B80="","",VLOOKUP(L80,Tabella_prezzi!$A$1:$K$183,8,FALSE)) ->  | F80: =IF(B80="","",VLOOKUP(L80,Tabella_prezzi!$A$1:$K$183,4,FALSE)) ->  | J80: 0 | K80: TS3L8-X710BT-L | L80: L8N48 | M80: =COUNTIF(TS3L8_L8N_1,L80)*$M$22*4 -> 0 | N80: =COUNTIF(TS3L8_L8N_2,L80)*$N$22*4 -> 0 | O80: =COUNTIF(TS3L8_L8N_3,L80)*$O$22*4 -> 0 | P80: 0 | T80: =Lotto8_C6525_1!L81 -> 0 | U80: =Lotto8_C6525_1!F81 -> 0 | V80: =Lotto8_C6525_2!L81 -> 0 | W80: =Lotto8_C6525_2!F81 -> 0 | X80: =Lotto8_C6525_3!L81 -> 0 | Y80: =Lotto8_C6525_3!F81 -> 0 | AA80: =ISODD(SUM($J$23:J80)) -> FALSE
C81: =IF(B81="","",VLOOKUP(L81,Tabella_prezzi!$A$1:$K$183,9,FALSE)) ->  | D81: =IF(B81="","",VLOOKUP(L81,Tabella_prezzi!$A$1:$K$183,6,FALSE)) ->  | E81: =IF(B81="","",VLOOKUP(L81,Tabella_prezzi!$A$1:$K$183,8,FALSE)) ->  | F81: =IF(B81="","",VLOOKUP(L81,Tabella_prezzi!$A$1:$K$183,4,FALSE)) ->  | J81: 0 | K81: TS3L8-57416BT-L | L81: L8N49 | M81: =COUNTIF(TS3L8_L8N_1,L81)*$M$22*4 -> 0 | N81: =COUNTIF(TS3L8_L8N_2,L81)*$N$22*4 -> 0 | O81: =COUNTIF(TS3L8_L8N_3,L81)*$O$22*4 -> 0 | P81: 0 | T81: =Lotto8_C6525_1!L82 -> 0 | U81: =Lotto8_C6525_1!F82 -> 0 | V81: =Lotto8_C6525_2!L82 -> 0 | W81: =Lotto8_C6525_2!F82 -> 0 | X81: =Lotto8_C6525_3!L82 -> 0 | Y81: =Lotto8_C6525_3!F82 -> 0 | AA81: =ISODD(SUM($J$23:J81)) -> FALSE
C82: =IF(B82="","",VLOOKUP(L82,Tabella_prezzi!$A$1:$K$183,9,FALSE)) ->  | D82: =IF(B82="","",VLOOKUP(L82,Tabella_prezzi!$A$1:$K$183,6,FALSE)) ->  | E82: =IF(B82="","",VLOOKUP(L82,Tabella_prezzi!$A$1:$K$183,8,FALSE)) ->  | F82: =IF(B82="","",VLOOKUP(L82,Tabella_prezzi!$A$1:$K$183,4,FALSE)) ->  | J82: 0 | K82: TS3L8-ED16TB | L82: L8N50 | P82: =Altre_Opzioni!F36 -> 0 | T82: =Lotto8_C6525_1!L83 -> 0 | U82: =Lotto8_C6525_1!F83 -> 0 | V82: =Lotto8_C6525_2!L83 -> 0 | W82: =Lotto8_C6525_2!F83 -> 0 | X82: =Lotto8_C6525_3!L83 -> 0 | Y82: =Lotto8_C6525_3!F83 -> 0 | AA82: =ISODD(SUM($J$23:J82)) -> FALSE
C83: =IF(B83="","",VLOOKUP(L83,Tabella_prezzi!$A$1:$K$183,9,FALSE)) ->  | D83: =IF(B83="","",VLOOKUP(L83,Tabella_prezzi!$A$1:$K$183,6,FALSE)) ->  | E83: =IF(B83="","",VLOOKUP(L83,Tabella_prezzi!$A$1:$K$183,8,FALSE)) ->  | F83: =IF(B83="","",VLOOKUP(L83,Tabella_prezzi!$A$1:$K$183,4,FALSE)) ->  | J83: 0 | K83: TS3L8-ED12TB | L83: L8N51 | P83: =Altre_Opzioni!F37 -> 0 | T83: =Lotto8_C6525_1!L84 -> 0 | U83: =Lotto8_C6525_1!F84 -> 0 | V83: =Lotto8_C6525_2!L84 -> 0 | W83: =Lotto8_C6525_2!F84 -> 0 | X83: =Lotto8_C6525_3!L84 -> 0 | Y83: =Lotto8_C6525_3!F84 -> 0 | AA83: =ISODD(SUM($J$23:J83)) -> FALSE
C84: =IF(B84="","",VLOOKUP(L84,Tabella_prezzi!$A$1:$K$183,9,FALSE)) ->  | D84: =IF(B84="","",VLOOKUP(L84,Tabella_prezzi!$A$1:$K$183,6,FALSE)) ->  | E84: =IF(B84="","",VLOOKUP(L84,Tabella_prezzi!$A$1:$K$183,8,FALSE)) ->  | F84: =IF(B84="","",VLOOKUP(L84,Tabella_prezzi!$A$1:$K$183,4,FALSE)) ->  | J84: 0 | K84: TS3L8-ED08TB | L84: L8N52 | P84: =Altre_Opzioni!F38 -> 0 | T84: =Lotto8_C6525_1!L85 ->  | U84: =Lotto8_C6525_1!F85 ->  | V84: =Lotto8_C6525_2!L85 ->  | W84: =Lotto8_C6525_2!F85 ->  | X84: =Lotto8_C6525_3!L85 ->  | Y84: =Lotto8_C6525_3!F85 ->  | AA84: =ISODD(SUM($J$23:J84)) -> FALSE
C85: =IF(B85="","",VLOOKUP(L85,Tabella_prezzi!$A$1:$K$183,9,FALSE)) ->  | D85: =IF(B85="","",VLOOKUP(L85,Tabella_prezzi!$A$1:$K$183,6,FALSE)) ->  | E85: =IF(B85="","",VLOOKUP(L85,Tabella_prezzi!$A$1:$K$183,8,FALSE)) ->  | F85: =IF(B85="","",VLOOKUP(L85,Tabella_prezzi!$A$1:$K$183,4,FALSE)) ->  | J85: 0 | K85: TS3L8-OT10GB | L85: L8N53 | M85: =COUNTIF(TS3L8_L8N_1,L85)*$M$22*(Lotto8_C6525_1!F94) -> 0 | N85: =COUNTIF(TS3L8_L8N_2,L85)*$N$22*(Lotto8_C6525_2!F94) -> 0 | O85: =COUNTIF(TS3L8_L8N_3,L85)*$O$22*(Lotto8_C6525_3!F94) -> 0 | P85: =SUM(M85:O85) -> 0 | T85: =Lotto8_C6525_1!L86 -> 0 | U85: =Lotto8_C6525_1!F86 -> 0 | V85: =Lotto8_C6525_2!L86 -> 0 | W85: =Lotto8_C6525_2!F86 -> 0 | X85: =Lotto8_C6525_3!L86 -> 0 | Y85: =Lotto8_C6525_3!F86 -> 0 | AA85: =ISODD(SUM($J$23:J85)) -> FALSE
C86: =IF(B86="","",VLOOKUP(L86,Tabella_prezzi!$A$1:$K$183,9,FALSE)) ->  | D86: =IF(B86="","",VLOOKUP(L86,Tabella_prezzi!$A$1:$K$183,6,FALSE)) ->  | E86: =IF(B86="","",VLOOKUP(L86,Tabella_prezzi!$A$1:$K$183,8,FALSE)) ->  | F86: =IF(B86="","",VLOOKUP(L86,Tabella_prezzi!$A$1:$K$183,4,FALSE)) ->  | J86: 0 | K86: TS3L8-OT25GB | L86: L8N54 | M86: =COUNTIF(TS3L8_L8N_1,L86)*$M$22*(Lotto8_C6525_1!F95) -> 0 | N86: =COUNTIF(TS3L8_L8N_2,L86)*$N$22*(Lotto8_C6525_2!F95) -> 0 | O86: =COUNTIF(TS3L8_L8N_3,L86)*$O$22*(Lotto8_C6525_3!F95) -> 0 | P86: 0 | T86: =Lotto8_C6525_1!L87 -> 0 | U86: =Lotto8_C6525_1!F87 -> 0 | V86: =Lotto8_C6525_2!L87 -> 0 | W86: =Lotto8_C6525_2!F87 -> 0 | X86: =Lotto8_C6525_3!L87 -> 0 | Y86: =Lotto8_C6525_3!F87 -> 0 | AA86: =ISODD(SUM($J$23:J86)) -> FALSE
C87: =IF(B87="","",VLOOKUP(L87,Tabella_prezzi!$A$1:$K$183,9,FALSE)) ->  | D87: =IF(B87="","",VLOOKUP(L87,Tabella_prezzi!$A$1:$K$183,6,FALSE)) ->  | E87: =IF(B87="","",VLOOKUP(L87,Tabella_prezzi!$A$1:$K$183,8,FALSE)) ->  | F87: =IF(B87="","",VLOOKUP(L87,Tabella_prezzi!$A$1:$K$183,4,FALSE)) ->  | J87: 0 | K87: TS3L8-MLX100M3 | L87: L8N55 | M87: =COUNTIF(TS3L8_L8N_1,L87)*$M$22*(Lotto8_C6525_1!F96) -> 0 | N87: =COUNTIF(TS3L8_L8N_2,L87)*$N$22*(Lotto8_C6525_2!F96) -> 0 | O87: =COUNTIF(TS3L8_L8N_3,L87)*$O$22*(Lotto8_C6525_3!F95) -> 0 | P87: =SUM(M87:O87) -> 0 | T87: =Lotto8_C6525_1!L88 -> 0 | U87: =Lotto8_C6525_1!F88 -> 0 | V87: =Lotto8_C6525_2!L88 -> 0 | W87: =Lotto8_C6525_2!F88 -> 0 | X87: =Lotto8_C6525_3!L88 -> 0 | Y87: =Lotto8_C6525_3!F88 -> 0 | AA87: =ISODD(SUM($J$23:J87)) -> FALSE
B88: =IF(P88>0,P88,"") ->  | C88: =IF(B88="","",VLOOKUP(L88,Tabella_prezzi!$A$1:$K$183,9,FALSE)) ->  | D88: =IF(B88="","",VLOOKUP(L88,Tabella_prezzi!$A$1:$K$183,6,FALSE)) ->  | E88: =IF(B88="","",VLOOKUP(L88,Tabella_prezzi!$A$1:$K$183,8,FALSE)) ->  | F88: =IF(B88="","",VLOOKUP(L88,Tabella_prezzi!$A$1:$K$183,4,FALSE)) ->  | G88: =IF(C88="","",F88*B88) ->  | J88: =IF(B88="",0,1) -> 0 | K88: TS3L8-MDPVGA | L88: L8N56 | M88: =COUNTIF(TS3L8_L8N_1,L88)*$M$22*(Lotto8_C6525_1!F99) -> 0 | N88: =COUNTIF(TS3L8_L8N_2,L88)*$N$22*(Lotto8_C6525_2!F99) -> 0 | O88: =COUNTIF(TS3L8_L8N_3,L88)*$O$22*(Lotto8_C6525_3!F99) -> 0 | P88: 0 | T88: =Lotto8_C6525_1!L89 -> 0 | U88: =Lotto8_C6525_1!F89 -> 0 | V88: =Lotto8_C6525_2!L89 -> 0 | W88: =Lotto8_C6525_2!F89 -> 0 | X88: =Lotto8_C6525_3!L89 -> 0 | Y88: =Lotto8_C6525_3!F89 -> 0 | AA88: =ISODD(SUM($J$23:J88)) -> FALSE
C89: =IF(B89="","",VLOOKUP(L89,Tabella_prezzi!$A$1:$K$183,9,FALSE)) ->  | D89: =IF(B89="","",VLOOKUP(L89,Tabella_prezzi!$A$1:$K$183,6,FALSE)) ->  | E89: =IF(B89="","",VLOOKUP(L89,Tabella_prezzi!$A$1:$K$183,8,FALSE)) ->  | F89: =IF(B89="","",VLOOKUP(L89,Tabella_prezzi!$A$1:$K$183,4,FALSE)) ->  | J89: =IF(B89="",0,1) -> 0 | T89: =Lotto8_C6525_1!L90 -> 0 | U89: =Lotto8_C6525_1!F90 -> 0 | V89: =Lotto8_C6525_2!L90 -> 0 | W89: =Lotto8_C6525_2!F90 -> 0 | X89: =Lotto8_C6525_3!L90 -> 0 | Y89: =Lotto8_C6525_3!F90 -> 0 | AA89: =ISODD(SUM($J$23:J89)) -> FALSE
C90: =IF(B90="","",VLOOKUP(L90,Tabella_prezzi!$A$1:$K$183,9,FALSE)) ->  | D90: =IF(B90="","",VLOOKUP(L90,Tabella_prezzi!$A$1:$K$183,6,FALSE)) ->  | E90: =IF(B90="","",VLOOKUP(L90,Tabella_prezzi!$A$1:$K$183,8,FALSE)) ->  | F90: =IF(B90="","",VLOOKUP(L90,Tabella_prezzi!$A$1:$K$183,4,FALSE)) ->  | J90: 0 | T90: =Lotto8_C6525_1!L91 ->  | U90: =Lotto8_C6525_1!F91 ->  | V90: =Lotto8_C6525_2!L91 ->  | W90: =Lotto8_C6525_2!F91 ->  | X90: =Lotto8_C6525_3!L91 ->  | Y90: =Lotto8_C6525_3!F91 ->  | AA90: =ISODD(SUM($J$23:J90)) -> FALSE
C91: =IF(B91="","",VLOOKUP(L91,Tabella_prezzi!$A$1:$K$183,9,FALSE)) ->  | D91: =IF(B91="","",VLOOKUP(L91,Tabella_prezzi!$A$1:$K$183,6,FALSE)) ->  | E91: =IF(B91="","",VLOOKUP(L91,Tabella_prezzi!$A$1:$K$183,8,FALSE)) ->  | F91: =IF(B91="","",VLOOKUP(L91,Tabella_prezzi!$A$1:$K$183,4,FALSE)) ->  | J91: 0 | T91: =Lotto8_C6525_1!L92 -> 0 | U91: =Lotto8_C6525_1!F92 -> 0 | V91: =Lotto8_C6525_2!L92 -> 0 | W91: =Lotto8_C6525_2!F92 -> 0 | X91: =Lotto8_C6525_3!L92 -> 0 | Y91: =Lotto8_C6525_3!F92 -> 0 | AA91: =ISODD(SUM($J$23:J91)) -> FALSE
C92: =IF(B92="","",VLOOKUP(L92,Tabella_prezzi!$A$1:$K$183,9,FALSE)) ->  | D92: =IF(B92="","",VLOOKUP(L92,Tabella_prezzi!$A$1:$K$183,6,FALSE)) ->  | E92: =IF(B92="","",VLOOKUP(L92,Tabella_prezzi!$A$1:$K$183,8,FALSE)) ->  | F92: =IF(B92="","",VLOOKUP(L92,Tabella_prezzi!$A$1:$K$183,4,FALSE)) ->  | J92: 0 | T92: =Lotto8_C6525_1!L101 -> 0 | U92: =Lotto8_C6525_1!F101 -> 0 | V92: =Lotto8_C6525_2!L101 -> 0 | W92: =Lotto8_C6525_2!F101 -> 0 | X92: =Lotto8_C6525_3!L101 -> 0 | Y92: =Lotto8_C6525_3!F101 -> 0 | AA92: =ISODD(SUM($J$23:J92)) -> FALSE
C93: =IF(B93="","",VLOOKUP(L93,Tabella_prezzi!$A$1:$K$183,9,FALSE)) ->  | D93: =IF(B93="","",VLOOKUP(L93,Tabella_prezzi!$A$1:$K$183,6,FALSE)) ->  | E93: =IF(B93="","",VLOOKUP(L93,Tabella_prezzi!$A$1:$K$183,8,FALSE)) ->  | F93: =IF(B93="","",VLOOKUP(L93,Tabella_prezzi!$A$1:$K$183,4,FALSE)) ->  | J93: 0 | T93: =Lotto8_C6525_1!L102 -> L8N30 | U93: =Lotto8_C6525_1!F102 -> 20 | V93: =Lotto8_C6525_2!L102 -> L8N30 | W93: =Lotto8_C6525_2!F102 -> 20 | X93: =Lotto8_C6525_3!L102 -> L8N30 | Y93: =Lotto8_C6525_3!F102 -> 20 | AA93: =ISODD(SUM($J$23:J93)) -> FALSE
C94: =IF(B94="","",VLOOKUP(L94,Tabella_prezzi!$A$1:$K$183,9,FALSE)) ->  | D94: =IF(B94="","",VLOOKUP(L94,Tabella_prezzi!$A$1:$K$183,6,FALSE)) ->  | E94: =IF(B94="","",VLOOKUP(L94,Tabella_prezzi!$A$1:$K$183,8,FALSE)) ->  | F94: =IF(B94="","",VLOOKUP(L94,Tabella_prezzi!$A$1:$K$183,4,FALSE)) ->  | J94: 0 | T94: =Lotto8_C6525_1!L103 -> 0 | U94: =Lotto8_C6525_1!F103 -> 0 | V94: =Lotto8_C6525_2!L103 -> 0 | W94: =Lotto8_C6525_2!F103 -> 0 | X94: =Lotto8_C6525_3!L103 -> 0 | Y94: =Lotto8_C6525_3!F103 -> 0 | AA94: =ISODD(SUM($J$23:J94)) -> FALSE
C95: =IF(B95="","",VLOOKUP(L95,Tabella_prezzi!$A$1:$K$183,9,FALSE)) ->  | D95: =IF(B95="","",VLOOKUP(L95,Tabella_prezzi!$A$1:$K$183,6,FALSE)) ->  | E95: =IF(B95="","",VLOOKUP(L95,Tabella_prezzi!$A$1:$K$183,8,FALSE)) ->  | F95: =IF(B95="","",VLOOKUP(L95,Tabella_prezzi!$A$1:$K$183,4,FALSE)) ->  | J95: 0 | T95: =Lotto8_C6525_1!L104 -> 0 | U95: =Lotto8_C6525_1!F104 -> 0 | V95: =Lotto8_C6525_2!L104 -> 0 | W95: =Lotto8_C6525_2!F104 -> 0 | X95: =Lotto8_C6525_3!L104 -> 0 | Y95: =Lotto8_C6525_3!F104 -> 0 | AA95: =ISODD(SUM($J$23:J95)) -> FALSE
C96: =IF(B96="","",VLOOKUP(L96,Tabella_prezzi!$A$1:$K$183,9,FALSE)) ->  | D96: =IF(B96="","",VLOOKUP(L96,Tabella_prezzi!$A$1:$K$183,6,FALSE)) ->  | E96: =IF(B96="","",VLOOKUP(L96,Tabella_prezzi!$A$1:$K$183,8,FALSE)) ->  | F96: =IF(B96="","",VLOOKUP(L96,Tabella_prezzi!$A$1:$K$183,4,FALSE)) ->  | J96: 0 | T96: =Lotto8_C6525_1!L105 ->  | U96: =Lotto8_C6525_1!F105 ->  | V96: =Lotto8_C6525_2!L105 ->  | W96: =Lotto8_C6525_2!F105 ->  | X96: =Lotto8_C6525_3!L105 ->  | Y96: =Lotto8_C6525_3!F105 ->  | AA96: =ISODD(SUM($J$23:J96)) -> FALSE
C97: =IF(B97="","",VLOOKUP(L97,Tabella_prezzi!$A$1:$K$183,9,FALSE)) ->  | D97: =IF(B97="","",VLOOKUP(L97,Tabella_prezzi!$A$1:$K$183,6,FALSE)) ->  | E97: =IF(B97="","",VLOOKUP(L97,Tabella_prezzi!$A$1:$K$183,8,FALSE)) ->  | F97: =IF(B97="","",VLOOKUP(L97,Tabella_prezzi!$A$1:$K$183,4,FALSE)) ->  | J97: 0 | T97: =Lotto8_C6525_1!L106 -> 0 | U97: =Lotto8_C6525_1!F106 -> 0 | V97: =Lotto8_C6525_2!L106 -> 0 | W97: =Lotto8_C6525_2!F106 -> 0 | X97: =Lotto8_C6525_3!L106 -> 0 | Y97: =Lotto8_C6525_3!F106 -> 0 | AA97: =ISODD(SUM($J$23:J97)) -> FALSE
C98: =IF(B98="","",VLOOKUP(L98,Tabella_prezzi!$A$1:$K$183,9,FALSE)) ->  | D98: =IF(B98="","",VLOOKUP(L98,Tabella_prezzi!$A$1:$K$183,6,FALSE)) ->  | E98: =IF(B98="","",VLOOKUP(L98,Tabella_prezzi!$A$1:$K$183,8,FALSE)) ->  | F98: =IF(B98="","",VLOOKUP(L98,Tabella_prezzi!$A$1:$K$183,4,FALSE)) ->  | J98: 0 | T98: =Lotto8_C6525_1!L107 -> 0 | U98: =Lotto8_C6525_1!F107 -> 0 | V98: =Lotto8_C6525_2!L107 -> 0 | W98: =Lotto8_C6525_2!F107 -> 0 | X98: =Lotto8_C6525_3!L107 -> 0 | Y98: =Lotto8_C6525_3!F107 -> 0 | AA98: =ISODD(SUM($J$23:J98)) -> FALSE
C99: =IF(B99="","",VLOOKUP(L99,Tabella_prezzi!$A$1:$K$183,9,FALSE)) ->  | D99: =IF(B99="","",VLOOKUP(L99,Tabella_prezzi!$A$1:$K$183,6,FALSE)) ->  | E99: =IF(B99="","",VLOOKUP(L99,Tabella_prezzi!$A$1:$K$183,8,FALSE)) ->  | F99: =IF(B99="","",VLOOKUP(L99,Tabella_prezzi!$A$1:$K$183,4,FALSE)) ->  | J99: 0 | T99: =Lotto8_C6525_1!L108 ->  | U99: =Lotto8_C6525_1!F108 ->  | V99: =Lotto8_C6525_2!L108 ->  | W99: =Lotto8_C6525_2!F108 ->  | X99: =Lotto8_C6525_3!L108 ->  | Y99: =Lotto8_C6525_3!F108 ->  | AA99: =ISODD(SUM($J$23:J99)) -> FALSE
C100: =IF(B100="","",VLOOKUP(L100,Tabella_prezzi!$A$1:$K$183,9,FALSE)) ->  | D100: =IF(B100="","",VLOOKUP(L100,Tabella_prezzi!$A$1:$K$183,6,FALSE)) ->  | E100: =IF(B100="","",VLOOKUP(L100,Tabella_prezzi!$A$1:$K$183,8,FALSE)) ->  | F100: =IF(B100="","",VLOOKUP(L100,Tabella_prezzi!$A$1:$K$183,4,FALSE)) ->  | J100: 0 | T100: =Lotto8_C6525_1!L109 -> 0 | U100: =Lotto8_C6525_1!F109 -> 0 | V100: =Lotto8_C6525_2!L109 -> 0 | W100: =Lotto8_C6525_2!F109 -> 0 | X100: =Lotto8_C6525_3!L109 -> 0 | Y100: =Lotto8_C6525_3!F109 -> 0 | AA100: =ISODD(SUM($J$23:J100)) -> FALSE
C101: =IF(B101="","",VLOOKUP(L101,Tabella_prezzi!$A$1:$K$183,9,FALSE)) ->  | D101: =IF(B101="","",VLOOKUP(L101,Tabella_prezzi!$A$1:$K$183,6,FALSE)) ->  | E101: =IF(B101="","",VLOOKUP(L101,Tabella_prezzi!$A$1:$K$183,8,FALSE)) ->  | F101: =IF(B101="","",VLOOKUP(L101,Tabella_prezzi!$A$1:$K$183,4,FALSE)) ->  | J101: 0 | T101: =Lotto8_C6525_1!L110 -> 0 | U101: =Lotto8_C6525_1!F110 -> 0 | V101: =Lotto8_C6525_2!L110 -> 0 | W101: =Lotto8_C6525_2!F110 -> 0 | X101: =Lotto8_C6525_3!L110 -> 0 | Y101: =Lotto8_C6525_3!F110 -> 0 | AA101: =ISODD(SUM($J$23:J101)) -> FALSE
C102: =IF(B102="","",VLOOKUP(L102,Tabella_prezzi!$A$1:$K$183,9,FALSE)) ->  | D102: =IF(B102="","",VLOOKUP(L102,Tabella_prezzi!$A$1:$K$183,6,FALSE)) ->  | E102: =IF(B102="","",VLOOKUP(L102,Tabella_prezzi!$A$1:$K$183,8,FALSE)) ->  | F102: =IF(B102="","",VLOOKUP(L102,Tabella_prezzi!$A$1:$K$183,4,FALSE)) ->  | J102: 0 | AA102: =ISODD(SUM($J$23:J102)) -> FALSE
C103: =IF(B103="","",VLOOKUP(L103,Tabella_prezzi!$A$1:$K$183,9,FALSE)) ->  | D103: =IF(B103="","",VLOOKUP(L103,Tabella_prezzi!$A$1:$K$183,6,FALSE)) ->  | E103: =IF(B103="","",VLOOKUP(L103,Tabella_prezzi!$A$1:$K$183,8,FALSE)) ->  | F103: =IF(B103="","",VLOOKUP(L103,Tabella_prezzi!$A$1:$K$183,4,FALSE)) ->  | J103: 0 | AA103: =ISODD(SUM($J$23:J103)) -> FALSE
C104: =IF(B104="","",VLOOKUP(L104,Tabella_prezzi!$A$1:$K$183,9,FALSE)) ->  | D104: =IF(B104="","",VLOOKUP(L104,Tabella_prezzi!$A$1:$K$183,6,FALSE)) ->  | E104: =IF(B104="","",VLOOKUP(L104,Tabella_prezzi!$A$1:$K$183,8,FALSE)) ->  | F104: =IF(B104="","",VLOOKUP(L104,Tabella_prezzi!$A$1:$K$183,4,FALSE)) ->  | J104: 0 | AA104: =ISODD(SUM($J$23:J104)) -> FALSE
C105: =IF(B105="","",VLOOKUP(L105,Tabella_prezzi!$A$1:$K$183,9,FALSE)) ->  | D105: =IF(B105="","",VLOOKUP(L105,Tabella_prezzi!$A$1:$K$183,6,FALSE)) ->  | E105: =IF(B105="","",VLOOKUP(L105,Tabella_prezzi!$A$1:$K$183,8,FALSE)) ->  | F105: =IF(B105="","",VLOOKUP(L105,Tabella_prezzi!$A$1:$K$183,4,FALSE)) ->  | J105: 0 | AA105: =ISODD(SUM($J$23:J105)) -> FALSE
C106: =IF(B106="","",VLOOKUP(L106,Tabella_prezzi!$A$1:$K$183,9,FALSE)) ->  | D106: =IF(B106="","",VLOOKUP(L106,Tabella_prezzi!$A$1:$K$183,6,FALSE)) ->  | E106: =IF(B106="","",VLOOKUP(L106,Tabella_prezzi!$A$1:$K$183,8,FALSE)) ->  | F106: =IF(B106="","",VLOOKUP(L106,Tabella_prezzi!$A$1:$K$183,4,FALSE)) ->  | J106: 0 | AA106: =ISODD(SUM($J$23:J106)) -> FALSE
C107: =IF(B107="","",VLOOKUP(L107,Tabella_prezzi!$A$1:$K$183,9,FALSE)) ->  | D107: =IF(B107="","",VLOOKUP(L107,Tabella_prezzi!$A$1:$K$183,6,FALSE)) ->  | E107: =IF(B107="","",VLOOKUP(L107,Tabella_prezzi!$A$1:$K$183,8,FALSE)) ->  | F107: =IF(B107="","",VLOOKUP(L107,Tabella_prezzi!$A$1:$K$183,4,FALSE)) ->  | J107: 0 | AA107: =ISODD(SUM($J$23:J107)) -> FALSE
C108: =IF(B108="","",VLOOKUP(L108,Tabella_prezzi!$A$1:$K$183,9,FALSE)) ->  | D108: =IF(B108="","",VLOOKUP(L108,Tabella_prezzi!$A$1:$K$183,6,FALSE)) ->  | E108: =IF(B108="","",VLOOKUP(L108,Tabella_prezzi!$A$1:$K$183,8,FALSE)) ->  | F108: =IF(B108="","",VLOOKUP(L108,Tabella_prezzi!$A$1:$K$183,4,FALSE)) ->  | J108: 0 | AA108: =ISODD(SUM($J$23:J108)) -> FALSE
C109: =IF(B109="","",VLOOKUP(L109,Tabella_prezzi!$A$1:$K$183,9,FALSE)) ->  | D109: =IF(B109="","",VLOOKUP(L109,Tabella_prezzi!$A$1:$K$183,6,FALSE)) ->  | E109: =IF(B109="","",VLOOKUP(L109,Tabella_prezzi!$A$1:$K$183,8,FALSE)) ->  | F109: =IF(B109="","",VLOOKUP(L109,Tabella_prezzi!$A$1:$K$183,4,FALSE)) ->  | J109: 0 | AA109: =ISODD(SUM($J$23:J109)) -> FALSE
C110: =IF(B110="","",VLOOKUP(L110,Tabella_prezzi!$A$1:$K$183,9,FALSE)) ->  | D110: =IF(B110="","",VLOOKUP(L110,Tabella_prezzi!$A$1:$K$183,6,FALSE)) ->  | E110: =IF(B110="","",VLOOKUP(L110,Tabella_prezzi!$A$1:$K$183,8,FALSE)) ->  | F110: =IF(B110="","",VLOOKUP(L110,Tabella_prezzi!$A$1:$K$183,4,FALSE)) ->  | J110: 0 | AA110: =ISODD(SUM($J$23:J110)) -> FALSE
B111: Convenzione | G111: =SUM(G23:G57) -> 0 | J111: =IF(G111=0,0,1) -> 0
B112: Valore economico 20% consentito | D112: =G111/100*20 -> 0 | E112: Ulteriori componenti opzionali (20%) | G112: =SUM(G60:G110) -> 0 | J112: =IF(G112=0,0,1) -> 0
B113: Totale iva esclusa | G113: =G112+G111 -> 0 | J113: 0
B114: I.V.A. | G114: =G113/100*22 -> 0 | J114: 0
B115: TOTALE ORDINE | G115: =G113+G114 -> 0 | J115: 0
J116: 1

Sheet Configurazione
V1: 1
B2: =Riepilogo!M22 -> 0 | C2: PowerEdge C6400 + 4 x C6525 Conf 1 | E2: =Riepilogo!N22 -> 0 | F2: PowerEdge C6400 + 4 x C6525 Conf 2 | H2: =Riepilogo!O22 -> 0 | I2: PowerEdge C6400 + 4 x C6525 Conf 3 | V2: 1
V3: =IF($U$4>0,1,0) -> 0
B4: =IF(Riepilogo!M23>0,Riepilogo!M23/$B$2,"") ->  | C4: =IF(B4="","",Riepilogo!K23) ->  | E4: =IF(Riepilogo!N23>0,Riepilogo!N23/$E$2,"") ->  | F4: =IF(E4="","",Riepilogo!K23) ->  | H4: =IF(Riepilogo!O23>0,Riepilogo!O23/$H$2,"") ->  | I4: =IF(H4="","",Riepilogo!K23) ->  | L4: =IF(B4="",0,B4) -> 0 | O4: =IF(E4="",0,E4) -> 0 | R4: =IF(H4="",0,H4) -> 0 | U4: =SUM(L4:T4) -> 0 | V4: =IF(U4>0,1,0) -> 0 | W4: =ISODD(V4) -> FALSE
B5: =IF(Riepilogo!M24>0,Riepilogo!M24/$B$2,"") ->  | C5: =IF(B5="","",Riepilogo!K24) ->  | E5: =IF(Riepilogo!N24>0,Riepilogo!N24/$E$2,"") ->  | F5: =IF(E5="","",Riepilogo!K24) ->  | H5: =IF(Riepilogo!O24>0,Riepilogo!O24/$H$2,"") ->  | I5: =IF(H5="","",Riepilogo!K24) ->  | L5: =IF(B5="",0,B5) -> 0 | O5: =IF(E5="",0,E5) -> 0 | R5: =IF(H5="",0,H5) -> 0 | U5: =SUM(L5:T5) -> 0 | V5: =IF(U5>0,1,0) -> 0 | W5: =ISODD(SUM($V$4:V5)) -> FALSE
B6: =IF(Riepilogo!M25>0,Riepilogo!M25/$B$2,"") ->  | C6: =IF(B6="","",Riepilogo!K25) ->  | E6: =IF(Riepilogo!N25>0,Riepilogo!N25/$E$2,"") ->  | F6: =IF(E6="","",Riepilogo!K25) ->  | H6: =IF(Riepilogo!O25>0,Riepilogo!O25/$H$2,"") ->  | I6: =IF(H6="","",Riepilogo!K25) ->  | L6: 0 | O6: 0 | R6: 0 | U6: 0 | V6: 0 | W6: =ISODD(SUM($V$4:V6)) -> FALSE
B7: =IF(Riepilogo!M26>0,Riepilogo!M26/$B$2,"") ->  | C7: =IF(B7="","",Riepilogo!K26) ->  | E7: =IF(Riepilogo!N26>0,Riepilogo!N26/$E$2,"") ->  | F7: =IF(E7="","",Riepilogo!K26) ->  | H7: =IF(Riepilogo!O26>0,Riepilogo!O26/$H$2,"") ->  | I7: =IF(H7="","",Riepilogo!K26) ->  | L7: 0 | O7: 0 | R7: 0 | U7: 0 | V7: 0 | W7: =ISODD(SUM($V$4:V7)) -> FALSE
B8: =IF(Riepilogo!M27>0,Riepilogo!M27/$B$2,"") ->  | C8: =IF(B8="","",Riepilogo!K27) ->  | E8: =IF(Riepilogo!N27>0,Riepilogo!N27/$E$2,"") ->  | F8: =IF(E8="","",Riepilogo!K27) ->  | H8: =IF(Riepilogo!O27>0,Riepilogo!O27/$H$2,"") ->  | I8: =IF(H8="","",Riepilogo!K27) ->  | L8: 0 | O8: 0 | R8: 0 | U8: 0 | V8: 0 | W8: =ISODD(SUM($V$4:V8)) -> FALSE
B9: =IF(Riepilogo!M28>0,Riepilogo!M28/$B$2,"") ->  | C9: =IF(B9="","",Riepilogo!K28) ->  | E9: =IF(Riepilogo!N28>0,Riepilogo!N28/$E$2,"") ->  | F9: =IF(E9="","",Riepilogo!K28) ->  | H9: =IF(Riepilogo!O28>0,Riepilogo!O28/$H$2,"") ->  | I9: =IF(H9="","",Riepilogo!K28) ->  | L9: 0 | O9: 0 | R9: 0 | U9: 0 | V9: 0 | W9: =ISODD(SUM($V$4:V9)) -> FALSE
B10: =IF(Riepilogo!M29>0,Riepilogo!M29/$B$2,"") ->  | C10: =IF(B10="","",Riepilogo!K29) ->  | E10: =IF(Riepilogo!N29>0,Riepilogo!N29/$E$2,"") ->  | F10: =IF(E10="","",Riepilogo!K29) ->  | H10: =IF(Riepilogo!O29>0,Riepilogo!O29/$H$2,"") ->  | I10: =IF(H10="","",Riepilogo!K29) ->  | L10: 0 | O10: 0 | R10: 0 | U10: 0 | V10: 0 | W10: =ISODD(SUM($V$4:V10)) -> FALSE
B11: =IF(Riepilogo!M30>0,Riepilogo!M30/$B$2,"") ->  | C11: =IF(B11="","",Riepilogo!K30) ->  | E11: =IF(Riepilogo!N30>0,Riepilogo!N30/$E$2,"") ->  | F11: =IF(E11="","",Riepilogo!K30) ->  | H11: =IF(Riepilogo!O30>0,Riepilogo!O30/$H$2,"") ->  | I11: =IF(H11="","",Riepilogo!K30) ->  | L11: 0 | O11: 0 | R11: 0 | U11: 0 | V11: 0 | W11: =ISODD(SUM($V$4:V11)) -> FALSE
B12: =IF(Riepilogo!M31>0,Riepilogo!M31/$B$2,"") ->  | C12: =IF(B12="","",Riepilogo!K31) ->  | E12: =IF(Riepilogo!N31>0,Riepilogo!N31/$E$2,"") ->  | F12: =IF(E12="","",Riepilogo!K31) ->  | H12: =IF(Riepilogo!O31>0,Riepilogo!O31/$H$2,"") ->  | I12: =IF(H12="","",Riepilogo!K31) ->  | L12: 0 | O12: 0 | R12: 0 | U12: 0 | V12: 0 | W12: =ISODD(SUM($V$4:V12)) -> FALSE
B13: =IF(Riepilogo!M32>0,Riepilogo!M32/$B$2,"") ->  | C13: =IF(B13="","",Riepilogo!K32) ->  | E13: =IF(Riepilogo!N32>0,Riepilogo!N32/$E$2,"") ->  | F13: =IF(E13="","",Riepilogo!K32) ->  | H13: =IF(Riepilogo!O32>0,Riepilogo!O32/$H$2,"") ->  | I13: =IF(H13="","",Riepilogo!K32) ->  | L13: 0 | O13: 0 | R13: 0 | U13: 0 | V13: 0 | W13: =ISODD(SUM($V$4:V13)) -> FALSE
B14: =IF(Riepilogo!M33>0,Riepilogo!M33/$B$2,"") ->  | C14: =IF(B14="","",Riepilogo!K33) ->  | E14: =IF(Riepilogo!N33>0,Riepilogo!N33/$E$2,"") ->  | F14: =IF(E14="","",Riepilogo!K33) ->  | H14: =IF(Riepilogo!O33>0,Riepilogo!O33/$H$2,"") ->  | I14: =IF(H14="","",Riepilogo!K33) ->  | L14: 0 | O14: 0 | R14: 0 | U14: 0 | V14: 0 | W14: =ISODD(SUM($V$4:V14)) -> FALSE
B15: =IF(Riepilogo!M34>0,Riepilogo!M34/$B$2,"") ->  | C15: =IF(B15="","",Riepilogo!K34) ->  | E15: =IF(Riepilogo!N34>0,Riepilogo!N34/$E$2,"") ->  | F15: =IF(E15="","",Riepilogo!K34) ->  | H15: =IF(Riepilogo!O34>0,Riepilogo!O34/$H$2,"") ->  | I15: =IF(H15="","",Riepilogo!K34) ->  | L15: 0 | O15: 0 | R15: 0 | U15: 0 | V15: 0 | W15: =ISODD(SUM($V$4:V15)) -> FALSE
B16: =IF(Riepilogo!M35>0,Riepilogo!M35/$B$2,"") ->  | C16: =IF(B16="","",Riepilogo!K35) ->  | E16: =IF(Riepilogo!N35>0,Riepilogo!N35/$E$2,"") ->  | F16: =IF(E16="","",Riepilogo!K35) ->  | H16: =IF(Riepilogo!O35>0,Riepilogo!O35/$H$2,"") ->  | I16: =IF(H16="","",Riepilogo!K35) ->  | L16: 0 | O16: 0 | R16: 0 | U16: 0 | V16: 0 | W16: =ISODD(SUM($V$4:V16)) -> FALSE
B17: =IF(Riepilogo!M36>0,Riepilogo!M36/$B$2,"") ->  | C17: =IF(B17="","",Riepilogo!K36) ->  | E17: =IF(Riepilogo!N36>0,Riepilogo!N36/$E$2,"") ->  | F17: =IF(E17="","",Riepilogo!K36) ->  | H17: =IF(Riepilogo!O36>0,Riepilogo!O36/$H$2,"") ->  | I17: =IF(H17="","",Riepilogo!K36) ->  | L17: 0 | O17: 0 | R17: 0 | U17: 0 | V17: 0 | W17: =ISODD(SUM($V$4:V17)) -> FALSE
B18: =IF(Riepilogo!M37>0,Riepilogo!M37/$B$2,"") ->  | C18: =IF(B18="","",Riepilogo!K37) ->  | E18: =IF(Riepilogo!N37>0,Riepilogo!N37/$E$2,"") ->  | F18: =IF(E18="","",Riepilogo!K37) ->  | H18: =IF(Riepilogo!O37>0,Riepilogo!O37/$H$2,"") ->  | I18: =IF(H18="","",Riepilogo!K37) ->  | L18: 0 | O18: 0 | R18: 0 | U18: 0 | V18: 0 | W18: =ISODD(SUM($V$4:V18)) -> FALSE
B19: =IF(Riepilogo!M38>0,Riepilogo!M38/$B$2,"") ->  | C19: =IF(B19="","",Riepilogo!K38) ->  | E19: =IF(Riepilogo!N38>0,Riepilogo!N38/$E$2,"") ->  | F19: =IF(E19="","",Riepilogo!K38) ->  | H19: =IF(Riepilogo!O38>0,Riepilogo!O38/$H$2,"") ->  | I19: =IF(H19="","",Riepilogo!K38) ->  | L19: 0 | O19: 0 | R19: 0 | U19: 0 | V19: 0 | W19: =ISODD(SUM($V$4:V19)) -> FALSE
B20: =IF(Riepilogo!M39>0,Riepilogo!M39/$B$2,"") ->  | C20: =IF(B20="","",Riepilogo!K39) ->  | E20: =IF(Riepilogo!N39>0,Riepilogo!N39/$E$2,"") ->  | F20: =IF(E20="","",Riepilogo!K39) ->  | H20: =IF(Riepilogo!O39>0,Riepilogo!O39/$H$2,"") ->  | I20: =IF(H20="","",Riepilogo!K39) ->  | L20: 0 | O20: 0 | R20: 0 | U20: 0 | V20: 0 | W20: =ISODD(SUM($V$4:V20)) -> FALSE
B21: =IF(Riepilogo!M40>0,Riepilogo!M40/$B$2,"") ->  | C21: =IF(B21="","",Riepilogo!K40) ->  | E21: =IF(Riepilogo!N40>0,Riepilogo!N40/$E$2,"") ->  | F21: =IF(E21="","",Riepilogo!K40) ->  | H21: =IF(Riepilogo!O40>0,Riepilogo!O40/$H$2,"") ->  | I21: =IF(H21="","",Riepilogo!K40) ->  | L21: 0 | O21: 0 | R21: 0 | U21: 0 | V21: 0 | W21: =ISODD(SUM($V$4:V21)) -> FALSE
B22: =IF(Riepilogo!M41>0,Riepilogo!M41/$B$2,"") ->  | C22: =IF(B22="","",Riepilogo!K41) ->  | E22: =IF(Riepilogo!N41>0,Riepilogo!N41/$E$2,"") ->  | F22: =IF(E22="","",Riepilogo!K41) ->  | H22: =IF(Riepilogo!O41>0,Riepilogo!O41/$H$2,"") ->  | I22: =IF(H22="","",Riepilogo!K41) ->  | L22: 0 | O22: 0 | R22: 0 | U22: 0 | V22: 0 | W22: =ISODD(SUM($V$4:V22)) -> FALSE
B23: =IF(Riepilogo!M42>0,Riepilogo!M42/$B$2,"") ->  | C23: =IF(B23="","",Riepilogo!K42) ->  | E23: =IF(Riepilogo!N42>0,Riepilogo!N42/$E$2,"") ->  | F23: =IF(E23="","",Riepilogo!K42) ->  | H23: =IF(Riepilogo!O42>0,Riepilogo!O42/$H$2,"") ->  | I23: =IF(H23="","",Riepilogo!K42) ->  | L23: 0 | O23: 0 | R23: 0 | U23: 0 | V23: 0 | W23: =ISODD(SUM($V$4:V23)) -> FALSE
B24: =IF(Riepilogo!M43>0,Riepilogo!M43/$B$2,"") ->  | C24: =IF(B24="","",Riepilogo!K43) ->  | E24: =IF(Riepilogo!N43>0,Riepilogo!N43/$E$2,"") ->  | F24: =IF(E24="","",Riepilogo!K43) ->  | H24: =IF(Riepilogo!O43>0,Riepilogo!O43/$H$2,"") ->  | I24: =IF(H24="","",Riepilogo!K43) ->  | L24: 0 | O24: 0 | R24: 0 | U24: 0 | V24: 0 | W24: =ISODD(SUM($V$4:V24)) -> FALSE
B25: =IF(Riepilogo!M44>0,Riepilogo!M44/$B$2,"") ->  | C25: =IF(B25="","",Riepilogo!K44) ->  | E25: =IF(Riepilogo!N44>0,Riepilogo!N44/$E$2,"") ->  | F25: =IF(E25="","",Riepilogo!K44) ->  | H25: =IF(Riepilogo!O44>0,Riepilogo!O44/$H$2,"") ->  | I25: =IF(H25="","",Riepilogo!K44) ->  | L25: 0 | O25: 0 | R25: 0 | U25: 0 | V25: 0 | W25: =ISODD(SUM($V$4:V25)) -> FALSE
B26: =IF(Riepilogo!M45>0,Riepilogo!M45/$B$2,"") ->  | C26: =IF(B26="","",Riepilogo!K45) ->  | E26: =IF(Riepilogo!N45>0,Riepilogo!N45/$E$2,"") ->  | F26: =IF(E26="","",Riepilogo!K45) ->  | H26: =IF(Riepilogo!O45>0,Riepilogo!O45/$H$2,"") ->  | I26: =IF(H26="","",Riepilogo!K45) ->  | L26: 0 | O26: 0 | R26: 0 | U26: 0 | V26: 0 | W26: =ISODD(SUM($V$4:V26)) -> FALSE
B27: =IF(Riepilogo!M46>0,Riepilogo!M46/$B$2,"") ->  | C27: =IF(B27="","",Riepilogo!K46) ->  | E27: =IF(Riepilogo!N46>0,Riepilogo!N46/$E$2,"") ->  | F27: =IF(E27="","",Riepilogo!K46) ->  | H27: =IF(Riepilogo!O46>0,Riepilogo!O46/$H$2,"") ->  | I27: =IF(H27="","",Riepilogo!K46) ->  | L27: 0 | O27: 0 | R27: 0 | U27: 0 | V27: 0 | W27: =ISODD(SUM($V$4:V27)) -> FALSE
B28: =IF(Riepilogo!M47>0,Riepilogo!M47/$B$2,"") ->  | C28: =IF(B28="","",Riepilogo!K47) ->  | E28: =IF(Riepilogo!N47>0,Riepilogo!N47/$E$2,"") ->  | F28: =IF(E28="","",Riepilogo!K47) ->  | H28: =IF(Riepilogo!O47>0,Riepilogo!O47/$H$2,"") ->  | I28: =IF(H28="","",Riepilogo!K47) ->  | L28: 0 | O28: 0 | R28: 0 | U28: 0 | V28: 0 | W28: =ISODD(SUM($V$4:V28)) -> FALSE
B29: =IF(Riepilogo!M48>0,Riepilogo!M48/$B$2,"") ->  | C29: =IF(B29="","",Riepilogo!K48) ->  | E29: =IF(Riepilogo!N48>0,Riepilogo!N48/$E$2,"") ->  | F29: =IF(E29="","",Riepilogo!K48) ->  | H29: =IF(Riepilogo!O48>0,Riepilogo!O48/$H$2,"") ->  | I29: =IF(H29="","",Riepilogo!K48) ->  | L29: 0 | O29: 0 | R29: 0 | U29: 0 | V29: 0 | W29: =ISODD(SUM($V$4:V29)) -> FALSE
B30: =IF(Riepilogo!M49>0,Riepilogo!M49/$B$2,"") ->  | C30: =IF(B30="","",Riepilogo!K49) ->  | E30: =IF(Riepilogo!N49>0,Riepilogo!N49/$E$2,"") ->  | F30: =IF(E30="","",Riepilogo!K49) ->  | H30: =IF(Riepilogo!O49>0,Riepilogo!O49/$H$2,"") ->  | I30: =IF(H30="","",Riepilogo!K49) ->  | L30: 0 | O30: 0 | R30: 0 | U30: 0 | V30: 0 | W30: =ISODD(SUM($V$4:V30)) -> FALSE
B31: =IF(Riepilogo!M50>0,Riepilogo!M50/$B$2,"") ->  | C31: =IF(B31="","",Riepilogo!K50) ->  | E31: =IF(Riepilogo!N50>0,Riepilogo!N50/$E$2,"") ->  | F31: =IF(E31="","",Riepilogo!K50) ->  | H31: =IF(Riepilogo!O50>0,Riepilogo!O50/$H$2,"") ->  | I31: =IF(H31="","",Riepilogo!K50) ->  | L31: 0 | O31: 0 | R31: 0 | U31: 0 | V31: 0 | W31: =ISODD(SUM($V$4:V31)) -> FALSE
B32: =IF(Riepilogo!M51>0,Riepilogo!M51/$B$2,"") ->  | C32: =IF(B32="","",Riepilogo!K51) ->  | E32: =IF(Riepilogo!N51>0,Riepilogo!N51/$E$2,"") ->  | F32: =IF(E32="","",Riepilogo!K51) ->  | H32: =IF(Riepilogo!O51>0,Riepilogo!O51/$H$2,"") ->  | I32: =IF(H32="","",Riepilogo!K51) ->  | L32: 0 | O32: 0 | R32: 0 | U32: 0 | V32: 0 | W32: =ISODD(SUM($V$4:V32)) -> FALSE
B33: =IF(Riepilogo!M52>0,Riepilogo!M52/$B$2,"") ->  | C33: =IF(B33="","",Riepilogo!K52) ->  | E33: =IF(Riepilogo!N52>0,Riepilogo!N52/$E$2,"") ->  | F33: =IF(E33="","",Riepilogo!K52) ->  | H33: =IF(Riepilogo!O52>0,Riepilogo!O52/$H$2,"") ->  | I33: =IF(H33="","",Riepilogo!K52) ->  | L33: 0 | O33: 0 | R33: 0 | U33: 0 | V33: 0 | W33: =ISODD(SUM($V$4:V33)) -> FALSE
B34: =IF(Riepilogo!M53>0,Riepilogo!M53/$B$2,"") ->  | C34: =IF(B34="","",Riepilogo!K53) ->  | E34: =IF(Riepilogo!N53>0,Riepilogo!N53/$E$2,"") ->  | F34: =IF(E34="","",Riepilogo!K53) ->  | H34: =IF(Riepilogo!O53>0,Riepilogo!O53/$H$2,"") ->  | I34: =IF(H34="","",Riepilogo!K53) ->  | L34: =IF(B34="",0,B34) -> 0 | O34: =IF(E34="",0,E34) -> 0 | R34: =IF(H34="",0,H34) -> 0 | U34: =SUM(L34:T34) -> 0 | V34: =IF(U34>0,1,0) -> 0 | W34: =ISODD(SUM($V$4:V34)) -> FALSE
B35: =IF(Riepilogo!M54>0,Riepilogo!M54/$B$2,"") ->  | C35: =IF(B35="","",Riepilogo!K54) ->  | E35: =IF(Riepilogo!N54>0,Riepilogo!N54/$E$2,"") ->  | F35: =IF(E35="","",Riepilogo!K54) ->  | H35: =IF(Riepilogo!O54>0,Riepilogo!O54/$H$2,"") ->  | I35: =IF(H35="","",Riepilogo!K54) ->  | L35: 0 | O35: 0 | R35: 0 | U35: 0 | V35: 0 | W35: =ISODD(SUM($V$4:V35)) -> FALSE
B36: =IF(Riepilogo!M55>0,Riepilogo!M55/$B$2,"") ->  | C36: =IF(B36="","",Riepilogo!K55) ->  | E36: =IF(Riepilogo!N55>0,Riepilogo!N55/$E$2,"") ->  | F36: =IF(E36="","",Riepilogo!K55) ->  | H36: =IF(Riepilogo!O55>0,Riepilogo!O55/$H$2,"") ->  | I36: =IF(H36="","",Riepilogo!K55) ->  | L36: 0 | O36: 0 | R36: 0 | U36: 0 | V36: 0 | W36: =ISODD(SUM($V$4:V36)) -> FALSE
B37: =IF(Riepilogo!M56>0,Riepilogo!M56/$B$2,"") ->  | C37: =IF(B37="","",Riepilogo!K56) ->  | E37: =IF(Riepilogo!N56>0,Riepilogo!N56/$E$2,"") ->  | F37: =IF(E37="","",Riepilogo!K56) ->  | H37: =IF(Riepilogo!O56>0,Riepilogo!O56/$H$2,"") ->  | I37: =IF(H37="","",Riepilogo!K56) ->  | L37: 0 | O37: 0 | R37: 0 | U37: 0 | V37: 0 | W37: =ISODD(SUM($V$4:V37)) -> FALSE
B38: =IF(Riepilogo!M57>0,Riepilogo!M57/$B$2,"") ->  | C38: =IF(B38="","",Riepilogo!K57) ->  | E38: =IF(Riepilogo!N57>0,Riepilogo!N57/$E$2,"") ->  | F38: =IF(E38="","",Riepilogo!K57) ->  | H38: =IF(Riepilogo!O57>0,Riepilogo!O57/$H$2,"") ->  | I38: =IF(H38="","",Riepilogo!K57) ->  | L38: 0 | O38: 0 | R38: 0 | U38: 0 | V38: 0 | W38: =ISODD(SUM($V$4:V38)) -> FALSE
B39: =IF(Riepilogo!M60>0,Riepilogo!M60/$B$2,"") ->  | C39: =IF(B39="","",Riepilogo!K60) ->  | E39: =IF(Riepilogo!N60>0,Riepilogo!N60/$E$2,"") ->  | F39: =IF(E39="","",Riepilogo!K60) ->  | H39: =IF(Riepilogo!O60>0,Riepilogo!O60/$H$2,"") ->  | I39: =IF(H39="","",Riepilogo!K60) ->  | L39: 0 | O39: 0 | R39: 0 | U39: 0 | V39: 0 | W39: =ISODD(SUM($V$4:V39)) -> FALSE | X39: inizio 20%
B40: =IF(Riepilogo!M61>0,Riepilogo!M61/$B$2,"") ->  | C40: =IF(B40="","",Riepilogo!K61) ->  | E40: =IF(Riepilogo!N61>0,Riepilogo!N61/$E$2,"") ->  | F40: =IF(E40="","",Riepilogo!K61) ->  | H40: =IF(Riepilogo!O61>0,Riepilogo!O61/$H$2,"") ->  | I40: =IF(H40="","",Riepilogo!K61) ->  | L40: 0 | O40: 0 | R40: 0 | U40: 0 | V40: 0 | W40: =ISODD(SUM($V$4:V40)) -> FALSE
B41: =IF(Riepilogo!M62>0,Riepilogo!M62/$B$2,"") ->  | C41: =IF(B41="","",Riepilogo!K62) ->  | E41: =IF(Riepilogo!N62>0,Riepilogo!N62/$E$2,"") ->  | F41: =IF(E41="","",Riepilogo!K62) ->  | H41: =IF(Riepilogo!O62>0,Riepilogo!O62/$H$2,"") ->  | I41: =IF(H41="","",Riepilogo!K62) ->  | L41: 0 | O41: 0 | R41: 0 | U41: 0 | V41: 0 | W41: =ISODD(SUM($V$4:V41)) -> FALSE
B42: =IF(Riepilogo!M63>0,Riepilogo!M63/$B$2,"") ->  | C42: =IF(B42="","",Riepilogo!K63) ->  | E42: =IF(Riepilogo!N63>0,Riepilogo!N63/$E$2,"") ->  | F42: =IF(E42="","",Riepilogo!K63) ->  | H42: =IF(Riepilogo!O63>0,Riepilogo!O63/$H$2,"") ->  | I42: =IF(H42="","",Riepilogo!K63) ->  | L42: 0 | O42: 0 | R42: 0 | U42: 0 | V42: 0 | W42: =ISODD(SUM($V$4:V42)) -> FALSE
B43: =IF(Riepilogo!M64>0,Riepilogo!M64/$B$2,"") ->  | C43: =IF(B43="","",Riepilogo!K64) ->  | E43: =IF(Riepilogo!N64>0,Riepilogo!N64/$E$2,"") ->  | F43: =IF(E43="","",Riepilogo!K64) ->  | H43: =IF(Riepilogo!O64>0,Riepilogo!O64/$H$2,"") ->  | I43: =IF(H43="","",Riepilogo!K64) ->  | L43: 0 | O43: 0 | R43: 0 | U43: 0 | V43: 0 | W43: =ISODD(SUM($V$4:V43)) -> FALSE
B44: =IF(Riepilogo!M65>0,Riepilogo!M65/$B$2,"") ->  | C44: =IF(B44="","",Riepilogo!K65) ->  | E44: =IF(Riepilogo!N65>0,Riepilogo!N65/$E$2,"") ->  | F44: =IF(E44="","",Riepilogo!K65) ->  | H44: =IF(Riepilogo!O65>0,Riepilogo!O65/$H$2,"") ->  | I44: =IF(H44="","",Riepilogo!K65) ->  | L44: 0 | O44: 0 | R44: 0 | U44: 0 | V44: 0 | W44: =ISODD(SUM($V$4:V44)) -> FALSE
B45: =IF(Riepilogo!M66>0,Riepilogo!M66/$B$2,"") ->  | C45: =IF(B45="","",Riepilogo!K66) ->  | E45: =IF(Riepilogo!N66>0,Riepilogo!N66/$E$2,"") ->  | F45: =IF(E45="","",Riepilogo!K66) ->  | H45: =IF(Riepilogo!O66>0,Riepilogo!O66/$H$2,"") ->  | I45: =IF(H45="","",Riepilogo!K66) ->  | L45: 0 | O45: 0 | R45: 0 | U45: 0 | V45: 0 | W45: =ISODD(SUM($V$4:V45)) -> FALSE
B46: =IF(Riepilogo!M67>0,Riepilogo!M67/$B$2,"") ->  | C46: =IF(B46="","",Riepilogo!K67) ->  | E46: =IF(Riepilogo!N67>0,Riepilogo!N67/$E$2,"") ->  | F46: =IF(E46="","",Riepilogo!K67) ->  | H46: =IF(Riepilogo!O67>0,Riepilogo!O67/$H$2,"") ->  | I46: =IF(H46="","",Riepilogo!K67) ->  | L46: 0 | O46: 0 | R46: 0 | U46: 0 | V46: 0 | W46: =ISODD(SUM($V$4:V46)) -> FALSE
B47: =IF(Riepilogo!M68>0,Riepilogo!M68/$B$2,"") ->  | C47: =IF(B47="","",Riepilogo!K68) ->  | E47: =IF(Riepilogo!N68>0,Riepilogo!N68/$E$2,"") ->  | F47: =IF(E47="","",Riepilogo!K68) ->  | H47: =IF(Riepilogo!O68>0,Riepilogo!O68/$H$2,"") ->  | I47: =IF(H47="","",Riepilogo!K68) ->  | L47: 0 | O47: 0 | R47: 0 | U47: 0 | V47: 0 | W47: =ISODD(SUM($V$4:V47)) -> FALSE
B48: =IF(Riepilogo!M69>0,Riepilogo!M69/$B$2,"") ->  | C48: =IF(B48="","",Riepilogo!K69) ->  | E48: =IF(Riepilogo!N69>0,Riepilogo!N69/$E$2,"") ->  | F48: =IF(E48="","",Riepilogo!K69) ->  | H48: =IF(Riepilogo!O69>0,Riepilogo!O69/$H$2,"") ->  | I48: =IF(H48="","",Riepilogo!K69) ->  | L48: 0 | O48: 0 | R48: 0 | U48: 0 | V48: 0 | W48: =ISODD(SUM($V$4:V48)) -> FALSE
B49: =IF(Riepilogo!M70>0,Riepilogo!M70/$B$2,"") ->  | C49: =IF(B49="","",Riepilogo!K70) ->  | E49: =IF(Riepilogo!N70>0,Riepilogo!N70/$E$2,"") ->  | F49: =IF(E49="","",Riepilogo!K70) ->  | H49: =IF(Riepilogo!O70>0,Riepilogo!O70/$H$2,"") ->  | I49: =IF(H49="","",Riepilogo!K70) ->  | L49: 0 | O49: 0 | R49: 0 | U49: 0 | V49: 0 | W49: =ISODD(SUM($V$4:V49)) -> FALSE
B50: =IF(Riepilogo!M71>0,Riepilogo!M71/$B$2,"") ->  | C50: =IF(B50="","",Riepilogo!K71) ->  | E50: =IF(Riepilogo!N71>0,Riepilogo!N71/$E$2,"") ->  | F50: =IF(E50="","",Riepilogo!K71) ->  | H50: =IF(Riepilogo!O71>0,Riepilogo!O71/$H$2,"") ->  | I50: =IF(H50="","",Riepilogo!K71) ->  | L50: 0 | O50: 0 | R50: 0 | U50: 0 | V50: 0 | W50: =ISODD(SUM($V$4:V50)) -> FALSE
B51: =IF(Riepilogo!M72>0,Riepilogo!M72/$B$2,"") ->  | C51: =IF(B51="","",Riepilogo!K72) ->  | E51: =IF(Riepilogo!N72>0,Riepilogo!N72/$E$2,"") ->  | F51: =IF(E51="","",Riepilogo!K72) ->  | H51: =IF(Riepilogo!O72>0,Riepilogo!O72/$H$2,"") ->  | I51: =IF(H51="","",Riepilogo!K72) ->  | L51: 0 | O51: 0 | R51: 0 | U51: 0 | V51: 0 | W51: =ISODD(SUM($V$4:V51)) -> FALSE
B52: =IF(Riepilogo!M73>0,Riepilogo!M73/$B$2,"") ->  | C52: =IF(B52="","",Riepilogo!K73) ->  | E52: =IF(Riepilogo!N73>0,Riepilogo!N73/$E$2,"") ->  | F52: =IF(E52="","",Riepilogo!K73) ->  | H52: =IF(Riepilogo!O73>0,Riepilogo!O73/$H$2,"") ->  | I52: =IF(H52="","",Riepilogo!K73) ->  | L52: 0 | O52: 0 | R52: 0 | U52: 0 | V52: 0 | W52: =ISODD(SUM($V$4:V52)) -> FALSE
B53: =IF(Riepilogo!M74>0,Riepilogo!M74/$B$2,"") ->  | C53: =IF(B53="","",Riepilogo!K74) ->  | E53: =IF(Riepilogo!N74>0,Riepilogo!N74/$E$2,"") ->  | F53: =IF(E53="","",Riepilogo!K74) ->  | H53: =IF(Riepilogo!O74>0,Riepilogo!O74/$H$2,"") ->  | I53: =IF(H53="","",Riepilogo!K74) ->  | L53: 0 | O53: 0 | R53: 0 | U53: 0 | V53: 0 | W53: =ISODD(SUM($V$4:V53)) -> FALSE
B54: =IF(Riepilogo!M75>0,Riepilogo!M75/$B$2,"") ->  | C54: =IF(B54="","",Riepilogo!K75) ->  | E54: =IF(Riepilogo!N75>0,Riepilogo!N75/$E$2,"") ->  | F54: =IF(E54="","",Riepilogo!K75) ->  | H54: =IF(Riepilogo!O75>0,Riepilogo!O75/$H$2,"") ->  | I54: =IF(H54="","",Riepilogo!K75) ->  | L54: =IF(B54="",0,B54) -> 0 | O54: =IF(E54="",0,E54) -> 0 | R54: =IF(H54="",0,H54) -> 0 | U54: =SUM(L54:T54) -> 0 | V54: =IF(U54>0,1,0) -> 0 | W54: =ISODD(SUM($V$4:V54)) -> FALSE
B55: =IF(Riepilogo!M76>0,Riepilogo!M76/$B$2,"") ->  | C55: =IF(B55="","",Riepilogo!K76) ->  | E55: =IF(Riepilogo!N76>0,Riepilogo!N76/$E$2,"") ->  | F55: =IF(E55="","",Riepilogo!K76) ->  | H55: =IF(Riepilogo!O76>0,Riepilogo!O76/$H$2,"") ->  | I55: =IF(H55="","",Riepilogo!K76) ->  | L55: 0 | O55: 0 | R55: 0 | U55: 0 | V55: 0 | W55: =ISODD(SUM($V$4:V55)) -> FALSE
B56: =IF(Riepilogo!M77>0,Riepilogo!M77/$B$2,"") ->  | C56: =IF(B56="","",Riepilogo!K77) ->  | E56: =IF(Riepilogo!N77>0,Riepilogo!N77/$E$2,"") ->  | F56: =IF(E56="","",Riepilogo!K77) ->  | H56: =IF(Riepilogo!O77>0,Riepilogo!O77/$H$2,"") ->  | I56: =IF(H56="","",Riepilogo!K77) ->  | L56: 0 | O56: 0 | R56: 0 | U56: 0 | V56: 0 | W56: =ISODD(SUM($V$4:V56)) -> FALSE
B57: =IF(Riepilogo!M78>0,Riepilogo!M78/$B$2,"") ->  | C57: =IF(B57="","",Riepilogo!K78) ->  | E57: =IF(Riepilogo!N78>0,Riepilogo!N78/$E$2,"") ->  | F57: =IF(E57="","",Riepilogo!K78) ->  | H57: =IF(Riepilogo!O78>0,Riepilogo!O78/$H$2,"") ->  | I57: =IF(H57="","",Riepilogo!K78) ->  | L57: 0 | O57: 0 | R57: 0 | U57: 0 | V57: 0 | W57: =ISODD(SUM($V$4:V57)) -> FALSE
B58: =IF(Riepilogo!M79>0,Riepilogo!M79/$B$2,"") ->  | C58: =IF(B58="","",Riepilogo!K79) ->  | E58: =IF(Riepilogo!N79>0,Riepilogo!N79/$E$2,"") ->  | F58: =IF(E58="","",Riepilogo!K79) ->  | H58: =IF(Riepilogo!O79>0,Riepilogo!O79/$H$2,"") ->  | I58: =IF(H58="","",Riepilogo!K79) ->  | L58: 0 | O58: 0 | R58: 0 | U58: 0 | V58: 0 | W58: =ISODD(SUM($V$4:V58)) -> FALSE
B59: =IF(Riepilogo!M80>0,Riepilogo!M80/$B$2,"") ->  | C59: =IF(B59="","",Riepilogo!K80) ->  | E59: =IF(Riepilogo!N80>0,Riepilogo!N80/$E$2,"") ->  | F59: =IF(E59="","",Riepilogo!K80) ->  | H59: =IF(Riepilogo!O80>0,Riepilogo!O80/$H$2,"") ->  | I59: =IF(H59="","",Riepilogo!K80) ->  | L59: 0 | O59: 0 | R59: 0 | U59: 0 | V59: 0 | W59: =ISODD(SUM($V$4:V59)) -> FALSE
B60: =IF(Riepilogo!M81>0,Riepilogo!M81/$B$2,"") ->  | C60: =IF(B60="","",Riepilogo!K81) ->  | E60: =IF(Riepilogo!N81>0,Riepilogo!N81/$E$2,"") ->  | F60: =IF(E60="","",Riepilogo!K81) ->  | H60: =IF(Riepilogo!O81>0,Riepilogo!O81/$H$2,"") ->  | I60: =IF(H60="","",Riepilogo!K81) ->  | L60: 0 | O60: 0 | R60: 0 | U60: 0 | V60: 0 | W60: =ISODD(SUM($V$4:V60)) -> FALSE
B61: =IF(Riepilogo!M82>0,Riepilogo!M82/$B$2,"") ->  | C61: =IF(B61="","",Riepilogo!K82) ->  | E61: =IF(Riepilogo!N82>0,Riepilogo!N82/$E$2,"") ->  | F61: =IF(E61="","",Riepilogo!K82) ->  | H61: =IF(Riepilogo!O82>0,Riepilogo!O82/$H$2,"") ->  | I61: =IF(H61="","",Riepilogo!K82) ->  | L61: 0 | O61: 0 | R61: 0 | U61: 0 | V61: =IF(U61>0,1,0) -> 0 | W61: =ISODD(SUM($V$4:V61)) -> FALSE
B62: =IF(Riepilogo!M83>0,Riepilogo!M83/$B$2,"") ->  | C62: =IF(B62="","",Riepilogo!K83) ->  | E62: =IF(Riepilogo!N83>0,Riepilogo!N83/$E$2,"") ->  | F62: =IF(E62="","",Riepilogo!K83) ->  | H62: =IF(Riepilogo!O83>0,Riepilogo!O83/$H$2,"") ->  | I62: =IF(H62="","",Riepilogo!K83) ->  | L62: 0 | O62: 0 | R62: 0 | U62: 0 | V62: 0 | W62: =ISODD(SUM($V$4:V62)) -> FALSE
B63: =IF(Riepilogo!M84>0,Riepilogo!M84/$B$2,"") ->  | C63: =IF(B63="","",Riepilogo!K84) ->  | E63: =IF(Riepilogo!N84>0,Riepilogo!N84/$E$2,"") ->  | F63: =IF(E63="","",Riepilogo!K84) ->  | H63: =IF(Riepilogo!O84>0,Riepilogo!O84/$H$2,"") ->  | I63: =IF(H63="","",Riepilogo!K84) ->  | L63: 0 | O63: 0 | R63: 0 | U63: 0 | V63: 0 | W63: =ISODD(SUM($V$4:V63)) -> FALSE
B64: =IF(Riepilogo!M85>0,Riepilogo!M85/$B$2,"") ->  | C64: =IF(B64="","",Riepilogo!K85) ->  | E64: =IF(Riepilogo!N85>0,Riepilogo!N85/$E$2,"") ->  | F64: =IF(E64="","",Riepilogo!K85) ->  | H64: =IF(Riepilogo!O85>0,Riepilogo!O85/$H$2,"") ->  | I64: =IF(H64="","",Riepilogo!K85) ->  | L64: 0 | O64: 0 | R64: 0 | U64: =SUM(L64:T64) -> 0 | V64: =IF(U64>0,1,0) -> 0 | W64: =ISODD(SUM($V$4:V64)) -> FALSE
B65: =IF(Riepilogo!M86>0,Riepilogo!M86/$B$2,"") ->  | C65: =IF(B65="","",Riepilogo!K86) ->  | E65: =IF(Riepilogo!N86>0,Riepilogo!N86/$E$2,"") ->  | F65: =IF(E65="","",Riepilogo!K86) ->  | H65: =IF(Riepilogo!O86>0,Riepilogo!O86/$H$2,"") ->  | I65: =IF(H65="","",Riepilogo!K86) ->  | L65: 0 | O65: 0 | R65: 0 | U65: 0 | V65: 0 | W65: =ISODD(SUM($V$4:V65)) -> FALSE
B66: =IF(Riepilogo!M87>0,Riepilogo!M87/$B$2,"") ->  | C66: =IF(B66="","",Riepilogo!K87) ->  | E66: =IF(Riepilogo!N87>0,Riepilogo!N87/$E$2,"") ->  | F66: =IF(E66="","",Riepilogo!K87) ->  | H66: =IF(Riepilogo!O87>0,Riepilogo!O87/$H$2,"") ->  | I66: =IF(H66="","",Riepilogo!K87) ->  | L66: 0 | O66: 0 | R66: 0 | U66: 0 | V66: 0 | W66: =ISODD(SUM($V$4:V66)) -> FALSE
B67: =IF(Riepilogo!M88>0,Riepilogo!M88/$B$2,"") ->  | C67: =IF(B67="","",Riepilogo!K88) ->  | E67: =IF(Riepilogo!N88>0,Riepilogo!N88/$E$2,"") ->  | F67: =IF(E67="","",Riepilogo!K88) ->  | H67: =IF(Riepilogo!O88>0,Riepilogo!O88/$H$2,"") ->  | I67: =IF(H67="","",Riepilogo!K88) ->  | L67: 0 | O67: 0 | R67: 0 | U67: 0 | V67: 0 | W67: =ISODD(SUM($V$4:V67)) -> FALSE
B68: =IF(Riepilogo!M89>0,Riepilogo!M89/$B$2,"") ->  | C68: =IF(B68="","",Riepilogo!K89) ->  | E68: =IF(Riepilogo!N89>0,Riepilogo!N89/$E$2,"") ->  | F68: =IF(E68="","",Riepilogo!K89) ->  | H68: =IF(Riepilogo!O89>0,Riepilogo!O89/$H$2,"") ->  | I68: =IF(H68="","",Riepilogo!K89) ->  | L68: 0 | O68: 0 | R68: 0 | U68: 0 | V68: 0 | W68: =ISODD(SUM($V$4:V68)) -> FALSE
V69: =IF($U$4>0,1,0) -> 0
B70: Configurazione RAID e/o NOTE | E70: Configurazione RAID e/o NOTE | H70: Configurazione RAID e/o NOTE | V70: =IF($U$4>0,1,0) -> 0
B71: =Lotto8_C6525_1!H44 -> Specificare la configurazione RAID per l'installazione del Sistema Operativo, se richiesto. e/o inserire eventuali note. | E71: =Lotto8_C6525_2!H44 -> Specificare la configurazione RAID per l'installazione del Sistema Operativo, se richiesto. e/o inserire eventuali note. | H71: =Lotto8_C6525_3!H44 -> Specificare la configurazione RAID per l'installazione del Sistema Operativo, se richiesto. e/o inserire eventuali note. | V71: 0
V72: 0
V73: 0
V74: 0
V75: 0
V76: 0
V77: 0
V78: 0
V79: 0
V80: 0
V81: 0
V82: 0
V83: 1
V84: 1
B85: =IF(B2=0,"",IF(Lotto8_C6525_1!$N$25="*",$X$85,"")) ->  | E85: =IF(E2=0,"",IF(Lotto8_C6525_2!$N$25="*",$X$85,"")) ->  | H85: =IF(H2=0,"",IF(Lotto8_C6525_3!$N$25="*",$X$85,"")) ->  | V85: 1 | X85: !!!!! ATTENZIONE !!!!! La configurazione della memoria è supportata, ma non ottimizzata per ottenere le migliori prestazioni.
V86: 1
V87: 1
V88: 1
V89: 1
V90: 1
V91: 1
V92: 1
